Workbook

Sheet стр.1_4
K2: Согласовано | DW2: Утверждаю
K3: Заместитель Руководителя Исполнительного комитета Нижнекамского муниципального района РТ | DW3: Руководитель Исполнительного комитета Нижнекамского муниципального района РТ
K4: (наименование должности уполномоченного лица) | DW4: (наименование должности уполномоченного лица)
K5: Исполнительный комитет НМР РТ | DW5: Исполнительный комитет НМР РТ
K6: (наименование органа - учредителя (учреждения) | DW6: (наименование органа - учредителя (учреждения)
Z7: И.И. Рамазанов | EL7: Р.Ф. Булатов
K8: (подпись) | Z8: (расшифровка подписи) | DW8: (подпись) | EL8: (расшифровка подписи)
K9: " | P9: " | AH9: 20 | AN9: г. | DW9: " | EB9: " | ET9: 20 | EZ9: г.
CR12: План финансово-хозяйственной деятельности на 20 | CS12: 25 | CV12: г.
AY13: (на 20 | BF13: 25 | BI13: г. и плановый период 20 | CE13: 26 | CH13: и 20 | CM13: 27 | CP13: годов 1) | ES13: Коды
BG15: от " | BK15: 27 | BN15: " | BQ15: декабря | CF15: 20 | CI15: 24 | CL15: г.2 | EQ15: Дата | ES15: 01.01.2025
A16: Орган, осуществляющий | EQ16: по Сводному реестру | ES16: 923Ш4162
A17: функции и полномочия учредителя | AB17: Исполнительный комитет Нижнекамского муниципального района Республики Татарстан | EQ17: глава по БК | ES17: 860
EQ18: по Сводному реестру | ES18: 923Ш4162
EQ19: ИНН | ES19: 1651004920
A20: Учреждение | K20: Муниципальное бюджетное общеобразовательное учреждение "Средняя общеобразовательная школа №20" Нижнекамского муниципального района Республики Татарстан | EQ20: КПП | ES20: 165101001
A21: Единица измерения: руб. | EQ21: по ОКЕИ | ES21: 383
A23: Раздел 1. Поступления и выплаты
A25: Наименование показателя | BX25: Код строки | CF25: Код по бюджетной классификации Российской Федерации 3 | CS25: Аналити-ческий код 4 | DF25: Сумма
DF26: на 20 | DL26: 25 | DO26: г. | DS26: на 20 | DY26: 26 | EB26: г. | EF26: на 20 | EL26: 27 | EO26: г. | ES26: за пределами планового периода
DF27: текущий финансовый год | DS27: первый год планового периода | EF27: второй год планового периода
A28: 1 | BX28: 2 | CF28: 3 | CS28: 4 | DF28: 5 | DS28: 6 | EF28: 7 | ES28: 8
A29: Остаток средств на начало текущего финансового года 5 | BX29: 0001 | CF29: х | CS29: х | DF29: 2,707,873.77 | DS29: =DF29*1.04 -> 2,816,188.72 | EF29: =DS29*1.04 -> 2,928,836.27
A30: Остаток средств на конец текущего финансового года 5 | BX30: 0002 | CF30: х | CS30: х
A31: Доходы, всего: | BX31: 1000 | CF31: х | CS31: 100 | DF31: =DF35+DF43 -> 40,554,873.37 | DS31: =DF31*1.04 -> 42,177,068.30 | EF31: =DS31*1.04 -> 43,864,151.04 | ES31: =ES32+ES35+ES40+ES43+ES47+ES50 -> 0.00
A32: в том числе: доходы от собственности, всего | BX32: 1100 | CF32: 120
A33: в том числе: | BX33: 1110
A35: доходы от оказания услуг, работ, компенсации затрат учреждений, всего | BX35: 1200 | CF35: 130 | DF35: =DF36+DF38 -> 40,197,241.37 | DS35: =DF35*1.04 -> 41,805,131.02 | EF35: =EF36+EF38+EF43 -> 43,864,151.04 | ES35: =ES36+ES37+ES38+ES39 -> 0.00
A36: в том числе: субсидии на финансовое обеспечение выполнения государственного (муниципального) задания за счет средств бюджета публично-правового образования, создавшего учреждение | BX36: 1210 | CF36: 130 | DF36: 37,989,619.44 | DS36: =DF36*1.04 -> 39,509,204.22 | EF36: =DS36*1.04 -> 41,089,572.39
A37: субсидии на финансовое обеспечение выполнения государственного задания за счет средств бюджета Федерального фонда обязательного медицинского страхования | BX37: 1220 | CF37: 130
A38: поступления от оказания платных услуг (выполнения работ) на платной основе и иной приносящей доход деятельности | BX38: 1230 | CF38: 130 | DF38: 2,207,621.93 | DS38: =DF38*1.04 -> 2,295,926.81 | EF38: =DS38*1.04 -> 2,387,763.88
A39: доходы, поступающие в порядке возмещения расходов, понесенных в связи с эксплуатацией имущества, находящегося в оперативном управлении бюджетных и автономных учреждений | BX39: 1240 | CF39: 130 | DS39: =DF39*1.04 -> 0.00 | EF39: =DS39*1.04 -> 0.00
A40: доходы от штрафов, пеней, иных сумм принудительного изъятия, всего | BX40: 1300 | CF40: 140 | DF40: =DF41 -> 0.00 | DS40: =DS41 -> 0.00 | EF40: =EF41 -> 0.00
A41: в том числе: | BX41: 1310 | DF41: 0.00 | DS41: 0.00 | EF41: 0.00
A43: безвозмездные денежные поступления, всего | BX43: 1400 | CF43: 150 | DF43: 357,632.00 | DS43: =DF43*1.04 -> 371,937.28 | EF43: =DS43*1.04 -> 386,814.77
A44: в том числе: субсидии, предоставляемые в соответствии с абзацем 2 пункта 1 статьи 78.1 БК РФ (иные цели) | BX44: 1410 | CF44: 150 | DF44: 357,632.00 | DS44: =DF44*1.04 -> 371,937.28 | EF44: =DS44*1.04 -> 386,814.77
A45: безвозмездные поступления (целевые) | BX45: 1410.1 | CF45: 150 | EF45: =DS45 -> 0.00
A46: субсидии на осуществление капитальных вложений, всего | BX46: 1420 | CF46: 150
A47: прочие доходы, всего | BX47: 1500 | CF47: 180 | DF47: =DF48 -> 0.00 | DS47: =DS48 -> 0.00 | EF47: =EF48 -> 0.00
A48: в том числе: | BX48: 1510
A50: доходы от операций с активами, всего | BX50: 1900 | CF50: 400 | DF50: =DF51 -> 0.00 | DS50: =DS51 -> 0.00 | EF50: =EF51 -> 0.00
A51: в том числе: | BX51: 1910 | CF51: 440
A52: доходы от выбытия материальных запасов
A54: прочие поступления, всего 6 | BX54: 1980 | CF54: х | DF54: =DF55 -> 0.00 | DS54: =DS55 -> 0.00 | EF54: =EF55 -> 0.00
A55: из них: увеличение остатков денежных средств за счет возврата дебиторской задолженности прошлых лет | BX55: 1981 | CF55: 510 | ES55: х
A57: Расходы, всего | BX57: 2000 | CF57: х | CS57: 200 | DF57: =DF58+DF77+DF90+DF88 -> 43,262,747.14 | DS57: =DF57*1.04 -> 44,993,257.03 | EF57: =EF58+EF70+EF88+EF90+EF77 -> 46,792,987.31
A58: в том числе: на выплаты персоналу, всего | BX58: 2100 | CF58: х | CS58: 210 | DF58: =DF59+DF60+DF61+DF62 -> 29,683,853.83 | DS58: =DF58*1.04 -> 30,871,207.98 | EF58: =EF59+EF62 -> 32,106,056.30 | ES58: х
A59: в том числе: оплата труда | BX59: 2110 | CF59: 111 | CS59: 211 | DF59: 22,790,106.51 | DS59: =DF59*1.04 -> 23,701,710.77 | EF59: =DS59*1.04 -> 24,649,779.20 | ES59: х
A60: прочие выплаты персоналу, в том числе компенсационного характера | BX60: 2120 | CF60: 112 | ES60: х
A61: иные выплаты, за исключением фонда оплаты труда учреждения, для выполнения отдельных полномочий | BX61: 2130 | CF61: 113 | ES61: х
A62: взносы по обязательному социальному страхованию на выплаты по оплате труда работников и иные выплаты работникам учреждений, всего | BX62: 2140 | CF62: 119 | CS62: 213 | DF62: 6,893,747.32 | DS62: =DF62*1.04 -> 7,169,497.21 | EF62: =DS62*1.04 -> 7,456,277.10 | ES62: х
A63: в том числе: на выплаты по оплате труда | BX63: 2141 | CF63: 119 | CS63: 213 | DF63: 6,893,747.32 | DS63: =DF63*1.04 -> 7,169,497.21 | EF63: =DS63*1.04 -> 7,456,277.10 | ES63: х
A64: на иные выплаты работникам | BX64: 2142 | CF64: 119 | ES64: х
A65: денежное довольствие военнослужащих и сотрудников, имеющих специальные звания | BX65: 2150 | CF65: 131 | ES65: х
A66: расходы на выплаты военнослужащим и сотрудникам, имеющим специальные звания, зависящие от размера денежного довольствия | BX66: 2160 | CF66: 133 | ES66: х
A67: иные выплаты военнослужащим и сотрудникам, имеющим специальные звания | BX67: 2170 | CF67: 134 | ES67: х
A68: страховые взносы на обязательное социальное страхование в части выплат персоналу, подлежащих обложению страховыми взносами | BX68: 2180 | CF68: 139 | ES68: х
A69: в том числе: на оплату труда стажеров | BX69: 2181 | CF69: 139 | ES69: х
A70: социальные и иные выплаты населению, всего | BX70: 2200 | CF70: 300 | ES70: х
A71: в том числе: социальные выплаты гражданам, кроме публичных нормативных социальных выплат | BX71: 2210 | CF71: 320 | ES71: х
A72: из них: пособия, компенсации и иные социальные выплаты гражданам, кроме публичных нормативных обязательств | BX72: 2211 | CF72: 321 | ES72: х
A74: выплата стипендий, осуществление иных расходов на социальную поддержку обучающихся за счет средств стипендиального фонда | BX74: 2220 | CF74: 340 | ES74: х
A75: на премирование физических лиц за достижения в области культуры, искусства, образования, науки и техники, а также на предоставление грантов с целью поддержки проектов в области науки, культуры и искусства | BX75: 2230 | CF75: 350 | ES75: х
A76: иные выплаты населению | BX76: 2240 | CF76: 360 | ES76: х
A77: уплата налогов, сборов и иных платежей, всего | BX77: 2300 | CF77: 850 | CS77: 290 | DF77: 948,257.00 | DS77: =DS78+DS79+DS80 -> 986,187.28 | EF77: =EF78+EF79+EF80 -> 1,025,634.77 | ES77: х
A78: из них: налог на имущество организаций и земельный налог | BX78: 2310 | CF78: 851 | CS78: 291 | DF78: 948,257.00 | DS78: =DF78*1.04 -> 986,187.28 | EF78: =DS78*1.04 -> 1,025,634.77 | ES78: х
A79: иные налоги (включаемые в состав расходов) в бюджеты бюджетной системы Российской Федерации, а также государственная пошлина | BX79: 2320 | CF79: 852 | ES79: х
A80: уплата штрафов (в том числе административных), пеней, иных платежей | BX80: 2330 | CF80: 853 | ES80: х
A81: безвозмездные перечисления организациям и физическим лицам, всего | BX81: 2400 | CF81: х | ES81: х
A82: из них: гранты, предоставляемые бюджетным учреждениям | BX82: 2410 | CF82: 613 | ES82: х
A83: гранты, предоставляемые автономным учреждениям | BX83: 2420 | CF83: 623 | ES83: х
A84: гранты, предоставляемые некоммерческим организациям (за исключением бюджетных и автономных учреждений) | BX84: 2430 | CF84: 634 | ES84: х
A85: гранты, предоставляемые другим организациям и физическим лицам | BX85: 2440 | CF85: 810 | ES85: х
A86: взносы в международные организации | BX86: 2450 | CF86: 862 | ES86: х
A87: платежи в целях обеспечения реализации соглашенийс правительствами иностранных государств и международными организациями | BX87: 2460 | CF87: 863 | ES87: х
A88: прочие выплаты (кроме выплат на закупку товаров, работ, услуг) | BX88: 2500 | CF88: х | CS88: 296 | DF88: 13,061.53 | DS88: =DF88*1.04 -> 13,583.99 | EF88: =DS88*1.04 -> 14,127.35 | ES88: х
A89: исполнение судебных актов Российской Федерации и мировых соглашений по возмещению вреда, причиненного в результате деятельности учреждения | BX89: 2520 | CF89: 831 | ES89: х
A90: расходы на закупку товаров, работ, услуг, всего 7 | BX90: 2600 | CF90: х | CS90: 244, 247 | DF90: =DF93+DF111 -> 12,617,574.78 | DS90: =DS93+DS111 -> 13,122,277.77 | EF90: =EF93+EF111 -> 13,647,168.88
A91: в том числе: закупку научно-исследовательских и опытно-конструкторских работ | BX91: 2610 | CF91: 241
A92: закупку товаров, работ, услуг в целях капитального ремонта государственного (муниципального) имущества | BX92: 2630 | CF92: 243
A93: прочую закупку товаров, работ и услуг, всего | BX93: 2640 | CF93: 244 | DF93: =DF95+DF97+DF98+DF99+DF100+DF103+DF104+DF109+DF110+DF107 -> 8,949,803.10 | DS93: =DS95+DS97+DS98+DS99+DS100+DS103+DS104+DS109+DS110+DS107 -> 9,307,795.22 | EF93: =EF95+EF97+EF98+EF99+EF100+EF103+EF104+EF109+EF110+EF107 -> 9,680,107.03
A94: из них:
A95: Услуги связи | BX95: 2641 | CF95: 244 | CS95: 221 | DF95: 22,116.00 | DS95: =DF95*1.04 -> 23,000.64 | EF95: =DS95*1.04 -> 23,920.67
A96: Транспортные услуги | BX96: 2642 | CF96: 244 | CS96: 222
A97: Коммунальные услуги | BX97: 2643 | CF97: 244 | CS97: 223 | DF97: 107,441.01 | DS97: =DF97*1.04 -> 111,738.65 | EF97: =DS97*1.04 -> 116,208.20
A98: Работы услуги по содержанию здания | BX98: 2644 | CF98: 244 | CS98: 225 | DF98: 610,374.27 | DS98: =DF98*1.04 -> 634,789.24 | EF98: =DS98*1.04 -> 660,180.81
A99: Питание | BX99: 2645 | CF99: 244 | CS99: 226 | DF99: 6,302,774.53 | DS99: =DF99*1.04 -> 6,554,885.51 | EF99: =DS99*1.04 -> 6,817,080.93
A100: Прочие работу услуги | BX100: 2645 | CF100: 244 | CS100: 226 | DF100: 751,022.50 | DS100: =DF100*1.04 -> 781,063.40 | EF100: =DS100*1.04 -> 812,305.94
A101: Прочие работу услуги (страхование ОСАГО) | BX101: 2646 | CF101: 244 | CS101: 227
A102: Услуги, работы для целей капитальных вложений | BX102: 2647 | CF102: 244 | CS102: 228
A103: Увеличение стоимости основных средств | BX103: 2648 | CF103: 244 | CS103: 310 | DF103: 820,610.00 | DS103: =DF103*1.04 -> 853,434.40 | EF103: =DS103*1.04 -> 887,571.78
A104: Увеличение стоимости материальных запасов (медикаменты) | BX104: 2649 | CF104: 244 | CS104: 341 | DF104: 70,000.00 | DS104: =DF104*1.04 -> 72,800.00 | EF104: =DS104*1.04 -> 75,712.00
A105: Увеличение стоимости материальных запасов (продукты питания) | BX105: 2649.1 | CF105: 244 | CS105: 342
A106: Увеличение стоимости материальных запасов (ГСМ) | BX106: 2649.2 | CF106: 244 | CS106: 343
A107: Увеличение стоимости материальных запасов (строительные материалы) | BX107: 2649.3 | CF107: 244 | CS107: 344 | DF107: 25,000.00 | DS107: =DF107*1.04 -> 26,000.00 | EF107: =DS107*1.04 -> 27,040.00
A108: Увеличение стоимости материальных запасов (мягкий инвентарь) | BX108: 2649.4 | CF108: 244 | CS108: 345
A109: Увеличение стоимости материальных запасов (прочие) | BX109: 2649.5 | CF109: 244 | CS109: 346 | DF109: 235,764.79 | DS109: =DF109*1.04 -> 245,195.38 | EF109: =DS109*1.04 -> 255,003.20
A110: Увеличение стоимости материальных запасов (прочие) | BX110: 2649.6 | CF110: 244 | CS110: 349 | DF110: 4,700.00 | DS110: =DF110*1.04 -> 4,888.00 | EF110: =DS110*1.04 -> 5,083.52
A111: закупка энергитических ресурсов, всего | BX111: 2660 | CF111: 247 | DF111: 3,667,771.68 | DS111: =DS113 -> 3,814,482.55 | EF111: =EF113 -> 3,967,061.85
A112: из них:
A113: коммунальные услуги | BX113: 2651 | CF113: 247 | DF113: 3,667,771.68 | DS113: =DF113*1.04 -> 3,814,482.55 | EF113: =DS113*1.04 -> 3,967,061.85
A114: капитальные вложения в объекты государственной (муниципальной) собственности, всего | BX114: 2700 | CF114: 400
A115: в том числе: приобретение объектов недвижимого имущества государственными (муниципальными) учреждениями | BX115: 2661 | CF115: 406
A116: строительство (реконструкция) объектов недвижимого имущества государственными (муниципальными) учреждениями | BX116: 2662 | CF116: 407
A117: Выплаты, уменьшающие доход, всего 8 | BX117: 3000 | CF117: 100 | DF117: =DF118+DF119+DF120 -> 0.00 | DS117: =DS118+DS119+DS120 -> 0.00 | EF117: =EF118+EF119+EF120 -> 0.00 | ES117: х
A118: в том числе: налог на прибыль 8 | BX118: 3010 | ES118: х
A119: налог на добавленную стоимость 8 | BX119: 3020 | ES119: х
A120: прочие налоги, уменьшающие доход 8 | BX120: 3030 | ES120: х
A121: Прочие выплаты, всего 9 | BX121: 4000 | CF121: х | DF121: =DF122 -> 0.00 | DS121: =DS122 -> 0.00 | EF121: =EF122 -> 0.00 | ES121: х
A122: из них: возврат в бюджет средств субсидии | BX122: 4010 | CF122: 610 | ES122: х
DF123: =DF29+DF31-DF57+DF117 -> 0.00 | DS123: 0.00 | EF123: 0.00

Sheet стр.5_6
B1: Раздел 2. Сведения по выплатам на закупки товаров, работ, услуг 10
A3: № п/п | I3: Наименование показателя | CN3: Коды строк | CV3: Год начала закупки | DF3: Код | DS3: Сумма
DF4: по бюджетной классификации Российской Федерации 10.1 | DS4: на 20 | DY4: 25 | EB4: г. | EF4: на 20 | EL4: 26 | EO4: г. | ES4: на 20 | EY4: 27 | FB4: г. | FF4: за пределами планового периода
DS5: (текущий финансовый год) | EF5: (первый год планового периода) | ES5: (второй год планового периода)
A6: 1 | I6: 2 | CN6: 3 | CV6: 4 | DF6: 4.1 | DS6: 5 | EF6: 6 | ES6: 7 | FF6: 8
A7: 1 | I7: Выплаты на закупку товаров, работ, услуг, всего 11 | CN7: 26000 | CV7: х | DS7: =DS10+DS14 -> 12,617,574.78 | EF7: =EF10+EF14 -> 13,122,277.77 | ES7: =ES10+ES14 -> 13,647,168.88
A8: 1.1 | I8: в том числе: по контрактам (договорам), заключенным до начала текущего финансового года без применения норм Федерального закона от 5 апреля 2013 г. № 44-ФЗ "О контрактной системе в сфере закупок товаров, работ, услуг для обеспечения государственных и муниципальных нужд" (Собрание законодательства Российской Федерации, 2013, № 14, ст. 1652; 2018, № 32, ст. 5104) (далее - Федеральный закон № 44-ФЗ) и Федерального закона от 18 июля 2011 г. № 223-ФЗ "О закупках товаров, работ, услуг отдельными видами юридических лиц" (Собрание законодательства Российской Федерации, 2011, № 30, ст. 4571; 2018, № 32, ст. 5135) (далее - Федеральный закон № 223-ФЗ)12 | CN8: 26100 | CV8: х
A9: 1.2 | I9: по контрактам (договорам), планируемым к заключению в соответствующем финансовом году без применения норм Федерального закона № 44-ФЗ и Федерального закона № 223-ФЗ 12 | CN9: 26200 | CV9: х
A10: 1.3 | I10: по контрактам (договорам), заключенным до начала текущего финансового года с учетом требований Федерального закона № 44-ФЗ и Федерального закона № 223-ФЗ 13 | CN10: 26300 | CV10: х | DS10: 5,589,946.68 | EF10: =DS10*1.04 -> 5,813,544.55 | ES10: =EF10*1.04 -> 6,046,086.33
A11: 1.3.1 | I11: в том числе: в соответствии с Федеральным законом №44-ФЗ | CN11: 26310 | CV11: х | DF11: х | DS11: 5,589,946.68 | EF11: =DS11*1.04 -> 5,813,544.55 | ES11: =EF11*1.04 -> 6,046,086.33
I12: из них: 10.1 | CN12: 26310.1
A13: 1.3.2 | I13: в том числе: в соответствии с Федеральным законом №223-ФЗ | CN13: 26320 | CV13: х | DF13: х
A14: 1.4 | I14: по контрактам (договорам), планируемым к заключению в соответствующем финансовом году с учетом требований Федерального закона № 44-ФЗ и Федерального закона № 223-ФЗ 13 | CN14: 26400 | CV14: х | DS14: =DS15+DS18+DS27 -> 7,027,628.10 | EF14: =DS14*1.04 -> 7,308,733.22 | ES14: =EF14*1.04 -> 7,601,082.55
A15: 1.4.1 | I15: в том числе: за счет субсидий, предоставляемых на финансовое обеспечение выполнения государственного (муниципального) задания | CN15: 26410 | CV15: х | DS15: 4,767,332.35 | EF15: =DS15*1.04 -> 4,958,025.64 | ES15: =EF15*1.04 -> 5,156,346.67
A16: 1.4.1.1 | I16: в том числе: в соответствии с Федеральным законом № 44-ФЗ | CN16: 26411 | CV16: х | FY16: =DT14-DT15-DT18-DT27 -> 0.00
A17: 1.4.1.2 | I17: в соответствии с Федеральным законом № 223-ФЗ 14 | CN17: 26412 | CV17: х
A18: 1.4.2 | I18: за счет субсидий, предоставляемых в соответствии с абзацем вторым пункта 1 статьи 78.1 Бюджетного кодекса Российской Федерации | CN18: 26420 | CV18: х | DS18: 513,442.57 | EF18: =DS18*1.04 -> 533,980.27 | ES18: =EF18*1.04 -> 555,339.48
A19: 1.4.2.1 | I19: в том числе: в соответствии с Федеральным законом № 44-ФЗ | CN19: 26421 | CV19: х | DS19: 513,442.57 | EF19: =DS19*1.04 -> 533,980.27 | ES19: =EF19*1.04 -> 555,339.48
I20: из них: 10.1 | CN20: 26421.1 | CV20: х
A21: 1.4.2.2 | I21: в соответствии с Федеральным законом № 223-ФЗ 14 | CN21: 26422 | CV21: х
A22: 1.4.3 | I22: за счет субсидий, предоставляемых на осуществление капитальных вложений 15 | CN22: 26430 | CV22: х
I23: из них: 10.1 | CN23: 26430.1 | CV23: х
A24: 1.4.4 | I24: за счет средств обязательного медицинского страхования | CN24: 26440 | CV24: х
A25: 1.4.4.1 | I25: в том числе: в соответствии с Федеральным законом № 44-ФЗ | CN25: 26441 | CV25: х
A26: 1.4.4.2 | I26: в соответствии с Федеральным законом № 223-ФЗ 14 | CN26: 26442 | CV26: х
A27: 1.4.5 | I27: за счет прочих источников финансового обеспечения | CN27: 26450 | CV27: х | DS27: 1,746,853.18 | EF27: =DS27*1.04 -> 1,816,727.31 | ES27: =EF27*1.04 -> 1,889,396.40
A28: 1.4.5.1 | I28: в том числе: в соответствии с Федеральным законом № 44-ФЗ | CN28: 26451 | CV28: х | DS28: =DS27 -> 1,746,853.18 | EF28: =EF27 -> 1,816,727.31 | ES28: =ES27 -> 1,889,396.40
I29: из них: 10.1 | CN29: 26451.1 | CV29: х
A30: 1.4.5.2 | I30: в соответствии с Федеральным законом № 223-ФЗ | CN30: 26452 | CV30: х
A31: 2 | I31: Итого по контрактам, планируемым к заключению в соответствующем финансовом году в соответствии с Федеральным законом № 44-ФЗ, по соответствующему году закупки 16 | CN31: 26500 | CV31: х | DS31: =DS32 -> 12,617,574.78
I32: в том числе по году начала закупки: 2025 г. | CN32: 26510 | DS32: =DS7 -> 12,617,574.78
A33: 2.1 | I33: 2026 г. | CN33: 26510.1 | EF33: =EF7 -> 13,122,277.77
A34: 2.2 | I34: 2027 г. | CN34: 26510.2 | ES34: =ES7 -> 13,647,168.88
A35: 2.3 | CN35: 26510.3
A36: 3 | I36: Итого по договорам, планируемым к заключению в соответствующем финансовом году в соответствии с Федеральным законом № 223-ФЗ, по соответствующему году закупки | CN36: 26600 | CV36: х
I37: в том числе по году начала закупки: | CN37: 26610
Q41: Директор | BY41: Т.С. Глебова
AQ42: (должность) | BK42: (подпись) | BY42: (расшифровка подписи)
AQ44: Главный бухгалтер | BY44: А.А. Васильев
AQ45: (должность) | BK45: (подпись) | BY45: (расшифровка подписи)
I46: Исполнитель | AK46: Главный бухгалтер | BG46: А.А. Васильев | CA46: 88555 36-64-90
AM47: (должность) | BG47: (фамилия, инициалы) | CA47: (телефон)
I49: " | N49: " | AF49: 20 | AL49: г.
A52: СОГЛАСОВАНО
A53: Руководитель Департамента по бюджету и финансам Нижнекамского мунципального района РТ
A54: (наименование должности уполномоченного лица органа-учредителя)
AH56: С.Н. Логинова
A57: (подпись) | AH57: (расшифровка подписи)
A59: " | F59: " | X59: 20 | AD59: г.

Sheet Лист1 (hidden)
A1: муниципальное казенное учреждение "Департамент по бюджету и финансам муниципального образования "Нижнекамский муниципальный район" Республики Татарстан
A2: (наименование органа, исполняющего бюджет)
A4: на 02.06.2021 г.
A5: Дата печати 01.06.2021 (12:09:18)
A7: Бюджет: бюджет Нижнекамского муниципального района
A8: Бланк расходов: МБОУ "Средняя общеобразовательная школа N 27"(иные суб), МБОУ "Средняя общеобразовательная школа N 27", МБОУ "Средняя общеобразовательная школа №27 с углубленным изучением отдельных предметов"(платные)
A10: руб.
A11: КФСР | B11: КЦСР | C11: КВР | D11: КОСГУ | E11: КВСР | F11: Доп. ФК | G11: Доп. ЭК | H11: Доп. КР | I11: КВФО | J11: Лимиты 2021
A12: 0603 | B12: 0910174460 | C12: 244 | D12: 226 | E12: 860 | F12: 00000 | G12: П226003 | H12: 310 | I12: 5 | J12: 117,770.40
A13: 0702 | B13: 0220143624 | C13: 111 | D13: 211 | E13: 860 | F13: 20000 | G13: П211004 | H13: 310 | I13: 5 | J13: 43,284.56
A14: 0702 | B14: 0220143624 | C14: 119 | D14: 213 | E14: 860 | F14: 20000 | G14: П213004 | H14: 310 | I14: 5 | J14: 13,071.92
A15: 0702 | B15: 0220242100 | C15: 111 | D15: 211 | E15: 860 | F15: 00000 | G15: П211004 | H15: 509 | I15: 2 | J15: 22,494.18
A16: 0702 | B16: 0220242100 | C16: 111 | D16: 211 | E16: 860 | F16: 00000 | G16: П211004 | H16: 521 | I16: 2 | J16: 1,297,630.00
A17: 0702 | B17: 0220242100 | C17: 111 | D17: 211 | E17: 860 | F17: 00000 | G17: П211005 | H17: 509 | I17: 2 | J17: 5,111.11
A18: 0702 | B18: 0220242100 | C18: 111 | D18: 211 | E18: 860 | F18: 00000 | G18: П211005 | H18: 521 | I18: 2 | J18: 1,080,000.00
A19: 0702 | B19: 0220242100 | C19: 111 | D19: 211 | E19: 860 | F19: 00000 | G19: П211099 | H19: 304 | I19: 4 | J19: 3,959,020.52
A20: 0702 | B20: 0220242100 | C20: 111 | D20: 211 | E20: 860 | F20: 00000 | G20: П211099 | H20: 509 | I20: 2 | J20: 5,146.47
A21: 0702 | B21: 0220242100 | C21: 111 | D21: 211 | E21: 860 | F21: 00000 | G21: П211099 | H21: 521 | I21: 2 | J21: 210,000.00
A22: 0702 | B22: 0220242100 | C22: 111 | D22: 266 | E22: 860 | F22: 00000 | G22: П266099 | H22: 304 | I22: 4 | J22: 10,000.00
A23: 0702 | B23: 0220242100 | C23: 111 | D23: 266 | E23: 860 | F23: 00000 | G23: П266099 | H23: 521 | I23: 2 | J23: 20,000.00
A24: 0702 | B24: 0220242100 | C24: 112 | D24: 226 | E24: 860 | F24: 00000 | G24: П226024 | H24: 521 | I24: 2 | J24: 6,050.00
A25: 0702 | B25: 0220242100 | C25: 112 | D25: 226 | E25: 860 | F25: 00000 | G25: П226042 | H25: 310 | I25: 5 | J25: 7,700.00
A26: 0702 | B26: 0220242100 | C26: 113 | D26: 226 | E26: 860 | F26: 00000 | G26: П226042 | H26: 310 | I26: 5 | J26: 10,800.00
A27: 0702 | B27: 0220242100 | C27: 113 | D27: 226 | E27: 860 | F27: 00000 | G27: П226043 | H27: 591 | I27: 2 | J27: 6,600.00
A28: 0702 | B28: 0220242100 | C28: 113 | D28: 296 | E28: 860 | F28: 00000 | G28: П296099 | H28: 591 | I28: 2 | J28: 21,400.00
A29: 0702 | B29: 0220242100 | C29: 119 | D29: 213 | E29: 860 | F29: 00000 | G29: П213004 | H29: 509 | I29: 2 | J29: 6,793.24
A30: 0702 | B30: 0220242100 | C30: 119 | D30: 213 | E30: 860 | F30: 00000 | G30: П213004 | H30: 521 | I30: 2 | J30: 397,924.00
A31: 0702 | B31: 0220242100 | C31: 119 | D31: 213 | E31: 860 | F31: 00000 | G31: П213005 | H31: 509 | I31: 2 | J31: 1,543.56
A32: 0702 | B32: 0220242100 | C32: 119 | D32: 213 | E32: 860 | F32: 00000 | G32: П213005 | H32: 521 | I32: 2 | J32: 326,160.00
A33: 0702 | B33: 0220242100 | C33: 119 | D33: 213 | E33: 860 | F33: 00000 | G33: П213099 | H33: 304 | I33: 4 | J33: 1,198,644.20
A34: 0702 | B34: 0220242100 | C34: 119 | D34: 213 | E34: 860 | F34: 00000 | G34: П213099 | H34: 509 | I34: 2 | J34: 1,554.23
A35: 0702 | B35: 0220242100 | C35: 119 | D35: 213 | E35: 860 | F35: 00000 | G35: П213099 | H35: 521 | I35: 2 | J35: 63,420.00
A36: 0702 | B36: 0220242100 | C36: 244 | D36: 221 | E36: 860 | F36: 00000 | G36: П221099 | H36: 304 | I36: 4 | J36: 21,816.00
A37: 0702 | B37: 0220242100 | C37: 244 | D37: 221 | E37: 860 | F37: 00000 | G37: П221099 | H37: 521 | I37: 2 | J37: 50,000.00
A38: 0702 | B38: 0220242100 | C38: 244 | D38: 223 | E38: 860 | F38: 00000 | G38: П223004 | H38: 304 | I38: 4 | J38: 7,709.40
A39: 0702 | B39: 0220242100 | C39: 244 | D39: 223 | E39: 860 | F39: 00000 | G39: П223004 | H39: 521 | I39: 2 | J39: 110,000.00
A40: 0702 | B40: 0220242100 | C40: 244 | D40: 223 | E40: 860 | F40: 00000 | G40: П223004 | H40: 523 | I40: 2 | J40: 247,152.60
A41: 0702 | B41: 0220242100 | C41: 244 | D41: 223 | E41: 860 | F41: 00000 | G41: П223004 | H41: 593 | I41: 2 | J41: 135.36
A42: 0702 | B42: 0220242100 | C42: 244 | D42: 223 | E42: 860 | F42: 00000 | G42: П223017 | H42: 304 | I42: 4 | J42: 92,723.14
A43: 0702 | B43: 0220242100 | C43: 244 | D43: 225 | E43: 860 | F43: 00000 | G43: Н225006 | H43: 521 | I43: 2 | J43: 1,500.00
A44: 0702 | B44: 0220242100 | C44: 244 | D44: 225 | E44: 860 | F44: 00000 | G44: Н225007 | H44: 521 | I44: 2 | J44: 7,800.00
A45: 0702 | B45: 0220242100 | C45: 244 | D45: 225 | E45: 860 | F45: 00000 | G45: Н225099 | H45: 593 | I45: 2 | J45: 3,094.98
A46: 0702 | B46: 0220242100 | C46: 244 | D46: 225 | E46: 860 | F46: 00000 | G46: П225002 | H46: 521 | I46: 2 | J46: 28,500.00
A47: 0702 | B47: 0220242100 | C47: 244 | D47: 225 | E47: 860 | F47: 00000 | G47: П225002 | H47: 523 | I47: 2 | J47: 54,596.31
A48: 0702 | B48: 0220242100 | C48: 244 | D48: 225 | E48: 860 | F48: 00000 | G48: П225002 | H48: 591 | I48: 2 | J48: 2,619.66
A49: 0702 | B49: 0220242100 | C49: 244 | D49: 225 | E49: 860 | F49: 00000 | G49: П225002 | H49: 593 | I49: 2 | J49: 2,060.10
A50: 0702 | B50: 0220242100 | C50: 244 | D50: 225 | E50: 860 | F50: 00000 | G50: П225003 | H50: 304 | I50: 4 | J50: 68,164.32
A51: 0702 | B51: 0220242100 | C51: 244 | D51: 225 | E51: 860 | F51: 00000 | G51: П225003 | H51: 521 | I51: 2 | J51: 25,600.00
A52: 0702 | B52: 0220242100 | C52: 244 | D52: 225 | E52: 860 | F52: 00000 | G52: П225003 | H52: 591 | I52: 2 | J52: 14,862.96
A53: 0702 | B53: 0220242100 | C53: 244 | D53: 225 | E53: 860 | F53: 00000 | G53: П225003 | H53: 593 | I53: 2 | J53: 1,593.36
A54: 0702 | B54: 0220242100 | C54: 244 | D54: 225 | E54: 860 | F54: 00000 | G54: П225004 | H54: 521 | I54: 2 | J54: 8,800.00
A55: 0702 | B55: 0220242100 | C55: 244 | D55: 225 | E55: 860 | F55: 00000 | G55: П225010 | H55: 521 | I55: 2 | J55: 10,000.00
A56: 0702 | B56: 0220242100 | C56: 244 | D56: 225 | E56: 860 | F56: 00000 | G56: П225012 | H56: 521 | I56: 2 | J56: 10,000.00
A57: 0702 | B57: 0220242100 | C57: 244 | D57: 225 | E57: 860 | F57: 00000 | G57: П225012 | H57: 523 | I57: 2 | J57: 25,000.00
A58: 0702 | B58: 0220242100 | C58: 244 | D58: 225 | E58: 860 | F58: 00000 | G58: П225015 | H58: 591 | I58: 2 | J58: 7,500.00
A59: 0702 | B59: 0220242100 | C59: 244 | D59: 225 | E59: 860 | F59: 00000 | G59: П225098 | H59: 521 | I59: 2 | J59: 4,000.00
A60: 0702 | B60: 0220242100 | C60: 244 | D60: 225 | E60: 860 | F60: 00000 | G60: П225098 | H60: 591 | I60: 2 | J60: 37,036.00
A61: 0702 | B61: 0220242100 | C61: 244 | D61: 226 | E61: 860 | F61: 00000 | G61: П226003 | H61: 304 | I61: 4 | J61: 449,004.00
A62: 0702 | B62: 0220242100 | C62: 244 | D62: 226 | E62: 860 | F62: 00000 | G62: П226003 | H62: 308 | I62: 4 | J62: 1,393,917.22
A63: 0702 | B63: 0220242100 | C63: 244 | D63: 226 | E63: 860 | F63: 00000 | G63: П226003 | H63: 522 | I63: 2 | J63: 7,930,176.20
A64: 0702 | B64: 0220242100 | C64: 244 | D64: 226 | E64: 860 | F64: 00000 | G64: П226003 | H64: 592 | I64: 2 | J64: 100,619.18
A65: 0702 | B65: 0220242100 | C65: 244 | D65: 226 | E65: 860 | F65: 00000 | G65: П226004 | H65: 308 | I65: 4 | J65: 16,863.00
A66: 0702 | B66: 0220242100 | C66: 244 | D66: 226 | E66: 860 | F66: 00000 | G66: П226004 | H66: 521 | I66: 2 | J66: 18,000.00
A67: 0702 | B67: 0220242100 | C67: 244 | D67: 226 | E67: 860 | F67: 00000 | G67: П226010 | H67: 521 | I67: 2 | J67: 32,310.00
A68: 0702 | B68: 0220242100 | C68: 244 | D68: 226 | E68: 860 | F68: 00000 | G68: П226015 | H68: 521 | I68: 2 | J68: 2,690.00
A69: 0702 | B69: 0220242100 | C69: 244 | D69: 226 | E69: 860 | F69: 00000 | G69: П226098 | H69: 308 | I69: 4 | J69: 22,452.00
A70: 0702 | B70: 0220242100 | C70: 244 | D70: 226 | E70: 860 | F70: 00000 | G70: П226098 | H70: 521 | I70: 2 | J70: 106,500.00
A71: 0702 | B71: 0220242100 | C71: 244 | D71: 226 | E71: 860 | F71: 00000 | G71: П226098 | H71: 591 | I71: 2 | J71: 68,077.05
A72: 0702 | B72: 0220242100 | C72: 244 | D72: 226 | E72: 860 | F72: 00000 | G72: П226098 | H72: 593 | I72: 2 | J72: 12,000.00
A73: 0702 | B73: 0220242100 | C73: 244 | D73: 227 | E73: 860 | F73: 90210 | G73: П227002 | H73: 521 | I73: 2 | J73: 6,000.00
A74: 0702 | B74: 0220242100 | C74: 244 | D74: 310 | E74: 860 | F74: 00000 | G74: П310098 | H74: 521 | I74: 2 | J74: 148,571.00
A75: 0702 | B75: 0220242100 | C75: 244 | D75: 310 | E75: 860 | F75: 00000 | G75: П310098 | H75: 523 | I75: 2 | J75: 25,403.69
A76: 0702 | B76: 0220242100 | C76: 244 | D76: 310 | E76: 860 | F76: 00000 | G76: П310098 | H76: 591 | I76: 2 | J76: 154,571.00
A77: 0702 | B77: 0220242100 | C77: 244 | D77: 310 | E77: 860 | F77: 00000 | G77: П310098 | H77: 593 | I77: 2 | J77: 33,473.23
A78: 0702 | B78: 0220242100 | C78: 244 | D78: 341 | E78: 860 | F78: 00000 | G78: П341006 | H78: 591 | I78: 2 | J78: 5,042.94
A79: 0702 | B79: 0220242100 | C79: 244 | D79: 344 | E79: 860 | F79: 00000 | G79: Н344099 | H79: 521 | I79: 2 | J79: 88,461.33
A80: 0702 | B80: 0220242100 | C80: 244 | D80: 344 | E80: 860 | F80: 00000 | G80: Н344099 | H80: 523 | I80: 2 | J80: 40,000.00
A81: 0702 | B81: 0220242100 | C81: 244 | D81: 344 | E81: 860 | F81: 00000 | G81: Н344099 | H81: 591 | I81: 2 | J81: 76,740.36
A82: 0702 | B82: 0220242100 | C82: 244 | D82: 345 | E82: 860 | F82: 00000 | G82: П345099 | H82: 591 | I82: 2 | J82: 2,709.33
A83: 0702 | B83: 0220242100 | C83: 244 | D83: 346 | E83: 860 | F83: 00000 | G83: П346003 | H83: 304 | I83: 4 | J83: 10,000.00
A84: 0702 | B84: 0220242100 | C84: 244 | D84: 346 | E84: 860 | F84: 00000 | G84: П346003 | H84: 521 | I84: 2 | J84: 100,000.00
A85: 0702 | B85: 0220242100 | C85: 244 | D85: 346 | E85: 860 | F85: 00000 | G85: П346003 | H85: 591 | I85: 2 | J85: 4,320.00
A86: 0702 | B86: 0220242100 | C86: 244 | D86: 346 | E86: 860 | F86: 00000 | G86: П346017 | H86: 521 | I86: 2 | J86: 55,000.00
A87: 0702 | B87: 0220242100 | C87: 244 | D87: 346 | E87: 860 | F87: 00000 | G87: П346017 | H87: 523 | I87: 2 | J87: 20,000.00
A88: 0702 | B88: 0220242100 | C88: 244 | D88: 346 | E88: 860 | F88: 00000 | G88: П346017 | H88: 591 | I88: 2 | J88: 67,680.00
A89: 0702 | B89: 0220242100 | C89: 244 | D89: 349 | E89: 860 | F89: 00000 | G89: Н349099 | H89: 521 | I89: 2 | J89: 112,000.00
A90: 0702 | B90: 0220242100 | C90: 247 | D90: 223 | E90: 860 | F90: 00000 | G90: П223001 | H90: 304 | I90: 4 | J90: 576,243.00
A91: 0702 | B91: 0220242100 | C91: 247 | D91: 223 | E91: 860 | F91: 00000 | G91: П223001 | H91: 521 | I91: 2 | J91: 95,000.00
A92: 0702 | B92: 0220242100 | C92: 247 | D92: 223 | E92: 860 | F92: 00000 | G92: П223001 | H92: 523 | I92: 2 | J92: 801,043.23
A93: 0702 | B93: 0220242100 | C93: 247 | D93: 223 | E93: 860 | F93: 00000 | G93: П223001 | H93: 593 | I93: 2 | J93: 33,368.11
A94: 0702 | B94: 0220242100 | C94: 247 | D94: 223 | E94: 860 | F94: 00000 | G94: П223002 | H94: 304 | I94: 4 | J94: 2,476,170.00
A95: 0702 | B95: 0220242100 | C95: 247 | D95: 223 | E95: 860 | F95: 00000 | G95: П223002 | H95: 521 | I95: 2 | J95: 100,000.00
A96: 0702 | B96: 0220242100 | C96: 851 | D96: 291 | E96: 860 | F96: 00000 | G96: П291001 | H96: 304 | I96: 4 | J96: 375,723.45
A97: 0702 | B97: 0220242100 | C97: 851 | D97: 291 | E97: 860 | F97: 00000 | G97: П291001 | H97: 308 | I97: 4 | J97: 638,220.35
A98: 0702 | B98: 0220242100 | C98: 851 | D98: 291 | E98: 860 | F98: 00000 | G98: П291014 | H98: 308 | I98: 4 | J98: 771,810.08
A99: 0702 | B99: 0220242100 | C99: 852 | D99: 291 | E99: 860 | F99: 00000 | G99: П291005 | H99: 521 | I99: 2 | J99: 3,500.00
A100: 0702 | B100: 0220242100 | C100: 852 | D100: 291 | E100: 860 | F100: 00000 | G100: П291015 | H100: 308 | I100: 4 | J100: 2,064.00
A101: 0702 | B101: 0220242100 | C101: 852 | D101: 291 | E101: 860 | F101: 00000 | G101: П291015 | H101: 591 | I101: 2 | J101: 17.00
A102: 0702 | B102: 02202S0050 | C102: 111 | D102: 211 | E102: 860 | F102: 13120 | G102: П211005 | H102: 305 | I102: 4 | J102: 1,883,192.94
A103: 0702 | B103: 02202S0050 | C103: 119 | D103: 213 | E103: 860 | F103: 13120 | G103: П213005 | H103: 305 | I103: 4 | J103: 568,724.27
A104: 0702 | B104: 0220825280 | C104: 111 | D104: 211 | E104: 860 | F104: 13597 | G104: П211004 | H104: 302 | I104: 4 | J104: 824,162.83
A105: 0702 | B105: 0220825280 | C105: 111 | D105: 211 | E105: 860 | F105: 20000 | G105: П211004 | H105: 302 | I105: 4 | J105: 29,184,211.20
A106: 0702 | B106: 0220825280 | C106: 111 | D106: 211 | E106: 860 | F106: 20000 | G106: П211005 | H106: 302 | I106: 4 | J106: 2,923,500.14
A107: 0702 | B107: 0220825280 | C107: 111 | D107: 266 | E107: 860 | F107: 20000 | G107: П266099 | H107: 302 | I107: 4 | J107: 175,000.00
A108: 0702 | B108: 0220825280 | C108: 119 | D108: 213 | E108: 860 | F108: 13597 | G108: П213004 | H108: 302 | I108: 4 | J108: 248,897.17
A109: 0702 | B109: 0220825280 | C109: 119 | D109: 213 | E109: 860 | F109: 20000 | G109: П213004 | H109: 302 | I109: 4 | J109: 8,858,931.78
A110: 0702 | B110: 0220825280 | C110: 119 | D110: 213 | E110: 860 | F110: 20000 | G110: П213005 | H110: 302 | I110: 4 | J110: 890,447.04
A111: 0702 | B111: 0220853031 | C111: 111 | D111: 211 | E111: 860 | F111: 13300 | G111: П211004 | H111: 100 | I111: 1 | J111: 2,460,000.00
A112: 0702 | B112: 0220853031 | C112: 119 | D112: 213 | E112: 860 | F112: 13300 | G112: П213004 | H112: 100 | I112: 1 | J112: 742,920.00
A113: 0702 | B113: 02209L3040 | C113: 244 | D113: 226 | E113: 860 | F113: 00000 | G113: П226003 | H113: 303 | I113: 4 | J113: 4,822,282.08
A114: 0702 | B114: 0510152202 | C114: 244 | D114: 225 | E114: 860 | F114: 00000 | G114: П225001 | H114: 308 | I114: 4 | J114: 6,302.76
A115: 0702 | B115: 0710152207 | C115: 244 | D115: 225 | E115: 860 | F115: 00000 | G115: П225001 | H115: 308 | I115: 4 | J115: 46,920.00
A116: 0702 | B116: 0710152207 | C116: 244 | D116: 226 | E116: 860 | F116: 00000 | G116: П226098 | H116: 308 | I116: 4 | J116: 4,000.00
A117: 0702 | B117: 0710152207 | C117: 244 | D117: 228 | E117: 860 | F117: 00000 | G117: П228005 | H117: 308 | I117: 4 | J117: 20,000.00
A118: 0702 | B118: 0710152207 | C118: 244 | D118: 346 | E118: 860 | F118: 00000 | G118: Н346099 | H118: 308 | I118: 4 | J118: 33,480.00
A119: 0702 | B119: 0710152207 | C119: 244 | D119: 346 | E119: 860 | F119: 00000 | G119: П346003 | H119: 308 | I119: 4 | J119: 2,300.00
A120: 0702 | B120: 0710152207 | C120: 244 | D120: 346 | E120: 860 | F120: 00000 | G120: П346098 | H120: 308 | I120: 4 | J120: 37,020.00
A121: 0702 | B121: 2700152208 | C121: 244 | D121: 310 | E121: 860 | F121: 00000 | G121: П310098 | H121: 521 | I121: 2 | J121: 1,429.00
A122: 0707 | B122: 0610152203 | C122: 113 | D122: 296 | E122: 860 | F122: 00000 | G122: П296099 | H122: 310 | I122: 5 | J122: 192,000.00
A123: 0707 | B123: 3810121320 | C123: 244 | D123: 226 | E123: 860 | F123: 12800 | G123: П226003 | H123: 306 | I123: 5 | J123: 409,117.65
A124: 0707 | B124: 3810121320 | C124: 244 | D124: 226 | E124: 860 | F124: 12800 | G124: П226098 | H124: 306 | I124: 5 | J124: 37,222.50
A125: 0707 | B125: 3810121320 | C125: 244 | D125: 341 | E125: 860 | F125: 12800 | G125: П341006 | H125: 306 | I125: 5 | J125: 3,851.55
A126: 0707 | B126: 3810121320 | C126: 244 | D126: 346 | E126: 860 | F126: 12800 | G126: П346017 | H126: 306 | I126: 5 | J126: 2,445.00
A127: 0707 | B127: 3810182320 | C127: 244 | D127: 226 | E127: 860 | F127: 99998 | G127: П226003 | H127: 306 | I127: 5 | J127: 64,417.50
A128: 0707 | B128: 3810182320 | C128: 244 | D128: 226 | E128: 860 | F128: 99998 | G128: П226098 | H128: 306 | I128: 5 | J128: 5,827.50
A129: 0707 | B129: 3810182320 | C129: 244 | D129: 341 | E129: 860 | F129: 99998 | G129: П341006 | H129: 306 | I129: 5 | J129: 472.50
A130: 0707 | B130: 3810182320 | C130: 244 | D130: 346 | E130: 860 | F130: 99998 | G130: П346017 | H130: 306 | I130: 5 | J130: 525.00
A131: 1004 | B131: 0310225510 | C131: 244 | D131: 226 | E131: 860 | F131: 20000 | G131: П226003 | H131: 308 | I131: 5 | J131: 1,135,277.00
A132: Итого | J132: 82,235,000.74

Sheet 224,247 (hidden)
A1: муниципальное казенное учреждение "Департамент по бюджету и финансам муниципального образования "Нижнекамский муниципальный район" Республики Татарстан
A2: (наименование органа, исполняющего бюджет)
A4: на 02.06.2021 г.
A5: Дата печати 01.06.2021 (12:09:18)
A7: Бюджет: бюджет Нижнекамского муниципального района
A8: Бланк расходов: МБОУ "Средняя общеобразовательная школа N 27"(иные суб), МБОУ "Средняя общеобразовательная школа N 27", МБОУ "Средняя общеобразовательная школа №27 с углубленным изучением отдельных предметов"(платные)
A10: руб.
A11: КФСР | B11: КЦСР | C11: КВР | D11: КОСГУ | E11: КВСР | F11: Доп. ФК | G11: Доп. ЭК | H11: Доп. КР | I11: КВФО | J11: Лимиты 2021
A12: 0603 | B12: 0910174460 | C12: 244 | D12: 226 | E12: 860 | F12: 00000 | G12: П226003 | H12: 310 | I12: 5 | J12: 117,770.40
A13: 0702 | B13: 0220143624 | C13: 111 | D13: 211 | E13: 860 | F13: 20000 | G13: П211004 | H13: 310 | I13: 5 | J13: 43,284.56
A14: 0702 | B14: 0220143624 | C14: 119 | D14: 213 | E14: 860 | F14: 20000 | G14: П213004 | H14: 310 | I14: 5 | J14: 13,071.92
A15: 0702 | B15: 0220242100 | C15: 111 | D15: 211 | E15: 860 | F15: 00000 | G15: П211004 | H15: 509 | I15: 2 | J15: 22,494.18
A16: 0702 | B16: 0220242100 | C16: 111 | D16: 211 | E16: 860 | F16: 00000 | G16: П211004 | H16: 521 | I16: 2 | J16: 1,297,630.00
A17: 0702 | B17: 0220242100 | C17: 111 | D17: 211 | E17: 860 | F17: 00000 | G17: П211005 | H17: 509 | I17: 2 | J17: 5,111.11
A18: 0702 | B18: 0220242100 | C18: 111 | D18: 211 | E18: 860 | F18: 00000 | G18: П211005 | H18: 521 | I18: 2 | J18: 1,080,000.00
A19: 0702 | B19: 0220242100 | C19: 111 | D19: 211 | E19: 860 | F19: 00000 | G19: П211099 | H19: 304 | I19: 4 | J19: 3,959,020.52
A20: 0702 | B20: 0220242100 | C20: 111 | D20: 211 | E20: 860 | F20: 00000 | G20: П211099 | H20: 509 | I20: 2 | J20: 5,146.47
A21: 0702 | B21: 0220242100 | C21: 111 | D21: 211 | E21: 860 | F21: 00000 | G21: П211099 | H21: 521 | I21: 2 | J21: 210,000.00
A22: 0702 | B22: 0220242100 | C22: 111 | D22: 266 | E22: 860 | F22: 00000 | G22: П266099 | H22: 304 | I22: 4 | J22: 10,000.00
A23: 0702 | B23: 0220242100 | C23: 111 | D23: 266 | E23: 860 | F23: 00000 | G23: П266099 | H23: 521 | I23: 2 | J23: 20,000.00
A24: 0702 | B24: 0220242100 | C24: 112 | D24: 226 | E24: 860 | F24: 00000 | G24: П226024 | H24: 521 | I24: 2 | J24: 6,050.00
A25: 0702 | B25: 0220242100 | C25: 112 | D25: 226 | E25: 860 | F25: 00000 | G25: П226042 | H25: 310 | I25: 5 | J25: 7,700.00
A26: 0702 | B26: 0220242100 | C26: 113 | D26: 226 | E26: 860 | F26: 00000 | G26: П226042 | H26: 310 | I26: 5 | J26: 10,800.00
A27: 0702 | B27: 0220242100 | C27: 113 | D27: 226 | E27: 860 | F27: 00000 | G27: П226043 | H27: 591 | I27: 2 | J27: 6,600.00
A28: 0702 | B28: 0220242100 | C28: 113 | D28: 296 | E28: 860 | F28: 00000 | G28: П296099 | H28: 591 | I28: 2 | J28: 21,400.00
A29: 0702 | B29: 0220242100 | C29: 119 | D29: 213 | E29: 860 | F29: 00000 | G29: П213004 | H29: 509 | I29: 2 | J29: 6,793.24
A30: 0702 | B30: 0220242100 | C30: 119 | D30: 213 | E30: 860 | F30: 00000 | G30: П213004 | H30: 521 | I30: 2 | J30: 397,924.00
A31: 0702 | B31: 0220242100 | C31: 119 | D31: 213 | E31: 860 | F31: 00000 | G31: П213005 | H31: 509 | I31: 2 | J31: 1,543.56
A32: 0702 | B32: 0220242100 | C32: 119 | D32: 213 | E32: 860 | F32: 00000 | G32: П213005 | H32: 521 | I32: 2 | J32: 326,160.00
A33: 0702 | B33: 0220242100 | C33: 119 | D33: 213 | E33: 860 | F33: 00000 | G33: П213099 | H33: 304 | I33: 4 | J33: 1,198,644.20
A34: 0702 | B34: 0220242100 | C34: 119 | D34: 213 | E34: 860 | F34: 00000 | G34: П213099 | H34: 509 | I34: 2 | J34: 1,554.23
A35: 0702 | B35: 0220242100 | C35: 119 | D35: 213 | E35: 860 | F35: 00000 | G35: П213099 | H35: 521 | I35: 2 | J35: 63,420.00
A36: 0702 | B36: 0220242100 | C36: 244 | D36: 221 | E36: 860 | F36: 00000 | G36: П221099 | H36: 304 | I36: 4 | J36: 21,816.00
A37: 0702 | B37: 0220242100 | C37: 244 | D37: 221 | E37: 860 | F37: 00000 | G37: П221099 | H37: 521 | I37: 2 | J37: 50,000.00
A38: 0702 | B38: 0220242100 | C38: 244 | D38: 223 | E38: 860 | F38: 00000 | G38: П223004 | H38: 304 | I38: 4 | J38: 7,709.40
A39: 0702 | B39: 0220242100 | C39: 244 | D39: 223 | E39: 860 | F39: 00000 | G39: П223004 | H39: 521 | I39: 2 | J39: 110,000.00
A40: 0702 | B40: 0220242100 | C40: 244 | D40: 223 | E40: 860 | F40: 00000 | G40: П223004 | H40: 523 | I40: 2 | J40: 247,152.60
A41: 0702 | B41: 0220242100 | C41: 244 | D41: 223 | E41: 860 | F41: 00000 | G41: П223004 | H41: 593 | I41: 2 | J41: 135.36
A42: 0702 | B42: 0220242100 | C42: 244 | D42: 223 | E42: 860 | F42: 00000 | G42: П223017 | H42: 304 | I42: 4 | J42: 92,723.14
A43: 0702 | B43: 0220242100 | C43: 244 | D43: 225 | E43: 860 | F43: 00000 | G43: Н225006 | H43: 521 | I43: 2 | J43: 1,500.00
A44: 0702 | B44: 0220242100 | C44: 244 | D44: 225 | E44: 860 | F44: 00000 | G44: Н225007 | H44: 521 | I44: 2 | J44: 7,800.00
A45: 0702 | B45: 0220242100 | C45: 244 | D45: 225 | E45: 860 | F45: 00000 | G45: Н225099 | H45: 593 | I45: 2 | J45: 3,094.98
A46: 0702 | B46: 0220242100 | C46: 244 | D46: 225 | E46: 860 | F46: 00000 | G46: П225002 | H46: 521 | I46: 2 | J46: 28,500.00
A47: 0702 | B47: 0220242100 | C47: 244 | D47: 225 | E47: 860 | F47: 00000 | G47: П225002 | H47: 523 | I47: 2 | J47: 54,596.31
A48: 0702 | B48: 0220242100 | C48: 244 | D48: 225 | E48: 860 | F48: 00000 | G48: П225002 | H48: 591 | I48: 2 | J48: 2,619.66
A49: 0702 | B49: 0220242100 | C49: 244 | D49: 225 | E49: 860 | F49: 00000 | G49: П225002 | H49: 593 | I49: 2 | J49: 2,060.10
A50: 0702 | B50: 0220242100 | C50: 244 | D50: 225 | E50: 860 | F50: 00000 | G50: П225003 | H50: 304 | I50: 4 | J50: 68,164.32
A51: 0702 | B51: 0220242100 | C51: 244 | D51: 225 | E51: 860 | F51: 00000 | G51: П225003 | H51: 521 | I51: 2 | J51: 25,600.00
A52: 0702 | B52: 0220242100 | C52: 244 | D52: 225 | E52: 860 | F52: 00000 | G52: П225003 | H52: 591 | I52: 2 | J52: 14,862.96
A53: 0702 | B53: 0220242100 | C53: 244 | D53: 225 | E53: 860 | F53: 00000 | G53: П225003 | H53: 593 | I53: 2 | J53: 1,593.36
A54: 0702 | B54: 0220242100 | C54: 244 | D54: 225 | E54: 860 | F54: 00000 | G54: П225004 | H54: 521 | I54: 2 | J54: 8,800.00
A55: 0702 | B55: 0220242100 | C55: 244 | D55: 225 | E55: 860 | F55: 00000 | G55: П225010 | H55: 521 | I55: 2 | J55: 10,000.00
A56: 0702 | B56: 0220242100 | C56: 244 | D56: 225 | E56: 860 | F56: 00000 | G56: П225012 | H56: 521 | I56: 2 | J56: 10,000.00
A57: 0702 | B57: 0220242100 | C57: 244 | D57: 225 | E57: 860 | F57: 00000 | G57: П225012 | H57: 523 | I57: 2 | J57: 25,000.00
A58: 0702 | B58: 0220242100 | C58: 244 | D58: 225 | E58: 860 | F58: 00000 | G58: П225015 | H58: 591 | I58: 2 | J58: 7,500.00
A59: 0702 | B59: 0220242100 | C59: 244 | D59: 225 | E59: 860 | F59: 00000 | G59: П225098 | H59: 521 | I59: 2 | J59: 4,000.00
A60: 0702 | B60: 0220242100 | C60: 244 | D60: 225 | E60: 860 | F60: 00000 | G60: П225098 | H60: 591 | I60: 2 | J60: 37,036.00
A61: 0702 | B61: 0220242100 | C61: 244 | D61: 226 | E61: 860 | F61: 00000 | G61: П226003 | H61: 304 | I61: 4 | J61: 449,004.00
A62: 0702 | B62: 0220242100 | C62: 244 | D62: 226 | E62: 860 | F62: 00000 | G62: П226003 | H62: 308 | I62: 4 | J62: 1,393,917.22
A63: 0702 | B63: 0220242100 | C63: 244 | D63: 226 | E63: 860 | F63: 00000 | G63: П226003 | H63: 522 | I63: 2 | J63: 7,930,176.20
A64: 0702 | B64: 0220242100 | C64: 244 | D64: 226 | E64: 860 | F64: 00000 | G64: П226003 | H64: 592 | I64: 2 | J64: 100,619.18
A65: 0702 | B65: 0220242100 | C65: 244 | D65: 226 | E65: 860 | F65: 00000 | G65: П226004 | H65: 308 | I65: 4 | J65: 16,863.00
A66: 0702 | B66: 0220242100 | C66: 244 | D66: 226 | E66: 860 | F66: 00000 | G66: П226004 | H66: 521 | I66: 2 | J66: 18,000.00
A67: 0702 | B67: 0220242100 | C67: 244 | D67: 226 | E67: 860 | F67: 00000 | G67: П226010 | H67: 521 | I67: 2 | J67: 32,310.00
A68: 0702 | B68: 0220242100 | C68: 244 | D68: 226 | E68: 860 | F68: 00000 | G68: П226015 | H68: 521 | I68: 2 | J68: 2,690.00
A69: 0702 | B69: 0220242100 | C69: 244 | D69: 226 | E69: 860 | F69: 00000 | G69: П226098 | H69: 308 | I69: 4 | J69: 22,452.00
A70: 0702 | B70: 0220242100 | C70: 244 | D70: 226 | E70: 860 | F70: 00000 | G70: П226098 | H70: 521 | I70: 2 | J70: 106,500.00
A71: 0702 | B71: 0220242100 | C71: 244 | D71: 226 | E71: 860 | F71: 00000 | G71: П226098 | H71: 591 | I71: 2 | J71: 68,077.05
A72: 0702 | B72: 0220242100 | C72: 244 | D72: 226 | E72: 860 | F72: 00000 | G72: П226098 | H72: 593 | I72: 2 | J72: 12,000.00
A73: 0702 | B73: 0220242100 | C73: 244 | D73: 227 | E73: 860 | F73: 90210 | G73: П227002 | H73: 521 | I73: 2 | J73: 6,000.00
A74: 0702 | B74: 0220242100 | C74: 244 | D74: 310 | E74: 860 | F74: 00000 | G74: П310098 | H74: 521 | I74: 2 | J74: 148,571.00
A75: 0702 | B75: 0220242100 | C75: 244 | D75: 310 | E75: 860 | F75: 00000 | G75: П310098 | H75: 523 | I75: 2 | J75: 25,403.69
A76: 0702 | B76: 0220242100 | C76: 244 | D76: 310 | E76: 860 | F76: 00000 | G76: П310098 | H76: 591 | I76: 2 | J76: 154,571.00
A77: 0702 | B77: 0220242100 | C77: 244 | D77: 310 | E77: 860 | F77: 00000 | G77: П310098 | H77: 593 | I77: 2 | J77: 33,473.23
A78: 0702 | B78: 0220242100 | C78: 244 | D78: 341 | E78: 860 | F78: 00000 | G78: П341006 | H78: 591 | I78: 2 | J78: 5,042.94
A79: 0702 | B79: 0220242100 | C79: 244 | D79: 344 | E79: 860 | F79: 00000 | G79: Н344099 | H79: 521 | I79: 2 | J79: 88,461.33
A80: 0702 | B80: 0220242100 | C80: 244 | D80: 344 | E80: 860 | F80: 00000 | G80: Н344099 | H80: 523 | I80: 2 | J80: 40,000.00
A81: 0702 | B81: 0220242100 | C81: 244 | D81: 344 | E81: 860 | F81: 00000 | G81: Н344099 | H81: 591 | I81: 2 | J81: 76,740.36
A82: 0702 | B82: 0220242100 | C82: 244 | D82: 345 | E82: 860 | F82: 00000 | G82: П345099 | H82: 591 | I82: 2 | J82: 2,709.33
A83: 0702 | B83: 0220242100 | C83: 244 | D83: 346 | E83: 860 | F83: 00000 | G83: П346003 | H83: 304 | I83: 4 | J83: 10,000.00
A84: 0702 | B84: 0220242100 | C84: 244 | D84: 346 | E84: 860 | F84: 00000 | G84: П346003 | H84: 521 | I84: 2 | J84: 100,000.00
A85: 0702 | B85: 0220242100 | C85: 244 | D85: 346 | E85: 860 | F85: 00000 | G85: П346003 | H85: 591 | I85: 2 | J85: 4,320.00
A86: 0702 | B86: 0220242100 | C86: 244 | D86: 346 | E86: 860 | F86: 00000 | G86: П346017 | H86: 521 | I86: 2 | J86: 55,000.00
A87: 0702 | B87: 0220242100 | C87: 244 | D87: 346 | E87: 860 | F87: 00000 | G87: П346017 | H87: 523 | I87: 2 | J87: 20,000.00
A88: 0702 | B88: 0220242100 | C88: 244 | D88: 346 | E88: 860 | F88: 00000 | G88: П346017 | H88: 591 | I88: 2 | J88: 67,680.00
A89: 0702 | B89: 0220242100 | C89: 244 | D89: 349 | E89: 860 | F89: 00000 | G89: Н349099 | H89: 521 | I89: 2 | J89: 112,000.00
A90: 0702 | B90: 0220242100 | C90: 247 | D90: 223 | E90: 860 | F90: 00000 | G90: П223001 | H90: 304 | I90: 4 | J90: 576,243.00
A91: 0702 | B91: 0220242100 | C91: 247 | D91: 223 | E91: 860 | F91: 00000 | G91: П223001 | H91: 521 | I91: 2 | J91: 95,000.00
A92: 0702 | B92: 0220242100 | C92: 247 | D92: 223 | E92: 860 | F92: 00000 | G92: П223001 | H92: 523 | I92: 2 | J92: 801,043.23
A93: 0702 | B93: 0220242100 | C93: 247 | D93: 223 | E93: 860 | F93: 00000 | G93: П223001 | H93: 593 | I93: 2 | J93: 33,368.11
A94: 0702 | B94: 0220242100 | C94: 247 | D94: 223 | E94: 860 | F94: 00000 | G94: П223002 | H94: 304 | I94: 4 | J94: 2,476,170.00
A95: 0702 | B95: 0220242100 | C95: 247 | D95: 223 | E95: 860 | F95: 00000 | G95: П223002 | H95: 521 | I95: 2 | J95: 100,000.00
A96: 0702 | B96: 0220242100 | C96: 851 | D96: 291 | E96: 860 | F96: 00000 | G96: П291001 | H96: 304 | I96: 4 | J96: 375,723.45
A97: 0702 | B97: 0220242100 | C97: 851 | D97: 291 | E97: 860 | F97: 00000 | G97: П291001 | H97: 308 | I97: 4 | J97: 638,220.35
A98: 0702 | B98: 0220242100 | C98: 851 | D98: 291 | E98: 860 | F98: 00000 | G98: П291014 | H98: 308 | I98: 4 | J98: 771,810.08
A99: 0702 | B99: 0220242100 | C99: 852 | D99: 291 | E99: 860 | F99: 00000 | G99: П291005 | H99: 521 | I99: 2 | J99: 3,500.00
A100: 0702 | B100: 0220242100 | C100: 852 | D100: 291 | E100: 860 | F100: 00000 | G100: П291015 | H100: 308 | I100: 4 | J100: 2,064.00
A101: 0702 | B101: 0220242100 | C101: 852 | D101: 291 | E101: 860 | F101: 00000 | G101: П291015 | H101: 591 | I101: 2 | J101: 17.00
A102: 0702 | B102: 02202S0050 | C102: 111 | D102: 211 | E102: 860 | F102: 13120 | G102: П211005 | H102: 305 | I102: 4 | J102: 1,883,192.94
A103: 0702 | B103: 02202S0050 | C103: 119 | D103: 213 | E103: 860 | F103: 13120 | G103: П213005 | H103: 305 | I103: 4 | J103: 568,724.27
A104: 0702 | B104: 0220825280 | C104: 111 | D104: 211 | E104: 860 | F104: 13597 | G104: П211004 | H104: 302 | I104: 4 | J104: 824,162.83
A105: 0702 | B105: 0220825280 | C105: 111 | D105: 211 | E105: 860 | F105: 20000 | G105: П211004 | H105: 302 | I105: 4 | J105: 29,184,211.20
A106: 0702 | B106: 0220825280 | C106: 111 | D106: 211 | E106: 860 | F106: 20000 | G106: П211005 | H106: 302 | I106: 4 | J106: 2,923,500.14
A107: 0702 | B107: 0220825280 | C107: 111 | D107: 266 | E107: 860 | F107: 20000 | G107: П266099 | H107: 302 | I107: 4 | J107: 175,000.00
A108: 0702 | B108: 0220825280 | C108: 119 | D108: 213 | E108: 860 | F108: 13597 | G108: П213004 | H108: 302 | I108: 4 | J108: 248,897.17
A109: 0702 | B109: 0220825280 | C109: 119 | D109: 213 | E109: 860 | F109: 20000 | G109: П213004 | H109: 302 | I109: 4 | J109: 8,858,931.78
A110: 0702 | B110: 0220825280 | C110: 119 | D110: 213 | E110: 860 | F110: 20000 | G110: П213005 | H110: 302 | I110: 4 | J110: 890,447.04
A111: 0702 | B111: 0220853031 | C111: 111 | D111: 211 | E111: 860 | F111: 13300 | G111: П211004 | H111: 100 | I111: 1 | J111: 2,460,000.00
A112: 0702 | B112: 0220853031 | C112: 119 | D112: 213 | E112: 860 | F112: 13300 | G112: П213004 | H112: 100 | I112: 1 | J112: 742,920.00
A113: 0702 | B113: 02209L3040 | C113: 244 | D113: 226 | E113: 860 | F113: 00000 | G113: П226003 | H113: 303 | I113: 4 | J113: 4,822,282.08
A114: 0702 | B114: 0510152202 | C114: 244 | D114: 225 | E114: 860 | F114: 00000 | G114: П225001 | H114: 308 | I114: 4 | J114: 6,302.76
A115: 0702 | B115: 0710152207 | C115: 244 | D115: 225 | E115: 860 | F115: 00000 | G115: П225001 | H115: 308 | I115: 4 | J115: 46,920.00
A116: 0702 | B116: 0710152207 | C116: 244 | D116: 226 | E116: 860 | F116: 00000 | G116: П226098 | H116: 308 | I116: 4 | J116: 4,000.00
A117: 0702 | B117: 0710152207 | C117: 244 | D117: 228 | E117: 860 | F117: 00000 | G117: П228005 | H117: 308 | I117: 4 | J117: 20,000.00
A118: 0702 | B118: 0710152207 | C118: 244 | D118: 346 | E118: 860 | F118: 00000 | G118: Н346099 | H118: 308 | I118: 4 | J118: 33,480.00
A119: 0702 | B119: 0710152207 | C119: 244 | D119: 346 | E119: 860 | F119: 00000 | G119: П346003 | H119: 308 | I119: 4 | J119: 2,300.00
A120: 0702 | B120: 0710152207 | C120: 244 | D120: 346 | E120: 860 | F120: 00000 | G120: П346098 | H120: 308 | I120: 4 | J120: 37,020.00
A121: 0702 | B121: 2700152208 | C121: 244 | D121: 310 | E121: 860 | F121: 00000 | G121: П310098 | H121: 521 | I121: 2 | J121: 1,429.00
A122: 0707 | B122: 0610152203 | C122: 113 | D122: 296 | E122: 860 | F122: 00000 | G122: П296099 | H122: 310 | I122: 5 | J122: 192,000.00
A123: 0707 | B123: 3810121320 | C123: 244 | D123: 226 | E123: 860 | F123: 12800 | G123: П226003 | H123: 306 | I123: 5 | J123: 409,117.65
A124: 0707 | B124: 3810121320 | C124: 244 | D124: 226 | E124: 860 | F124: 12800 | G124: П226098 | H124: 306 | I124: 5 | J124: 37,222.50
A125: 0707 | B125: 3810121320 | C125: 244 | D125: 341 | E125: 860 | F125: 12800 | G125: П341006 | H125: 306 | I125: 5 | J125: 3,851.55
A126: 0707 | B126: 3810121320 | C126: 244 | D126: 346 | E126: 860 | F126: 12800 | G126: П346017 | H126: 306 | I126: 5 | J126: 2,445.00
A127: 0707 | B127: 3810182320 | C127: 244 | D127: 226 | E127: 860 | F127: 99998 | G127: П226003 | H127: 306 | I127: 5 | J127: 64,417.50
A128: 0707 | B128: 3810182320 | C128: 244 | D128: 226 | E128: 860 | F128: 99998 | G128: П226098 | H128: 306 | I128: 5 | J128: 5,827.50
A129: 0707 | B129: 3810182320 | C129: 244 | D129: 341 | E129: 860 | F129: 99998 | G129: П341006 | H129: 306 | I129: 5 | J129: 472.50
A130: 0707 | B130: 3810182320 | C130: 244 | D130: 346 | E130: 860 | F130: 99998 | G130: П346017 | H130: 306 | I130: 5 | J130: 525.00
A131: 1004 | B131: 0310225510 | C131: 244 | D131: 226 | E131: 860 | F131: 20000 | G131: П226003 | H131: 308 | I131: 5 | J131: 1,135,277.00
A132: Итого | J132: 82,235,000.74
J133: =SUBTOTAL(9, J12:J132) -> 22,777,330.50
C134: 247 | D134: 223 | J134: =J90+J91+J92+J93+J94+J95 -> 4,081,824.34
C135: 244 | D135: 221 | J135: =J36+J37 -> 71,816.00
C136: 244 | D136: 223 | J136: =J38+J39+J40+J41+J42 -> 457,720.50
C137: 244 | D137: 225 | J137: =J43+J44+J45+J46+J47+J48+J49+J50+J51+J52+J53+J54+J55+J56+J57+J58+J59+J60+J114+J115 -> 365,950.45
C138: 244 | D138: 226 | J138: =J12+J61+J62+J63+J64+J65+J66+J67+J68+J69+J70+J71+J72+J113+J116+J123+J124+J127+J128+J131 -> 16,748,523.28
C139: 244 | D139: 227 | J139: =J73 -> 6,000.00
C140: 244 | D140: 228 | J140: =J117 -> 20,000.00
C141: 244 | D141: 310 | J141: =J74+J75+J76+J77+J121 -> 363,447.92
C142: 244 | D142: 341 | J142: =J78+J125+J129 -> 9,366.99
C143: 244 | D143: 342
C144: 244 | D144: 343
C145: 244 | D145: 344 | J145: =J79+J80+J81 -> 205,201.69
C146: 244 | D146: 345 | J146: =J82 -> 2,709.33
C147: 244 | D147: 346 | J147: =J83+J84+J85+J86+J87+J88+J118+J119+J120+J126+J130 -> 332,770.00
C148: 244 | D148: 349 | J148: =J89 -> 112,000.00

Sheet 111,119 (hidden)
A1: муниципальное казенное учреждение "Департамент по бюджету и финансам муниципального образования "Нижнекамский муниципальный район" Республики Татарстан
A2: (наименование органа, исполняющего бюджет)
A4: на 02.06.2021 г.
A5: Дата печати 01.06.2021 (12:09:18)
A7: Бюджет: бюджет Нижнекамского муниципального района
A8: Бланк расходов: МБОУ "Средняя общеобразовательная школа N 27"(иные суб), МБОУ "Средняя общеобразовательная школа N 27", МБОУ "Средняя общеобразовательная школа №27 с углубленным изучением отдельных предметов"(платные)
A10: руб.
A11: КФСР | B11: КЦСР | C11: КВР | D11: КОСГУ | E11: КВСР | F11: Доп. ФК | G11: Доп. ЭК | H11: Доп. КР | I11: КВФО | J11: Лимиты 2021
A12: 0603 | B12: 0910174460 | C12: 244 | D12: 226 | E12: 860 | F12: 00000 | G12: П226003 | H12: 310 | I12: 5 | J12: 117,770.40
A13: 0702 | B13: 0220143624 | C13: 111 | D13: 211 | E13: 860 | F13: 20000 | G13: П211004 | H13: 310 | I13: 5 | J13: 43,284.56
A14: 0702 | B14: 0220143624 | C14: 119 | D14: 213 | E14: 860 | F14: 20000 | G14: П213004 | H14: 310 | I14: 5 | J14: 13,071.92
A15: 0702 | B15: 0220242100 | C15: 111 | D15: 211 | E15: 860 | F15: 00000 | G15: П211004 | H15: 509 | I15: 2 | J15: 22,494.18
A16: 0702 | B16: 0220242100 | C16: 111 | D16: 211 | E16: 860 | F16: 00000 | G16: П211004 | H16: 521 | I16: 2 | J16: 1,297,630.00
A17: 0702 | B17: 0220242100 | C17: 111 | D17: 211 | E17: 860 | F17: 00000 | G17: П211005 | H17: 509 | I17: 2 | J17: 5,111.11
A18: 0702 | B18: 0220242100 | C18: 111 | D18: 211 | E18: 860 | F18: 00000 | G18: П211005 | H18: 521 | I18: 2 | J18: 1,080,000.00
A19: 0702 | B19: 0220242100 | C19: 111 | D19: 211 | E19: 860 | F19: 00000 | G19: П211099 | H19: 304 | I19: 4 | J19: 3,959,020.52
A20: 0702 | B20: 0220242100 | C20: 111 | D20: 211 | E20: 860 | F20: 00000 | G20: П211099 | H20: 509 | I20: 2 | J20: 5,146.47
A21: 0702 | B21: 0220242100 | C21: 111 | D21: 211 | E21: 860 | F21: 00000 | G21: П211099 | H21: 521 | I21: 2 | J21: 210,000.00
A22: 0702 | B22: 0220242100 | C22: 111 | D22: 266 | E22: 860 | F22: 00000 | G22: П266099 | H22: 304 | I22: 4 | J22: 10,000.00
A23: 0702 | B23: 0220242100 | C23: 111 | D23: 266 | E23: 860 | F23: 00000 | G23: П266099 | H23: 521 | I23: 2 | J23: 20,000.00
A24: 0702 | B24: 0220242100 | C24: 112 | D24: 226 | E24: 860 | F24: 00000 | G24: П226024 | H24: 521 | I24: 2 | J24: 6,050.00
A25: 0702 | B25: 0220242100 | C25: 112 | D25: 226 | E25: 860 | F25: 00000 | G25: П226042 | H25: 310 | I25: 5 | J25: 7,700.00
A26: 0702 | B26: 0220242100 | C26: 113 | D26: 226 | E26: 860 | F26: 00000 | G26: П226042 | H26: 310 | I26: 5 | J26: 10,800.00
A27: 0702 | B27: 0220242100 | C27: 113 | D27: 226 | E27: 860 | F27: 00000 | G27: П226043 | H27: 591 | I27: 2 | J27: 6,600.00
A28: 0702 | B28: 0220242100 | C28: 113 | D28: 296 | E28: 860 | F28: 00000 | G28: П296099 | H28: 591 | I28: 2 | J28: 21,400.00
A29: 0702 | B29: 0220242100 | C29: 119 | D29: 213 | E29: 860 | F29: 00000 | G29: П213004 | H29: 509 | I29: 2 | J29: 6,793.24
A30: 0702 | B30: 0220242100 | C30: 119 | D30: 213 | E30: 860 | F30: 00000 | G30: П213004 | H30: 521 | I30: 2 | J30: 397,924.00
A31: 0702 | B31: 0220242100 | C31: 119 | D31: 213 | E31: 860 | F31: 00000 | G31: П213005 | H31: 509 | I31: 2 | J31: 1,543.56
A32: 0702 | B32: 0220242100 | C32: 119 | D32: 213 | E32: 860 | F32: 00000 | G32: П213005 | H32: 521 | I32: 2 | J32: 326,160.00
A33: 0702 | B33: 0220242100 | C33: 119 | D33: 213 | E33: 860 | F33: 00000 | G33: П213099 | H33: 304 | I33: 4 | J33: 1,198,644.20
A34: 0702 | B34: 0220242100 | C34: 119 | D34: 213 | E34: 860 | F34: 00000 | G34: П213099 | H34: 509 | I34: 2 | J34: 1,554.23
A35: 0702 | B35: 0220242100 | C35: 119 | D35: 213 | E35: 860 | F35: 00000 | G35: П213099 | H35: 521 | I35: 2 | J35: 63,420.00
A36: 0702 | B36: 0220242100 | C36: 244 | D36: 221 | E36: 860 | F36: 00000 | G36: П221099 | H36: 304 | I36: 4 | J36: 21,816.00
A37: 0702 | B37: 0220242100 | C37: 244 | D37: 221 | E37: 860 | F37: 00000 | G37: П221099 | H37: 521 | I37: 2 | J37: 50,000.00
A38: 0702 | B38: 0220242100 | C38: 244 | D38: 223 | E38: 860 | F38: 00000 | G38: П223004 | H38: 304 | I38: 4 | J38: 7,709.40
A39: 0702 | B39: 0220242100 | C39: 244 | D39: 223 | E39: 860 | F39: 00000 | G39: П223004 | H39: 521 | I39: 2 | J39: 110,000.00
A40: 0702 | B40: 0220242100 | C40: 244 | D40: 223 | E40: 860 | F40: 00000 | G40: П223004 | H40: 523 | I40: 2 | J40: 247,152.60
A41: 0702 | B41: 0220242100 | C41: 244 | D41: 223 | E41: 860 | F41: 00000 | G41: П223004 | H41: 593 | I41: 2 | J41: 135.36
A42: 0702 | B42: 0220242100 | C42: 244 | D42: 223 | E42: 860 | F42: 00000 | G42: П223017 | H42: 304 | I42: 4 | J42: 92,723.14
A43: 0702 | B43: 0220242100 | C43: 244 | D43: 225 | E43: 860 | F43: 00000 | G43: Н225006 | H43: 521 | I43: 2 | J43: 1,500.00
A44: 0702 | B44: 0220242100 | C44: 244 | D44: 225 | E44: 860 | F44: 00000 | G44: Н225007 | H44: 521 | I44: 2 | J44: 7,800.00
A45: 0702 | B45: 0220242100 | C45: 244 | D45: 225 | E45: 860 | F45: 00000 | G45: Н225099 | H45: 593 | I45: 2 | J45: 3,094.98
A46: 0702 | B46: 0220242100 | C46: 244 | D46: 225 | E46: 860 | F46: 00000 | G46: П225002 | H46: 521 | I46: 2 | J46: 28,500.00
A47: 0702 | B47: 0220242100 | C47: 244 | D47: 225 | E47: 860 | F47: 00000 | G47: П225002 | H47: 523 | I47: 2 | J47: 54,596.31
A48: 0702 | B48: 0220242100 | C48: 244 | D48: 225 | E48: 860 | F48: 00000 | G48: П225002 | H48: 591 | I48: 2 | J48: 2,619.66
A49: 0702 | B49: 0220242100 | C49: 244 | D49: 225 | E49: 860 | F49: 00000 | G49: П225002 | H49: 593 | I49: 2 | J49: 2,060.10
A50: 0702 | B50: 0220242100 | C50: 244 | D50: 225 | E50: 860 | F50: 00000 | G50: П225003 | H50: 304 | I50: 4 | J50: 68,164.32
A51: 0702 | B51: 0220242100 | C51: 244 | D51: 225 | E51: 860 | F51: 00000 | G51: П225003 | H51: 521 | I51: 2 | J51: 25,600.00
A52: 0702 | B52: 0220242100 | C52: 244 | D52: 225 | E52: 860 | F52: 00000 | G52: П225003 | H52: 591 | I52: 2 | J52: 14,862.96
A53: 0702 | B53: 0220242100 | C53: 244 | D53: 225 | E53: 860 | F53: 00000 | G53: П225003 | H53: 593 | I53: 2 | J53: 1,593.36
A54: 0702 | B54: 0220242100 | C54: 244 | D54: 225 | E54: 860 | F54: 00000 | G54: П225004 | H54: 521 | I54: 2 | J54: 8,800.00
A55: 0702 | B55: 0220242100 | C55: 244 | D55: 225 | E55: 860 | F55: 00000 | G55: П225010 | H55: 521 | I55: 2 | J55: 10,000.00
A56: 0702 | B56: 0220242100 | C56: 244 | D56: 225 | E56: 860 | F56: 00000 | G56: П225012 | H56: 521 | I56: 2 | J56: 10,000.00
A57: 0702 | B57: 0220242100 | C57: 244 | D57: 225 | E57: 860 | F57: 00000 | G57: П225012 | H57: 523 | I57: 2 | J57: 25,000.00
A58: 0702 | B58: 0220242100 | C58: 244 | D58: 225 | E58: 860 | F58: 00000 | G58: П225015 | H58: 591 | I58: 2 | J58: 7,500.00
A59: 0702 | B59: 0220242100 | C59: 244 | D59: 225 | E59: 860 | F59: 00000 | G59: П225098 | H59: 521 | I59: 2 | J59: 4,000.00
A60: 0702 | B60: 0220242100 | C60: 244 | D60: 225 | E60: 860 | F60: 00000 | G60: П225098 | H60: 591 | I60: 2 | J60: 37,036.00
A61: 0702 | B61: 0220242100 | C61: 244 | D61: 226 | E61: 860 | F61: 00000 | G61: П226003 | H61: 304 | I61: 4 | J61: 449,004.00
A62: 0702 | B62: 0220242100 | C62: 244 | D62: 226 | E62: 860 | F62: 00000 | G62: П226003 | H62: 308 | I62: 4 | J62: 1,393,917.22
A63: 0702 | B63: 0220242100 | C63: 244 | D63: 226 | E63: 860 | F63: 00000 | G63: П226003 | H63: 522 | I63: 2 | J63: 7,930,176.20
A64: 0702 | B64: 0220242100 | C64: 244 | D64: 226 | E64: 860 | F64: 00000 | G64: П226003 | H64: 592 | I64: 2 | J64: 100,619.18
A65: 0702 | B65: 0220242100 | C65: 244 | D65: 226 | E65: 860 | F65: 00000 | G65: П226004 | H65: 308 | I65: 4 | J65: 16,863.00
A66: 0702 | B66: 0220242100 | C66: 244 | D66: 226 | E66: 860 | F66: 00000 | G66: П226004 | H66: 521 | I66: 2 | J66: 18,000.00
A67: 0702 | B67: 0220242100 | C67: 244 | D67: 226 | E67: 860 | F67: 00000 | G67: П226010 | H67: 521 | I67: 2 | J67: 32,310.00
A68: 0702 | B68: 0220242100 | C68: 244 | D68: 226 | E68: 860 | F68: 00000 | G68: П226015 | H68: 521 | I68: 2 | J68: 2,690.00
A69: 0702 | B69: 0220242100 | C69: 244 | D69: 226 | E69: 860 | F69: 00000 | G69: П226098 | H69: 308 | I69: 4 | J69: 22,452.00
A70: 0702 | B70: 0220242100 | C70: 244 | D70: 226 | E70: 860 | F70: 00000 | G70: П226098 | H70: 521 | I70: 2 | J70: 106,500.00
A71: 0702 | B71: 0220242100 | C71: 244 | D71: 226 | E71: 860 | F71: 00000 | G71: П226098 | H71: 591 | I71: 2 | J71: 68,077.05
A72: 0702 | B72: 0220242100 | C72: 244 | D72: 226 | E72: 860 | F72: 00000 | G72: П226098 | H72: 593 | I72: 2 | J72: 12,000.00
A73: 0702 | B73: 0220242100 | C73: 244 | D73: 227 | E73: 860 | F73: 90210 | G73: П227002 | H73: 521 | I73: 2 | J73: 6,000.00
A74: 0702 | B74: 0220242100 | C74: 244 | D74: 310 | E74: 860 | F74: 00000 | G74: П310098 | H74: 521 | I74: 2 | J74: 148,571.00
A75: 0702 | B75: 0220242100 | C75: 244 | D75: 310 | E75: 860 | F75: 00000 | G75: П310098 | H75: 523 | I75: 2 | J75: 25,403.69
A76: 0702 | B76: 0220242100 | C76: 244 | D76: 310 | E76: 860 | F76: 00000 | G76: П310098 | H76: 591 | I76: 2 | J76: 154,571.00
A77: 0702 | B77: 0220242100 | C77: 244 | D77: 310 | E77: 860 | F77: 00000 | G77: П310098 | H77: 593 | I77: 2 | J77: 33,473.23
A78: 0702 | B78: 0220242100 | C78: 244 | D78: 341 | E78: 860 | F78: 00000 | G78: П341006 | H78: 591 | I78: 2 | J78: 5,042.94
A79: 0702 | B79: 0220242100 | C79: 244 | D79: 344 | E79: 860 | F79: 00000 | G79: Н344099 | H79: 521 | I79: 2 | J79: 88,461.33
A80: 0702 | B80: 0220242100 | C80: 244 | D80: 344 | E80: 860 | F80: 00000 | G80: Н344099 | H80: 523 | I80: 2 | J80: 40,000.00
A81: 0702 | B81: 0220242100 | C81: 244 | D81: 344 | E81: 860 | F81: 00000 | G81: Н344099 | H81: 591 | I81: 2 | J81: 76,740.36
A82: 0702 | B82: 0220242100 | C82: 244 | D82: 345 | E82: 860 | F82: 00000 | G82: П345099 | H82: 591 | I82: 2 | J82: 2,709.33
A83: 0702 | B83: 0220242100 | C83: 244 | D83: 346 | E83: 860 | F83: 00000 | G83: П346003 | H83: 304 | I83: 4 | J83: 10,000.00
A84: 0702 | B84: 0220242100 | C84: 244 | D84: 346 | E84: 860 | F84: 00000 | G84: П346003 | H84: 521 | I84: 2 | J84: 100,000.00
A85: 0702 | B85: 0220242100 | C85: 244 | D85: 346 | E85: 860 | F85: 00000 | G85: П346003 | H85: 591 | I85: 2 | J85: 4,320.00
A86: 0702 | B86: 0220242100 | C86: 244 | D86: 346 | E86: 860 | F86: 00000 | G86: П346017 | H86: 521 | I86: 2 | J86: 55,000.00
A87: 0702 | B87: 0220242100 | C87: 244 | D87: 346 | E87: 860 | F87: 00000 | G87: П346017 | H87: 523 | I87: 2 | J87: 20,000.00
A88: 0702 | B88: 0220242100 | C88: 244 | D88: 346 | E88: 860 | F88: 00000 | G88: П346017 | H88: 591 | I88: 2 | J88: 67,680.00
A89: 0702 | B89: 0220242100 | C89: 244 | D89: 349 | E89: 860 | F89: 00000 | G89: Н349099 | H89: 521 | I89: 2 | J89: 112,000.00
A90: 0702 | B90: 0220242100 | C90: 247 | D90: 223 | E90: 860 | F90: 00000 | G90: П223001 | H90: 304 | I90: 4 | J90: 576,243.00
A91: 0702 | B91: 0220242100 | C91: 247 | D91: 223 | E91: 860 | F91: 00000 | G91: П223001 | H91: 521 | I91: 2 | J91: 95,000.00
A92: 0702 | B92: 0220242100 | C92: 247 | D92: 223 | E92: 860 | F92: 00000 | G92: П223001 | H92: 523 | I92: 2 | J92: 801,043.23
A93: 0702 | B93: 0220242100 | C93: 247 | D93: 223 | E93: 860 | F93: 00000 | G93: П223001 | H93: 593 | I93: 2 | J93: 33,368.11
A94: 0702 | B94: 0220242100 | C94: 247 | D94: 223 | E94: 860 | F94: 00000 | G94: П223002 | H94: 304 | I94: 4 | J94: 2,476,170.00
A95: 0702 | B95: 0220242100 | C95: 247 | D95: 223 | E95: 860 | F95: 00000 | G95: П223002 | H95: 521 | I95: 2 | J95: 100,000.00
A96: 0702 | B96: 0220242100 | C96: 851 | D96: 291 | E96: 860 | F96: 00000 | G96: П291001 | H96: 304 | I96: 4 | J96: 375,723.45
A97: 0702 | B97: 0220242100 | C97: 851 | D97: 291 | E97: 860 | F97: 00000 | G97: П291001 | H97: 308 | I97: 4 | J97: 638,220.35
A98: 0702 | B98: 0220242100 | C98: 851 | D98: 291 | E98: 860 | F98: 00000 | G98: П291014 | H98: 308 | I98: 4 | J98: 771,810.08
A99: 0702 | B99: 0220242100 | C99: 852 | D99: 291 | E99: 860 | F99: 00000 | G99: П291005 | H99: 521 | I99: 2 | J99: 3,500.00
A100: 0702 | B100: 0220242100 | C100: 852 | D100: 291 | E100: 860 | F100: 00000 | G100: П291015 | H100: 308 | I100: 4 | J100: 2,064.00
A101: 0702 | B101: 0220242100 | C101: 852 | D101: 291 | E101: 860 | F101: 00000 | G101: П291015 | H101: 591 | I101: 2 | J101: 17.00
A102: 0702 | B102: 02202S0050 | C102: 111 | D102: 211 | E102: 860 | F102: 13120 | G102: П211005 | H102: 305 | I102: 4 | J102: 1,883,192.94
A103: 0702 | B103: 02202S0050 | C103: 119 | D103: 213 | E103: 860 | F103: 13120 | G103: П213005 | H103: 305 | I103: 4 | J103: 568,724.27
A104: 0702 | B104: 0220825280 | C104: 111 | D104: 211 | E104: 860 | F104: 13597 | G104: П211004 | H104: 302 | I104: 4 | J104: 824,162.83
A105: 0702 | B105: 0220825280 | C105: 111 | D105: 211 | E105: 860 | F105: 20000 | G105: П211004 | H105: 302 | I105: 4 | J105: 29,184,211.20
A106: 0702 | B106: 0220825280 | C106: 111 | D106: 211 | E106: 860 | F106: 20000 | G106: П211005 | H106: 302 | I106: 4 | J106: 2,923,500.14
A107: 0702 | B107: 0220825280 | C107: 111 | D107: 266 | E107: 860 | F107: 20000 | G107: П266099 | H107: 302 | I107: 4 | J107: 175,000.00
A108: 0702 | B108: 0220825280 | C108: 119 | D108: 213 | E108: 860 | F108: 13597 | G108: П213004 | H108: 302 | I108: 4 | J108: 248,897.17
A109: 0702 | B109: 0220825280 | C109: 119 | D109: 213 | E109: 860 | F109: 20000 | G109: П213004 | H109: 302 | I109: 4 | J109: 8,858,931.78
A110: 0702 | B110: 0220825280 | C110: 119 | D110: 213 | E110: 860 | F110: 20000 | G110: П213005 | H110: 302 | I110: 4 | J110: 890,447.04
A111: 0702 | B111: 0220853031 | C111: 111 | D111: 211 | E111: 860 | F111: 13300 | G111: П211004 | H111: 100 | I111: 1 | J111: 2,460,000.00
A112: 0702 | B112: 0220853031 | C112: 119 | D112: 213 | E112: 860 | F112: 13300 | G112: П213004 | H112: 100 | I112: 1 | J112: 742,920.00
A113: 0702 | B113: 02209L3040 | C113: 244 | D113: 226 | E113: 860 | F113: 00000 | G113: П226003 | H113: 303 | I113: 4 | J113: 4,822,282.08
A114: 0702 | B114: 0510152202 | C114: 244 | D114: 225 | E114: 860 | F114: 00000 | G114: П225001 | H114: 308 | I114: 4 | J114: 6,302.76
A115: 0702 | B115: 0710152207 | C115: 244 | D115: 225 | E115: 860 | F115: 00000 | G115: П225001 | H115: 308 | I115: 4 | J115: 46,920.00
A116: 0702 | B116: 0710152207 | C116: 244 | D116: 226 | E116: 860 | F116: 00000 | G116: П226098 | H116: 308 | I116: 4 | J116: 4,000.00
A117: 0702 | B117: 0710152207 | C117: 244 | D117: 228 | E117: 860 | F117: 00000 | G117: П228005 | H117: 308 | I117: 4 | J117: 20,000.00
A118: 0702 | B118: 0710152207 | C118: 244 | D118: 346 | E118: 860 | F118: 00000 | G118: Н346099 | H118: 308 | I118: 4 | J118: 33,480.00
A119: 0702 | B119: 0710152207 | C119: 244 | D119: 346 | E119: 860 | F119: 00000 | G119: П346003 | H119: 308 | I119: 4 | J119: 2,300.00
A120: 0702 | B120: 0710152207 | C120: 244 | D120: 346 | E120: 860 | F120: 00000 | G120: П346098 | H120: 308 | I120: 4 | J120: 37,020.00
A121: 0702 | B121: 2700152208 | C121: 244 | D121: 310 | E121: 860 | F121: 00000 | G121: П310098 | H121: 521 | I121: 2 | J121: 1,429.00
A122: 0707 | B122: 0610152203 | C122: 113 | D122: 296 | E122: 860 | F122: 00000 | G122: П296099 | H122: 310 | I122: 5 | J122: 192,000.00
A123: 0707 | B123: 3810121320 | C123: 244 | D123: 226 | E123: 860 | F123: 12800 | G123: П226003 | H123: 306 | I123: 5 | J123: 409,117.65
A124: 0707 | B124: 3810121320 | C124: 244 | D124: 226 | E124: 860 | F124: 12800 | G124: П226098 | H124: 306 | I124: 5 | J124: 37,222.50
A125: 0707 | B125: 3810121320 | C125: 244 | D125: 341 | E125: 860 | F125: 12800 | G125: П341006 | H125: 306 | I125: 5 | J125: 3,851.55
A126: 0707 | B126: 3810121320 | C126: 244 | D126: 346 | E126: 860 | F126: 12800 | G126: П346017 | H126: 306 | I126: 5 | J126: 2,445.00
A127: 0707 | B127: 3810182320 | C127: 244 | D127: 226 | E127: 860 | F127: 99998 | G127: П226003 | H127: 306 | I127: 5 | J127: 64,417.50
A128: 0707 | B128: 3810182320 | C128: 244 | D128: 226 | E128: 860 | F128: 99998 | G128: П226098 | H128: 306 | I128: 5 | J128: 5,827.50
A129: 0707 | B129: 3810182320 | C129: 244 | D129: 341 | E129: 860 | F129: 99998 | G129: П341006 | H129: 306 | I129: 5 | J129: 472.50
A130: 0707 | B130: 3810182320 | C130: 244 | D130: 346 | E130: 860 | F130: 99998 | G130: П346017 | H130: 306 | I130: 5 | J130: 525.00
A131: 1004 | B131: 0310225510 | C131: 244 | D131: 226 | E131: 860 | F131: 20000 | G131: П226003 | H131: 308 | I131: 5 | J131: 1,135,277.00
A132: Итого | J132: 82,235,000.74
J133: =SUBTOTAL(9, J12:J132) -> 57,421,785.36
H134: 111 | J134: =J13+J15+J16+J17+J18+J19+J20+J21+J22+J23+J102+J104+J105+J106+J107+J111 -> 44,102,753.95
H135: 119 | J135: =J14+J29+J30+J31+J32+J33+J34+J35+J103+J108+J109+J110+J112 -> 13,319,031.41

Sheet 112,113 (hidden)
A1: муниципальное казенное учреждение "Департамент по бюджету и финансам муниципального образования "Нижнекамский муниципальный район" Республики Татарстан
A2: (наименование органа, исполняющего бюджет)
A4: на 02.06.2021 г.
A5: Дата печати 01.06.2021 (12:09:18)
A7: Бюджет: бюджет Нижнекамского муниципального района
A8: Бланк расходов: МБОУ "Средняя общеобразовательная школа N 27"(иные суб), МБОУ "Средняя общеобразовательная школа N 27", МБОУ "Средняя общеобразовательная школа №27 с углубленным изучением отдельных предметов"(платные)
A10: руб.
A11: КФСР | B11: КЦСР | C11: КВР | D11: КОСГУ | E11: КВСР | F11: Доп. ФК | G11: Доп. ЭК | H11: Доп. КР | I11: КВФО | J11: Лимиты 2021
A12: 0603 | B12: 0910174460 | C12: 244 | D12: 226 | E12: 860 | F12: 00000 | G12: П226003 | H12: 310 | I12: 5 | J12: 117,770.40
A13: 0702 | B13: 0220143624 | C13: 111 | D13: 211 | E13: 860 | F13: 20000 | G13: П211004 | H13: 310 | I13: 5 | J13: 43,284.56
A14: 0702 | B14: 0220143624 | C14: 119 | D14: 213 | E14: 860 | F14: 20000 | G14: П213004 | H14: 310 | I14: 5 | J14: 13,071.92
A15: 0702 | B15: 0220242100 | C15: 111 | D15: 211 | E15: 860 | F15: 00000 | G15: П211004 | H15: 509 | I15: 2 | J15: 22,494.18
A16: 0702 | B16: 0220242100 | C16: 111 | D16: 211 | E16: 860 | F16: 00000 | G16: П211004 | H16: 521 | I16: 2 | J16: 1,297,630.00
A17: 0702 | B17: 0220242100 | C17: 111 | D17: 211 | E17: 860 | F17: 00000 | G17: П211005 | H17: 509 | I17: 2 | J17: 5,111.11
A18: 0702 | B18: 0220242100 | C18: 111 | D18: 211 | E18: 860 | F18: 00000 | G18: П211005 | H18: 521 | I18: 2 | J18: 1,080,000.00
A19: 0702 | B19: 0220242100 | C19: 111 | D19: 211 | E19: 860 | F19: 00000 | G19: П211099 | H19: 304 | I19: 4 | J19: 3,959,020.52
A20: 0702 | B20: 0220242100 | C20: 111 | D20: 211 | E20: 860 | F20: 00000 | G20: П211099 | H20: 509 | I20: 2 | J20: 5,146.47
A21: 0702 | B21: 0220242100 | C21: 111 | D21: 211 | E21: 860 | F21: 00000 | G21: П211099 | H21: 521 | I21: 2 | J21: 210,000.00
A22: 0702 | B22: 0220242100 | C22: 111 | D22: 266 | E22: 860 | F22: 00000 | G22: П266099 | H22: 304 | I22: 4 | J22: 10,000.00
A23: 0702 | B23: 0220242100 | C23: 111 | D23: 266 | E23: 860 | F23: 00000 | G23: П266099 | H23: 521 | I23: 2 | J23: 20,000.00
A24: 0702 | B24: 0220242100 | C24: 112 | D24: 226 | E24: 860 | F24: 00000 | G24: П226024 | H24: 521 | I24: 2 | J24: 6,050.00
A25: 0702 | B25: 0220242100 | C25: 112 | D25: 226 | E25: 860 | F25: 00000 | G25: П226042 | H25: 310 | I25: 5 | J25: 7,700.00
A26: 0702 | B26: 0220242100 | C26: 113 | D26: 226 | E26: 860 | F26: 00000 | G26: П226042 | H26: 310 | I26: 5 | J26: 10,800.00
A27: 0702 | B27: 0220242100 | C27: 113 | D27: 226 | E27: 860 | F27: 00000 | G27: П226043 | H27: 591 | I27: 2 | J27: 6,600.00
A28: 0702 | B28: 0220242100 | C28: 113 | D28: 296 | E28: 860 | F28: 00000 | G28: П296099 | H28: 591 | I28: 2 | J28: 21,400.00
A29: 0702 | B29: 0220242100 | C29: 119 | D29: 213 | E29: 860 | F29: 00000 | G29: П213004 | H29: 509 | I29: 2 | J29: 6,793.24
A30: 0702 | B30: 0220242100 | C30: 119 | D30: 213 | E30: 860 | F30: 00000 | G30: П213004 | H30: 521 | I30: 2 | J30: 397,924.00
A31: 0702 | B31: 0220242100 | C31: 119 | D31: 213 | E31: 860 | F31: 00000 | G31: П213005 | H31: 509 | I31: 2 | J31: 1,543.56
A32: 0702 | B32: 0220242100 | C32: 119 | D32: 213 | E32: 860 | F32: 00000 | G32: П213005 | H32: 521 | I32: 2 | J32: 326,160.00
A33: 0702 | B33: 0220242100 | C33: 119 | D33: 213 | E33: 860 | F33: 00000 | G33: П213099 | H33: 304 | I33: 4 | J33: 1,198,644.20
A34: 0702 | B34: 0220242100 | C34: 119 | D34: 213 | E34: 860 | F34: 00000 | G34: П213099 | H34: 509 | I34: 2 | J34: 1,554.23
A35: 0702 | B35: 0220242100 | C35: 119 | D35: 213 | E35: 860 | F35: 00000 | G35: П213099 | H35: 521 | I35: 2 | J35: 63,420.00
A36: 0702 | B36: 0220242100 | C36: 244 | D36: 221 | E36: 860 | F36: 00000 | G36: П221099 | H36: 304 | I36: 4 | J36: 21,816.00
A37: 0702 | B37: 0220242100 | C37: 244 | D37: 221 | E37: 860 | F37: 00000 | G37: П221099 | H37: 521 | I37: 2 | J37: 50,000.00
A38: 0702 | B38: 0220242100 | C38: 244 | D38: 223 | E38: 860 | F38: 00000 | G38: П223004 | H38: 304 | I38: 4 | J38: 7,709.40
A39: 0702 | B39: 0220242100 | C39: 244 | D39: 223 | E39: 860 | F39: 00000 | G39: П223004 | H39: 521 | I39: 2 | J39: 110,000.00
A40: 0702 | B40: 0220242100 | C40: 244 | D40: 223 | E40: 860 | F40: 00000 | G40: П223004 | H40: 523 | I40: 2 | J40: 247,152.60
A41: 0702 | B41: 0220242100 | C41: 244 | D41: 223 | E41: 860 | F41: 00000 | G41: П223004 | H41: 593 | I41: 2 | J41: 135.36
A42: 0702 | B42: 0220242100 | C42: 244 | D42: 223 | E42: 860 | F42: 00000 | G42: П223017 | H42: 304 | I42: 4 | J42: 92,723.14
A43: 0702 | B43: 0220242100 | C43: 244 | D43: 225 | E43: 860 | F43: 00000 | G43: Н225006 | H43: 521 | I43: 2 | J43: 1,500.00
A44: 0702 | B44: 0220242100 | C44: 244 | D44: 225 | E44: 860 | F44: 00000 | G44: Н225007 | H44: 521 | I44: 2 | J44: 7,800.00
A45: 0702 | B45: 0220242100 | C45: 244 | D45: 225 | E45: 860 | F45: 00000 | G45: Н225099 | H45: 593 | I45: 2 | J45: 3,094.98
A46: 0702 | B46: 0220242100 | C46: 244 | D46: 225 | E46: 860 | F46: 00000 | G46: П225002 | H46: 521 | I46: 2 | J46: 28,500.00
A47: 0702 | B47: 0220242100 | C47: 244 | D47: 225 | E47: 860 | F47: 00000 | G47: П225002 | H47: 523 | I47: 2 | J47: 54,596.31
A48: 0702 | B48: 0220242100 | C48: 244 | D48: 225 | E48: 860 | F48: 00000 | G48: П225002 | H48: 591 | I48: 2 | J48: 2,619.66
A49: 0702 | B49: 0220242100 | C49: 244 | D49: 225 | E49: 860 | F49: 00000 | G49: П225002 | H49: 593 | I49: 2 | J49: 2,060.10
A50: 0702 | B50: 0220242100 | C50: 244 | D50: 225 | E50: 860 | F50: 00000 | G50: П225003 | H50: 304 | I50: 4 | J50: 68,164.32
A51: 0702 | B51: 0220242100 | C51: 244 | D51: 225 | E51: 860 | F51: 00000 | G51: П225003 | H51: 521 | I51: 2 | J51: 25,600.00
A52: 0702 | B52: 0220242100 | C52: 244 | D52: 225 | E52: 860 | F52: 00000 | G52: П225003 | H52: 591 | I52: 2 | J52: 14,862.96
A53: 0702 | B53: 0220242100 | C53: 244 | D53: 225 | E53: 860 | F53: 00000 | G53: П225003 | H53: 593 | I53: 2 | J53: 1,593.36
A54: 0702 | B54: 0220242100 | C54: 244 | D54: 225 | E54: 860 | F54: 00000 | G54: П225004 | H54: 521 | I54: 2 | J54: 8,800.00
A55: 0702 | B55: 0220242100 | C55: 244 | D55: 225 | E55: 860 | F55: 00000 | G55: П225010 | H55: 521 | I55: 2 | J55: 10,000.00
A56: 0702 | B56: 0220242100 | C56: 244 | D56: 225 | E56: 860 | F56: 00000 | G56: П225012 | H56: 521 | I56: 2 | J56: 10,000.00
A57: 0702 | B57: 0220242100 | C57: 244 | D57: 225 | E57: 860 | F57: 00000 | G57: П225012 | H57: 523 | I57: 2 | J57: 25,000.00
A58: 0702 | B58: 0220242100 | C58: 244 | D58: 225 | E58: 860 | F58: 00000 | G58: П225015 | H58: 591 | I58: 2 | J58: 7,500.00
A59: 0702 | B59: 0220242100 | C59: 244 | D59: 225 | E59: 860 | F59: 00000 | G59: П225098 | H59: 521 | I59: 2 | J59: 4,000.00
A60: 0702 | B60: 0220242100 | C60: 244 | D60: 225 | E60: 860 | F60: 00000 | G60: П225098 | H60: 591 | I60: 2 | J60: 37,036.00
A61: 0702 | B61: 0220242100 | C61: 244 | D61: 226 | E61: 860 | F61: 00000 | G61: П226003 | H61: 304 | I61: 4 | J61: 449,004.00
A62: 0702 | B62: 0220242100 | C62: 244 | D62: 226 | E62: 860 | F62: 00000 | G62: П226003 | H62: 308 | I62: 4 | J62: 1,393,917.22
A63: 0702 | B63: 0220242100 | C63: 244 | D63: 226 | E63: 860 | F63: 00000 | G63: П226003 | H63: 522 | I63: 2 | J63: 7,930,176.20
A64: 0702 | B64: 0220242100 | C64: 244 | D64: 226 | E64: 860 | F64: 00000 | G64: П226003 | H64: 592 | I64: 2 | J64: 100,619.18
A65: 0702 | B65: 0220242100 | C65: 244 | D65: 226 | E65: 860 | F65: 00000 | G65: П226004 | H65: 308 | I65: 4 | J65: 16,863.00
A66: 0702 | B66: 0220242100 | C66: 244 | D66: 226 | E66: 860 | F66: 00000 | G66: П226004 | H66: 521 | I66: 2 | J66: 18,000.00
A67: 0702 | B67: 0220242100 | C67: 244 | D67: 226 | E67: 860 | F67: 00000 | G67: П226010 | H67: 521 | I67: 2 | J67: 32,310.00
A68: 0702 | B68: 0220242100 | C68: 244 | D68: 226 | E68: 860 | F68: 00000 | G68: П226015 | H68: 521 | I68: 2 | J68: 2,690.00
A69: 0702 | B69: 0220242100 | C69: 244 | D69: 226 | E69: 860 | F69: 00000 | G69: П226098 | H69: 308 | I69: 4 | J69: 22,452.00
A70: 0702 | B70: 0220242100 | C70: 244 | D70: 226 | E70: 860 | F70: 00000 | G70: П226098 | H70: 521 | I70: 2 | J70: 106,500.00
A71: 0702 | B71: 0220242100 | C71: 244 | D71: 226 | E71: 860 | F71: 00000 | G71: П226098 | H71: 591 | I71: 2 | J71: 68,077.05
A72: 0702 | B72: 0220242100 | C72: 244 | D72: 226 | E72: 860 | F72: 00000 | G72: П226098 | H72: 593 | I72: 2 | J72: 12,000.00
A73: 0702 | B73: 0220242100 | C73: 244 | D73: 227 | E73: 860 | F73: 90210 | G73: П227002 | H73: 521 | I73: 2 | J73: 6,000.00
A74: 0702 | B74: 0220242100 | C74: 244 | D74: 310 | E74: 860 | F74: 00000 | G74: П310098 | H74: 521 | I74: 2 | J74: 148,571.00
A75: 0702 | B75: 0220242100 | C75: 244 | D75: 310 | E75: 860 | F75: 00000 | G75: П310098 | H75: 523 | I75: 2 | J75: 25,403.69
A76: 0702 | B76: 0220242100 | C76: 244 | D76: 310 | E76: 860 | F76: 00000 | G76: П310098 | H76: 591 | I76: 2 | J76: 154,571.00
A77: 0702 | B77: 0220242100 | C77: 244 | D77: 310 | E77: 860 | F77: 00000 | G77: П310098 | H77: 593 | I77: 2 | J77: 33,473.23
A78: 0702 | B78: 0220242100 | C78: 244 | D78: 341 | E78: 860 | F78: 00000 | G78: П341006 | H78: 591 | I78: 2 | J78: 5,042.94
A79: 0702 | B79: 0220242100 | C79: 244 | D79: 344 | E79: 860 | F79: 00000 | G79: Н344099 | H79: 521 | I79: 2 | J79: 88,461.33
A80: 0702 | B80: 0220242100 | C80: 244 | D80: 344 | E80: 860 | F80: 00000 | G80: Н344099 | H80: 523 | I80: 2 | J80: 40,000.00
A81: 0702 | B81: 0220242100 | C81: 244 | D81: 344 | E81: 860 | F81: 00000 | G81: Н344099 | H81: 591 | I81: 2 | J81: 76,740.36
A82: 0702 | B82: 0220242100 | C82: 244 | D82: 345 | E82: 860 | F82: 00000 | G82: П345099 | H82: 591 | I82: 2 | J82: 2,709.33
A83: 0702 | B83: 0220242100 | C83: 244 | D83: 346 | E83: 860 | F83: 00000 | G83: П346003 | H83: 304 | I83: 4 | J83: 10,000.00
A84: 0702 | B84: 0220242100 | C84: 244 | D84: 346 | E84: 860 | F84: 00000 | G84: П346003 | H84: 521 | I84: 2 | J84: 100,000.00
A85: 0702 | B85: 0220242100 | C85: 244 | D85: 346 | E85: 860 | F85: 00000 | G85: П346003 | H85: 591 | I85: 2 | J85: 4,320.00
A86: 0702 | B86: 0220242100 | C86: 244 | D86: 346 | E86: 860 | F86: 00000 | G86: П346017 | H86: 521 | I86: 2 | J86: 55,000.00
A87: 0702 | B87: 0220242100 | C87: 244 | D87: 346 | E87: 860 | F87: 00000 | G87: П346017 | H87: 523 | I87: 2 | J87: 20,000.00
A88: 0702 | B88: 0220242100 | C88: 244 | D88: 346 | E88: 860 | F88: 00000 | G88: П346017 | H88: 591 | I88: 2 | J88: 67,680.00
A89: 0702 | B89: 0220242100 | C89: 244 | D89: 349 | E89: 860 | F89: 00000 | G89: Н349099 | H89: 521 | I89: 2 | J89: 112,000.00
A90: 0702 | B90: 0220242100 | C90: 247 | D90: 223 | E90: 860 | F90: 00000 | G90: П223001 | H90: 304 | I90: 4 | J90: 576,243.00
A91: 0702 | B91: 0220242100 | C91: 247 | D91: 223 | E91: 860 | F91: 00000 | G91: П223001 | H91: 521 | I91: 2 | J91: 95,000.00
A92: 0702 | B92: 0220242100 | C92: 247 | D92: 223 | E92: 860 | F92: 00000 | G92: П223001 | H92: 523 | I92: 2 | J92: 801,043.23
A93: 0702 | B93: 0220242100 | C93: 247 | D93: 223 | E93: 860 | F93: 00000 | G93: П223001 | H93: 593 | I93: 2 | J93: 33,368.11
A94: 0702 | B94: 0220242100 | C94: 247 | D94: 223 | E94: 860 | F94: 00000 | G94: П223002 | H94: 304 | I94: 4 | J94: 2,476,170.00
A95: 0702 | B95: 0220242100 | C95: 247 | D95: 223 | E95: 860 | F95: 00000 | G95: П223002 | H95: 521 | I95: 2 | J95: 100,000.00
A96: 0702 | B96: 0220242100 | C96: 851 | D96: 291 | E96: 860 | F96: 00000 | G96: П291001 | H96: 304 | I96: 4 | J96: 375,723.45
A97: 0702 | B97: 0220242100 | C97: 851 | D97: 291 | E97: 860 | F97: 00000 | G97: П291001 | H97: 308 | I97: 4 | J97: 638,220.35
A98: 0702 | B98: 0220242100 | C98: 851 | D98: 291 | E98: 860 | F98: 00000 | G98: П291014 | H98: 308 | I98: 4 | J98: 771,810.08
A99: 0702 | B99: 0220242100 | C99: 852 | D99: 291 | E99: 860 | F99: 00000 | G99: П291005 | H99: 521 | I99: 2 | J99: 3,500.00
A100: 0702 | B100: 0220242100 | C100: 852 | D100: 291 | E100: 860 | F100: 00000 | G100: П291015 | H100: 308 | I100: 4 | J100: 2,064.00
A101: 0702 | B101: 0220242100 | C101: 852 | D101: 291 | E101: 860 | F101: 00000 | G101: П291015 | H101: 591 | I101: 2 | J101: 17.00
A102: 0702 | B102: 02202S0050 | C102: 111 | D102: 211 | E102: 860 | F102: 13120 | G102: П211005 | H102: 305 | I102: 4 | J102: 1,883,192.94
A103: 0702 | B103: 02202S0050 | C103: 119 | D103: 213 | E103: 860 | F103: 13120 | G103: П213005 | H103: 305 | I103: 4 | J103: 568,724.27
A104: 0702 | B104: 0220825280 | C104: 111 | D104: 211 | E104: 860 | F104: 13597 | G104: П211004 | H104: 302 | I104: 4 | J104: 824,162.83
A105: 0702 | B105: 0220825280 | C105: 111 | D105: 211 | E105: 860 | F105: 20000 | G105: П211004 | H105: 302 | I105: 4 | J105: 29,184,211.20
A106: 0702 | B106: 0220825280 | C106: 111 | D106: 211 | E106: 860 | F106: 20000 | G106: П211005 | H106: 302 | I106: 4 | J106: 2,923,500.14
A107: 0702 | B107: 0220825280 | C107: 111 | D107: 266 | E107: 860 | F107: 20000 | G107: П266099 | H107: 302 | I107: 4 | J107: 175,000.00
A108: 0702 | B108: 0220825280 | C108: 119 | D108: 213 | E108: 860 | F108: 13597 | G108: П213004 | H108: 302 | I108: 4 | J108: 248,897.17
A109: 0702 | B109: 0220825280 | C109: 119 | D109: 213 | E109: 860 | F109: 20000 | G109: П213004 | H109: 302 | I109: 4 | J109: 8,858,931.78
A110: 0702 | B110: 0220825280 | C110: 119 | D110: 213 | E110: 860 | F110: 20000 | G110: П213005 | H110: 302 | I110: 4 | J110: 890,447.04
A111: 0702 | B111: 0220853031 | C111: 111 | D111: 211 | E111: 860 | F111: 13300 | G111: П211004 | H111: 100 | I111: 1 | J111: 2,460,000.00
A112: 0702 | B112: 0220853031 | C112: 119 | D112: 213 | E112: 860 | F112: 13300 | G112: П213004 | H112: 100 | I112: 1 | J112: 742,920.00
A113: 0702 | B113: 02209L3040 | C113: 244 | D113: 226 | E113: 860 | F113: 00000 | G113: П226003 | H113: 303 | I113: 4 | J113: 4,822,282.08
A114: 0702 | B114: 0510152202 | C114: 244 | D114: 225 | E114: 860 | F114: 00000 | G114: П225001 | H114: 308 | I114: 4 | J114: 6,302.76
A115: 0702 | B115: 0710152207 | C115: 244 | D115: 225 | E115: 860 | F115: 00000 | G115: П225001 | H115: 308 | I115: 4 | J115: 46,920.00
A116: 0702 | B116: 0710152207 | C116: 244 | D116: 226 | E116: 860 | F116: 00000 | G116: П226098 | H116: 308 | I116: 4 | J116: 4,000.00
A117: 0702 | B117: 0710152207 | C117: 244 | D117: 228 | E117: 860 | F117: 00000 | G117: П228005 | H117: 308 | I117: 4 | J117: 20,000.00
A118: 0702 | B118: 0710152207 | C118: 244 | D118: 346 | E118: 860 | F118: 00000 | G118: Н346099 | H118: 308 | I118: 4 | J118: 33,480.00
A119: 0702 | B119: 0710152207 | C119: 244 | D119: 346 | E119: 860 | F119: 00000 | G119: П346003 | H119: 308 | I119: 4 | J119: 2,300.00
A120: 0702 | B120: 0710152207 | C120: 244 | D120: 346 | E120: 860 | F120: 00000 | G120: П346098 | H120: 308 | I120: 4 | J120: 37,020.00
A121: 0702 | B121: 2700152208 | C121: 244 | D121: 310 | E121: 860 | F121: 00000 | G121: П310098 | H121: 521 | I121: 2 | J121: 1,429.00
A122: 0707 | B122: 0610152203 | C122: 113 | D122: 296 | E122: 860 | F122: 00000 | G122: П296099 | H122: 310 | I122: 5 | J122: 192,000.00
A123: 0707 | B123: 3810121320 | C123: 244 | D123: 226 | E123: 860 | F123: 12800 | G123: П226003 | H123: 306 | I123: 5 | J123: 409,117.65
A124: 0707 | B124: 3810121320 | C124: 244 | D124: 226 | E124: 860 | F124: 12800 | G124: П226098 | H124: 306 | I124: 5 | J124: 37,222.50
A125: 0707 | B125: 3810121320 | C125: 244 | D125: 341 | E125: 860 | F125: 12800 | G125: П341006 | H125: 306 | I125: 5 | J125: 3,851.55
A126: 0707 | B126: 3810121320 | C126: 244 | D126: 346 | E126: 860 | F126: 12800 | G126: П346017 | H126: 306 | I126: 5 | J126: 2,445.00
A127: 0707 | B127: 3810182320 | C127: 244 | D127: 226 | E127: 860 | F127: 99998 | G127: П226003 | H127: 306 | I127: 5 | J127: 64,417.50
A128: 0707 | B128: 3810182320 | C128: 244 | D128: 226 | E128: 860 | F128: 99998 | G128: П226098 | H128: 306 | I128: 5 | J128: 5,827.50
A129: 0707 | B129: 3810182320 | C129: 244 | D129: 341 | E129: 860 | F129: 99998 | G129: П341006 | H129: 306 | I129: 5 | J129: 472.50
A130: 0707 | B130: 3810182320 | C130: 244 | D130: 346 | E130: 860 | F130: 99998 | G130: П346017 | H130: 306 | I130: 5 | J130: 525.00
A131: 1004 | B131: 0310225510 | C131: 244 | D131: 226 | E131: 860 | F131: 20000 | G131: П226003 | H131: 308 | I131: 5 | J131: 1,135,277.00
A132: Итого | J132: 82,235,000.74
I134: 112 | J134: =J24+J25 -> 13,750.00
I135: 113 | J135: =J26+J27+J28+J122 -> 230,800.00

Sheet 851 (hidden)
A1: муниципальное казенное учреждение "Департамент по бюджету и финансам муниципального образования "Нижнекамский муниципальный район" Республики Татарстан
A2: (наименование органа, исполняющего бюджет)
A4: на 02.06.2021 г.
A5: Дата печати 01.06.2021 (12:09:18)
A7: Бюджет: бюджет Нижнекамского муниципального района
A8: Бланк расходов: МБОУ "Средняя общеобразовательная школа N 27"(иные суб), МБОУ "Средняя общеобразовательная школа N 27", МБОУ "Средняя общеобразовательная школа №27 с углубленным изучением отдельных предметов"(платные)
A10: руб.
A11: КФСР | B11: КЦСР | C11: КВР | D11: КОСГУ | E11: КВСР | F11: Доп. ФК | G11: Доп. ЭК | H11: Доп. КР | I11: КВФО | J11: Лимиты 2021
A12: 0603 | B12: 0910174460 | C12: 244 | D12: 226 | E12: 860 | F12: 00000 | G12: П226003 | H12: 310 | I12: 5 | J12: 117,770.40
A13: 0702 | B13: 0220143624 | C13: 111 | D13: 211 | E13: 860 | F13: 20000 | G13: П211004 | H13: 310 | I13: 5 | J13: 43,284.56
A14: 0702 | B14: 0220143624 | C14: 119 | D14: 213 | E14: 860 | F14: 20000 | G14: П213004 | H14: 310 | I14: 5 | J14: 13,071.92
A15: 0702 | B15: 0220242100 | C15: 111 | D15: 211 | E15: 860 | F15: 00000 | G15: П211004 | H15: 509 | I15: 2 | J15: 22,494.18
A16: 0702 | B16: 0220242100 | C16: 111 | D16: 211 | E16: 860 | F16: 00000 | G16: П211004 | H16: 521 | I16: 2 | J16: 1,297,630.00
A17: 0702 | B17: 0220242100 | C17: 111 | D17: 211 | E17: 860 | F17: 00000 | G17: П211005 | H17: 509 | I17: 2 | J17: 5,111.11
A18: 0702 | B18: 0220242100 | C18: 111 | D18: 211 | E18: 860 | F18: 00000 | G18: П211005 | H18: 521 | I18: 2 | J18: 1,080,000.00
A19: 0702 | B19: 0220242100 | C19: 111 | D19: 211 | E19: 860 | F19: 00000 | G19: П211099 | H19: 304 | I19: 4 | J19: 3,959,020.52
A20: 0702 | B20: 0220242100 | C20: 111 | D20: 211 | E20: 860 | F20: 00000 | G20: П211099 | H20: 509 | I20: 2 | J20: 5,146.47
A21: 0702 | B21: 0220242100 | C21: 111 | D21: 211 | E21: 860 | F21: 00000 | G21: П211099 | H21: 521 | I21: 2 | J21: 210,000.00
A22: 0702 | B22: 0220242100 | C22: 111 | D22: 266 | E22: 860 | F22: 00000 | G22: П266099 | H22: 304 | I22: 4 | J22: 10,000.00
A23: 0702 | B23: 0220242100 | C23: 111 | D23: 266 | E23: 860 | F23: 00000 | G23: П266099 | H23: 521 | I23: 2 | J23: 20,000.00
A24: 0702 | B24: 0220242100 | C24: 112 | D24: 226 | E24: 860 | F24: 00000 | G24: П226024 | H24: 521 | I24: 2 | J24: 6,050.00
A25: 0702 | B25: 0220242100 | C25: 112 | D25: 226 | E25: 860 | F25: 00000 | G25: П226042 | H25: 310 | I25: 5 | J25: 7,700.00
A26: 0702 | B26: 0220242100 | C26: 113 | D26: 226 | E26: 860 | F26: 00000 | G26: П226042 | H26: 310 | I26: 5 | J26: 10,800.00
A27: 0702 | B27: 0220242100 | C27: 113 | D27: 226 | E27: 860 | F27: 00000 | G27: П226043 | H27: 591 | I27: 2 | J27: 6,600.00
A28: 0702 | B28: 0220242100 | C28: 113 | D28: 296 | E28: 860 | F28: 00000 | G28: П296099 | H28: 591 | I28: 2 | J28: 21,400.00
A29: 0702 | B29: 0220242100 | C29: 119 | D29: 213 | E29: 860 | F29: 00000 | G29: П213004 | H29: 509 | I29: 2 | J29: 6,793.24
A30: 0702 | B30: 0220242100 | C30: 119 | D30: 213 | E30: 860 | F30: 00000 | G30: П213004 | H30: 521 | I30: 2 | J30: 397,924.00
A31: 0702 | B31: 0220242100 | C31: 119 | D31: 213 | E31: 860 | F31: 00000 | G31: П213005 | H31: 509 | I31: 2 | J31: 1,543.56
A32: 0702 | B32: 0220242100 | C32: 119 | D32: 213 | E32: 860 | F32: 00000 | G32: П213005 | H32: 521 | I32: 2 | J32: 326,160.00
A33: 0702 | B33: 0220242100 | C33: 119 | D33: 213 | E33: 860 | F33: 00000 | G33: П213099 | H33: 304 | I33: 4 | J33: 1,198,644.20
A34: 0702 | B34: 0220242100 | C34: 119 | D34: 213 | E34: 860 | F34: 00000 | G34: П213099 | H34: 509 | I34: 2 | J34: 1,554.23
A35: 0702 | B35: 0220242100 | C35: 119 | D35: 213 | E35: 860 | F35: 00000 | G35: П213099 | H35: 521 | I35: 2 | J35: 63,420.00
A36: 0702 | B36: 0220242100 | C36: 244 | D36: 221 | E36: 860 | F36: 00000 | G36: П221099 | H36: 304 | I36: 4 | J36: 21,816.00
A37: 0702 | B37: 0220242100 | C37: 244 | D37: 221 | E37: 860 | F37: 00000 | G37: П221099 | H37: 521 | I37: 2 | J37: 50,000.00
A38: 0702 | B38: 0220242100 | C38: 244 | D38: 223 | E38: 860 | F38: 00000 | G38: П223004 | H38: 304 | I38: 4 | J38: 7,709.40
A39: 0702 | B39: 0220242100 | C39: 244 | D39: 223 | E39: 860 | F39: 00000 | G39: П223004 | H39: 521 | I39: 2 | J39: 110,000.00
A40: 0702 | B40: 0220242100 | C40: 244 | D40: 223 | E40: 860 | F40: 00000 | G40: П223004 | H40: 523 | I40: 2 | J40: 247,152.60
A41: 0702 | B41: 0220242100 | C41: 244 | D41: 223 | E41: 860 | F41: 00000 | G41: П223004 | H41: 593 | I41: 2 | J41: 135.36
A42: 0702 | B42: 0220242100 | C42: 244 | D42: 223 | E42: 860 | F42: 00000 | G42: П223017 | H42: 304 | I42: 4 | J42: 92,723.14
A43: 0702 | B43: 0220242100 | C43: 244 | D43: 225 | E43: 860 | F43: 00000 | G43: Н225006 | H43: 521 | I43: 2 | J43: 1,500.00
A44: 0702 | B44: 0220242100 | C44: 244 | D44: 225 | E44: 860 | F44: 00000 | G44: Н225007 | H44: 521 | I44: 2 | J44: 7,800.00
A45: 0702 | B45: 0220242100 | C45: 244 | D45: 225 | E45: 860 | F45: 00000 | G45: Н225099 | H45: 593 | I45: 2 | J45: 3,094.98
A46: 0702 | B46: 0220242100 | C46: 244 | D46: 225 | E46: 860 | F46: 00000 | G46: П225002 | H46: 521 | I46: 2 | J46: 28,500.00
A47: 0702 | B47: 0220242100 | C47: 244 | D47: 225 | E47: 860 | F47: 00000 | G47: П225002 | H47: 523 | I47: 2 | J47: 54,596.31
A48: 0702 | B48: 0220242100 | C48: 244 | D48: 225 | E48: 860 | F48: 00000 | G48: П225002 | H48: 591 | I48: 2 | J48: 2,619.66
A49: 0702 | B49: 0220242100 | C49: 244 | D49: 225 | E49: 860 | F49: 00000 | G49: П225002 | H49: 593 | I49: 2 | J49: 2,060.10
A50: 0702 | B50: 0220242100 | C50: 244 | D50: 225 | E50: 860 | F50: 00000 | G50: П225003 | H50: 304 | I50: 4 | J50: 68,164.32
A51: 0702 | B51: 0220242100 | C51: 244 | D51: 225 | E51: 860 | F51: 00000 | G51: П225003 | H51: 521 | I51: 2 | J51: 25,600.00
A52: 0702 | B52: 0220242100 | C52: 244 | D52: 225 | E52: 860 | F52: 00000 | G52: П225003 | H52: 591 | I52: 2 | J52: 14,862.96
A53: 0702 | B53: 0220242100 | C53: 244 | D53: 225 | E53: 860 | F53: 00000 | G53: П225003 | H53: 593 | I53: 2 | J53: 1,593.36
A54: 0702 | B54: 0220242100 | C54: 244 | D54: 225 | E54: 860 | F54: 00000 | G54: П225004 | H54: 521 | I54: 2 | J54: 8,800.00
A55: 0702 | B55: 0220242100 | C55: 244 | D55: 225 | E55: 860 | F55: 00000 | G55: П225010 | H55: 521 | I55: 2 | J55: 10,000.00
A56: 0702 | B56: 0220242100 | C56: 244 | D56: 225 | E56: 860 | F56: 00000 | G56: П225012 | H56: 521 | I56: 2 | J56: 10,000.00
A57: 0702 | B57: 0220242100 | C57: 244 | D57: 225 | E57: 860 | F57: 00000 | G57: П225012 | H57: 523 | I57: 2 | J57: 25,000.00
A58: 0702 | B58: 0220242100 | C58: 244 | D58: 225 | E58: 860 | F58: 00000 | G58: П225015 | H58: 591 | I58: 2 | J58: 7,500.00
A59: 0702 | B59: 0220242100 | C59: 244 | D59: 225 | E59: 860 | F59: 00000 | G59: П225098 | H59: 521 | I59: 2 | J59: 4,000.00
A60: 0702 | B60: 0220242100 | C60: 244 | D60: 225 | E60: 860 | F60: 00000 | G60: П225098 | H60: 591 | I60: 2 | J60: 37,036.00
A61: 0702 | B61: 0220242100 | C61: 244 | D61: 226 | E61: 860 | F61: 00000 | G61: П226003 | H61: 304 | I61: 4 | J61: 449,004.00
A62: 0702 | B62: 0220242100 | C62: 244 | D62: 226 | E62: 860 | F62: 00000 | G62: П226003 | H62: 308 | I62: 4 | J62: 1,393,917.22
A63: 0702 | B63: 0220242100 | C63: 244 | D63: 226 | E63: 860 | F63: 00000 | G63: П226003 | H63: 522 | I63: 2 | J63: 7,930,176.20
A64: 0702 | B64: 0220242100 | C64: 244 | D64: 226 | E64: 860 | F64: 00000 | G64: П226003 | H64: 592 | I64: 2 | J64: 100,619.18
A65: 0702 | B65: 0220242100 | C65: 244 | D65: 226 | E65: 860 | F65: 00000 | G65: П226004 | H65: 308 | I65: 4 | J65: 16,863.00
A66: 0702 | B66: 0220242100 | C66: 244 | D66: 226 | E66: 860 | F66: 00000 | G66: П226004 | H66: 521 | I66: 2 | J66: 18,000.00
A67: 0702 | B67: 0220242100 | C67: 244 | D67: 226 | E67: 860 | F67: 00000 | G67: П226010 | H67: 521 | I67: 2 | J67: 32,310.00
A68: 0702 | B68: 0220242100 | C68: 244 | D68: 226 | E68: 860 | F68: 00000 | G68: П226015 | H68: 521 | I68: 2 | J68: 2,690.00
A69: 0702 | B69: 0220242100 | C69: 244 | D69: 226 | E69: 860 | F69: 00000 | G69: П226098 | H69: 308 | I69: 4 | J69: 22,452.00
A70: 0702 | B70: 0220242100 | C70: 244 | D70: 226 | E70: 860 | F70: 00000 | G70: П226098 | H70: 521 | I70: 2 | J70: 106,500.00
A71: 0702 | B71: 0220242100 | C71: 244 | D71: 226 | E71: 860 | F71: 00000 | G71: П226098 | H71: 591 | I71: 2 | J71: 68,077.05
A72: 0702 | B72: 0220242100 | C72: 244 | D72: 226 | E72: 860 | F72: 00000 | G72: П226098 | H72: 593 | I72: 2 | J72: 12,000.00
A73: 0702 | B73: 0220242100 | C73: 244 | D73: 227 | E73: 860 | F73: 90210 | G73: П227002 | H73: 521 | I73: 2 | J73: 6,000.00
A74: 0702 | B74: 0220242100 | C74: 244 | D74: 310 | E74: 860 | F74: 00000 | G74: П310098 | H74: 521 | I74: 2 | J74: 148,571.00
A75: 0702 | B75: 0220242100 | C75: 244 | D75: 310 | E75: 860 | F75: 00000 | G75: П310098 | H75: 523 | I75: 2 | J75: 25,403.69
A76: 0702 | B76: 0220242100 | C76: 244 | D76: 310 | E76: 860 | F76: 00000 | G76: П310098 | H76: 591 | I76: 2 | J76: 154,571.00
A77: 0702 | B77: 0220242100 | C77: 244 | D77: 310 | E77: 860 | F77: 00000 | G77: П310098 | H77: 593 | I77: 2 | J77: 33,473.23
A78: 0702 | B78: 0220242100 | C78: 244 | D78: 341 | E78: 860 | F78: 00000 | G78: П341006 | H78: 591 | I78: 2 | J78: 5,042.94
A79: 0702 | B79: 0220242100 | C79: 244 | D79: 344 | E79: 860 | F79: 00000 | G79: Н344099 | H79: 521 | I79: 2 | J79: 88,461.33
A80: 0702 | B80: 0220242100 | C80: 244 | D80: 344 | E80: 860 | F80: 00000 | G80: Н344099 | H80: 523 | I80: 2 | J80: 40,000.00
A81: 0702 | B81: 0220242100 | C81: 244 | D81: 344 | E81: 860 | F81: 00000 | G81: Н344099 | H81: 591 | I81: 2 | J81: 76,740.36
A82: 0702 | B82: 0220242100 | C82: 244 | D82: 345 | E82: 860 | F82: 00000 | G82: П345099 | H82: 591 | I82: 2 | J82: 2,709.33
A83: 0702 | B83: 0220242100 | C83: 244 | D83: 346 | E83: 860 | F83: 00000 | G83: П346003 | H83: 304 | I83: 4 | J83: 10,000.00
A84: 0702 | B84: 0220242100 | C84: 244 | D84: 346 | E84: 860 | F84: 00000 | G84: П346003 | H84: 521 | I84: 2 | J84: 100,000.00
A85: 0702 | B85: 0220242100 | C85: 244 | D85: 346 | E85: 860 | F85: 00000 | G85: П346003 | H85: 591 | I85: 2 | J85: 4,320.00
A86: 0702 | B86: 0220242100 | C86: 244 | D86: 346 | E86: 860 | F86: 00000 | G86: П346017 | H86: 521 | I86: 2 | J86: 55,000.00
A87: 0702 | B87: 0220242100 | C87: 244 | D87: 346 | E87: 860 | F87: 00000 | G87: П346017 | H87: 523 | I87: 2 | J87: 20,000.00
A88: 0702 | B88: 0220242100 | C88: 244 | D88: 346 | E88: 860 | F88: 00000 | G88: П346017 | H88: 591 | I88: 2 | J88: 67,680.00
A89: 0702 | B89: 0220242100 | C89: 244 | D89: 349 | E89: 860 | F89: 00000 | G89: Н349099 | H89: 521 | I89: 2 | J89: 112,000.00
A90: 0702 | B90: 0220242100 | C90: 247 | D90: 223 | E90: 860 | F90: 00000 | G90: П223001 | H90: 304 | I90: 4 | J90: 576,243.00
A91: 0702 | B91: 0220242100 | C91: 247 | D91: 223 | E91: 860 | F91: 00000 | G91: П223001 | H91: 521 | I91: 2 | J91: 95,000.00
A92: 0702 | B92: 0220242100 | C92: 247 | D92: 223 | E92: 860 | F92: 00000 | G92: П223001 | H92: 523 | I92: 2 | J92: 801,043.23
A93: 0702 | B93: 0220242100 | C93: 247 | D93: 223 | E93: 860 | F93: 00000 | G93: П223001 | H93: 593 | I93: 2 | J93: 33,368.11
A94: 0702 | B94: 0220242100 | C94: 247 | D94: 223 | E94: 860 | F94: 00000 | G94: П223002 | H94: 304 | I94: 4 | J94: 2,476,170.00
A95: 0702 | B95: 0220242100 | C95: 247 | D95: 223 | E95: 860 | F95: 00000 | G95: П223002 | H95: 521 | I95: 2 | J95: 100,000.00
A96: 0702 | B96: 0220242100 | C96: 851 | D96: 291 | E96: 860 | F96: 00000 | G96: П291001 | H96: 304 | I96: 4 | J96: 375,723.45
A97: 0702 | B97: 0220242100 | C97: 851 | D97: 291 | E97: 860 | F97: 00000 | G97: П291001 | H97: 308 | I97: 4 | J97: 638,220.35
A98: 0702 | B98: 0220242100 | C98: 851 | D98: 291 | E98: 860 | F98: 00000 | G98: П291014 | H98: 308 | I98: 4 | J98: 771,810.08
A99: 0702 | B99: 0220242100 | C99: 852 | D99: 291 | E99: 860 | F99: 00000 | G99: П291005 | H99: 521 | I99: 2 | J99: 3,500.00
A100: 0702 | B100: 0220242100 | C100: 852 | D100: 291 | E100: 860 | F100: 00000 | G100: П291015 | H100: 308 | I100: 4 | J100: 2,064.00
A101: 0702 | B101: 0220242100 | C101: 852 | D101: 291 | E101: 860 | F101: 00000 | G101: П291015 | H101: 591 | I101: 2 | J101: 17.00
A102: 0702 | B102: 02202S0050 | C102: 111 | D102: 211 | E102: 860 | F102: 13120 | G102: П211005 | H102: 305 | I102: 4 | J102: 1,883,192.94
A103: 0702 | B103: 02202S0050 | C103: 119 | D103: 213 | E103: 860 | F103: 13120 | G103: П213005 | H103: 305 | I103: 4 | J103: 568,724.27
A104: 0702 | B104: 0220825280 | C104: 111 | D104: 211 | E104: 860 | F104: 13597 | G104: П211004 | H104: 302 | I104: 4 | J104: 824,162.83
A105: 0702 | B105: 0220825280 | C105: 111 | D105: 211 | E105: 860 | F105: 20000 | G105: П211004 | H105: 302 | I105: 4 | J105: 29,184,211.20
A106: 0702 | B106: 0220825280 | C106: 111 | D106: 211 | E106: 860 | F106: 20000 | G106: П211005 | H106: 302 | I106: 4 | J106: 2,923,500.14
A107: 0702 | B107: 0220825280 | C107: 111 | D107: 266 | E107: 860 | F107: 20000 | G107: П266099 | H107: 302 | I107: 4 | J107: 175,000.00
A108: 0702 | B108: 0220825280 | C108: 119 | D108: 213 | E108: 860 | F108: 13597 | G108: П213004 | H108: 302 | I108: 4 | J108: 248,897.17
A109: 0702 | B109: 0220825280 | C109: 119 | D109: 213 | E109: 860 | F109: 20000 | G109: П213004 | H109: 302 | I109: 4 | J109: 8,858,931.78
A110: 0702 | B110: 0220825280 | C110: 119 | D110: 213 | E110: 860 | F110: 20000 | G110: П213005 | H110: 302 | I110: 4 | J110: 890,447.04
A111: 0702 | B111: 0220853031 | C111: 111 | D111: 211 | E111: 860 | F111: 13300 | G111: П211004 | H111: 100 | I111: 1 | J111: 2,460,000.00
A112: 0702 | B112: 0220853031 | C112: 119 | D112: 213 | E112: 860 | F112: 13300 | G112: П213004 | H112: 100 | I112: 1 | J112: 742,920.00
A113: 0702 | B113: 02209L3040 | C113: 244 | D113: 226 | E113: 860 | F113: 00000 | G113: П226003 | H113: 303 | I113: 4 | J113: 4,822,282.08
A114: 0702 | B114: 0510152202 | C114: 244 | D114: 225 | E114: 860 | F114: 00000 | G114: П225001 | H114: 308 | I114: 4 | J114: 6,302.76
A115: 0702 | B115: 0710152207 | C115: 244 | D115: 225 | E115: 860 | F115: 00000 | G115: П225001 | H115: 308 | I115: 4 | J115: 46,920.00
A116: 0702 | B116: 0710152207 | C116: 244 | D116: 226 | E116: 860 | F116: 00000 | G116: П226098 | H116: 308 | I116: 4 | J116: 4,000.00
A117: 0702 | B117: 0710152207 | C117: 244 | D117: 228 | E117: 860 | F117: 00000 | G117: П228005 | H117: 308 | I117: 4 | J117: 20,000.00
A118: 0702 | B118: 0710152207 | C118: 244 | D118: 346 | E118: 860 | F118: 00000 | G118: Н346099 | H118: 308 | I118: 4 | J118: 33,480.00
A119: 0702 | B119: 0710152207 | C119: 244 | D119: 346 | E119: 860 | F119: 00000 | G119: П346003 | H119: 308 | I119: 4 | J119: 2,300.00
A120: 0702 | B120: 0710152207 | C120: 244 | D120: 346 | E120: 860 | F120: 00000 | G120: П346098 | H120: 308 | I120: 4 | J120: 37,020.00
A121: 0702 | B121: 2700152208 | C121: 244 | D121: 310 | E121: 860 | F121: 00000 | G121: П310098 | H121: 521 | I121: 2 | J121: 1,429.00
A122: 0707 | B122: 0610152203 | C122: 113 | D122: 296 | E122: 860 | F122: 00000 | G122: П296099 | H122: 310 | I122: 5 | J122: 192,000.00
A123: 0707 | B123: 3810121320 | C123: 244 | D123: 226 | E123: 860 | F123: 12800 | G123: П226003 | H123: 306 | I123: 5 | J123: 409,117.65
A124: 0707 | B124: 3810121320 | C124: 244 | D124: 226 | E124: 860 | F124: 12800 | G124: П226098 | H124: 306 | I124: 5 | J124: 37,222.50
A125: 0707 | B125: 3810121320 | C125: 244 | D125: 341 | E125: 860 | F125: 12800 | G125: П341006 | H125: 306 | I125: 5 | J125: 3,851.55
A126: 0707 | B126: 3810121320 | C126: 244 | D126: 346 | E126: 860 | F126: 12800 | G126: П346017 | H126: 306 | I126: 5 | J126: 2,445.00
A127: 0707 | B127: 3810182320 | C127: 244 | D127: 226 | E127: 860 | F127: 99998 | G127: П226003 | H127: 306 | I127: 5 | J127: 64,417.50
A128: 0707 | B128: 3810182320 | C128: 244 | D128: 226 | E128: 860 | F128: 99998 | G128: П226098 | H128: 306 | I128: 5 | J128: 5,827.50
A129: 0707 | B129: 3810182320 | C129: 244 | D129: 341 | E129: 860 | F129: 99998 | G129: П341006 | H129: 306 | I129: 5 | J129: 472.50
A130: 0707 | B130: 3810182320 | C130: 244 | D130: 346 | E130: 860 | F130: 99998 | G130: П346017 | H130: 306 | I130: 5 | J130: 525.00
A131: 1004 | B131: 0310225510 | C131: 244 | D131: 226 | E131: 860 | F131: 20000 | G131: П226003 | H131: 308 | I131: 5 | J131: 1,135,277.00
A132: Итого | J132: 82,235,000.74
I134: 851 | J134: =J96+J97+J98 -> 1,785,753.88
I135: 852 | J135: =J99+J100+J101 -> 5,581.00

Sheet Лист2 (hidden)
A6: КФСР | B6: КЦСР | C6: КВР | D6: КВСР | E6: КОСГУ | F6: Доп. ФК | G6: Доп. ЭК | H6: Доп. КР | I6: КВФО | J6: Расход по ЛС | K6: Резерв расхода по ЛС | L6: Остаток лимитов 2022 год | M6: Лимиты 2022 год | N6: Остаток финансирования | O6: КП-расходы всего год | P6: Финансирование | Q6: Финансирование на начало года
A7: 0000 | B7: 0000000000 | C7: 000 | D7: 860 | E7: 000 | F7: 00000 | G7: 0000000 | H7: 309 | I7: 5 | J7: 0.00 | K7: 0.00 | L7: 0.00 | M7: 0.00 | N7: 0.01 | O7: 0.00 | P7: 0.00 | Q7: 0.01
A8: 0000 | B8: 0000000000 | C8: 000 | D8: 860 | E8: 000 | F8: 00000 | G8: 0000000 | H8: 000 | I8: 5 | J8: 0.00 | K8: 0.00 | L8: 0.00 | M8: 0.00 | N8: 0.00 | O8: 0.00 | P8: 0.00 | Q8: 0.00
A9: 0702 | B9: 0000000000 | C9: 000 | D9: 860 | E9: 000 | F9: 00000 | G9: 0000000 | H9: 594 | I9: 2 | J9: 0.00 | K9: 0.00 | L9: 0.00 | M9: 0.00 | N9: 0.00 | O9: 0.00 | P9: 0.00 | Q9: 0.00
A10: 0702 | B10: 0000000000 | C10: 000 | D10: 860 | E10: 000 | F10: 00000 | G10: 0000000 | H10: 593 | I10: 2 | J10: 0.00 | K10: 0.00 | L10: 0.00 | M10: 0.00 | N10: 0.00 | O10: 0.00 | P10: 0.00 | Q10: 0.00
A11: 0702 | B11: 0000000000 | C11: 000 | D11: 860 | E11: 000 | F11: 00000 | G11: 0000000 | H11: 592 | I11: 2 | J11: 0.00 | K11: 0.00 | L11: 0.00 | M11: 0.00 | N11: 0.00 | O11: 0.00 | P11: 0.00 | Q11: 0.00
A12: 0702 | B12: 0000000000 | C12: 000 | D12: 860 | E12: 000 | F12: 00000 | G12: 0000000 | H12: 591 | I12: 2 | J12: 0.00 | K12: 0.00 | L12: 0.00 | M12: 0.00 | N12: 0.00 | O12: 0.00 | P12: 0.00 | Q12: 0.00
A13: 0702 | B13: 0000000000 | C13: 000 | D13: 860 | E13: 000 | F13: 00000 | G13: 0000000 | H13: 523 | I13: 2 | J13: 0.00 | K13: 0.00 | L13: 0.00 | M13: 0.00 | N13: 0.00 | O13: 0.00 | P13: 0.00 | Q13: 0.00
A14: 0702 | B14: 0000000000 | C14: 000 | D14: 860 | E14: 000 | F14: 00000 | G14: 0000000 | H14: 522 | I14: 2 | J14: 0.00 | K14: 0.00 | L14: 0.00 | M14: 0.00 | N14: 22,496.40 | O14: 0.00 | P14: 22,496.40 | Q14: 0.00
A15: 0702 | B15: 0000000000 | C15: 000 | D15: 860 | E15: 000 | F15: 00000 | G15: 0000000 | H15: 521 | I15: 2 | J15: 0.00 | K15: 0.00 | L15: 0.00 | M15: 0.00 | N15: 0.00 | O15: 0.00 | P15: 0.00 | Q15: 0.00
A16: 0702 | B16: 0000000000 | C16: 000 | D16: 860 | E16: 000 | F16: 00000 | G16: 0000000 | H16: 510 | I16: 2 | J16: 0.00 | K16: 0.00 | L16: 0.00 | M16: 0.00 | N16: 0.00 | O16: 0.00 | P16: 0.00 | Q16: 0.00
A17: 0702 | B17: 0000000000 | C17: 000 | D17: 860 | E17: 000 | F17: 00000 | G17: 0000000 | H17: 509 | I17: 2 | J17: 0.00 | K17: 0.00 | L17: 0.00 | M17: 0.00 | N17: 0.00 | O17: 0.00 | P17: 0.00 | Q17: 0.00
A18: 0702 | B18: 0000000000 | C18: 000 | D18: 860 | E18: 000 | F18: 00000 | G18: 0000000 | H18: 306 | I18: 2 | J18: 0.00 | K18: 0.00 | L18: 0.00 | M18: 0.00 | N18: 0.00 | O18: 0.00 | P18: 0.00 | Q18: 0.00
A19: 0000 | B19: 0000000000 | C19: 000 | D19: 860 | E19: 000 | F19: 93597 | G19: 0000000 | H19: 309 | I19: 4 | J19: 0.00 | K19: 0.00 | L19: 0.00 | M19: 0.00 | N19: 512,362.13 | O19: 0.00 | P19: 0.00 | Q19: 512,362.13
A20: 0000 | B20: 0000000000 | C20: 000 | D20: 860 | E20: 000 | F20: 93597 | G20: 0000000 | H20: 309 | I20: 4 | J20: 0.00 | K20: 0.00 | L20: 0.00 | M20: 0.00 | N20: 0.00 | O20: 0.00 | P20: 0.00 | Q20: 0.00
A21: 0000 | B21: 0000000000 | C21: 000 | D21: 860 | E21: 000 | F21: 93597 | G21: 0000000 | H21: 309 | I21: 1 | J21: 0.00 | K21: 0.00 | L21: 0.00 | M21: 0.00 | N21: 82,315.95 | O21: 0.00 | P21: 0.00 | Q21: 82,315.95
A22: 0000 | B22: 0000000000 | C22: 000 | D22: 860 | E22: 000 | F22: 93597 | G22: 0000000 | H22: 309 | I22: 1 | J22: 0.00 | K22: 0.00 | L22: 0.00 | M22: 0.00 | N22: 0.00 | O22: 0.00 | P22: 0.00 | Q22: 0.00
A23: 0000 | B23: 0000000000 | C23: 000 | D23: 860 | E23: 000 | F23: 13300 | G23: 0000000 | H23: 100 | I23: 1 | J23: 0.00 | K23: 0.00 | L23: 0.00 | M23: 0.00 | N23: 0.00 | O23: 0.00 | P23: 0.00 | Q23: 0.00
A24: 0000 | B24: 0000000000 | C24: 000 | D24: 860 | E24: 000 | F24: 13300 | G24: 0000000 | H24: 100 | I24: 1 | J24: 0.00 | K24: 0.00 | L24: 0.00 | M24: 0.00 | N24: 0.00 | O24: 0.00 | P24: 0.00 | Q24: 0.00
A25: 0000 | B25: 0000000000 | C25: 000 | D25: 860 | E25: 000 | F25: 00000 | G25: 0000000 | H25: 309 | I25: 4 | J25: 0.00 | K25: 0.00 | L25: 0.00 | M25: 0.00 | N25: 0.00 | O25: 0.00 | P25: 0.00 | Q25: 0.00
A26: 0000 | B26: 0000000000 | C26: 000 | D26: 860 | E26: 000 | F26: 00000 | G26: 0000000 | H26: 303 | I26: 4 | J26: 0.00 | K26: 0.00 | L26: 0.00 | M26: 0.00 | N26: 0.00 | O26: 0.00 | P26: 0.00 | Q26: 0.00
A27: 0000 | B27: 0000000000 | C27: 000 | D27: 860 | E27: 000 | F27: 00000 | G27: 0000000 | H27: 303 | I27: 4 | J27: 0.00 | K27: 0.00 | L27: 0.00 | M27: 0.00 | N27: 0.00 | O27: 0.00 | P27: 0.00 | Q27: 0.00
A28: 0000 | B28: 0000000000 | C28: 000 | D28: 860 | E28: 000 | F28: 00000 | G28: 0000000 | H28: 000 | I28: 4 | J28: 0.00 | K28: 0.00 | L28: 0.00 | M28: 0.00 | N28: 0.00 | O28: 0.00 | P28: 0.00 | Q28: 0.00
A29: 0702 | B29: 0220242100 | C29: 111 | D29: 860 | E29: 211 | F29: 00000 | G29: П211005 | H29: 521 | I29: 2 | J29: 0.00 | K29: 0.00 | L29: 50,806.45 | M29: 50,806.45 | N29: 0.00 | O29: 0.00 | P29: 0.00 | Q29: 0.00
A30: 0702 | B30: 0220242100 | C30: 111 | D30: 860 | E30: 211 | F30: 00000 | G30: П211004 | H30: 521 | I30: 2 | J30: 0.00 | K30: 0.00 | L30: 118,548.55 | M30: 118,548.55 | N30: 0.00 | O30: 0.00 | P30: 0.00 | Q30: 0.00
A31: 0702 | B31: 0220853031 | C31: 111 | D31: 860 | E31: 211 | F31: 93597 | G31: П211004 | H31: 309 | I31: 1 | J31: 0.00 | K31: 0.00 | L31: 74,883.79 | M31: 74,883.79 | N31: 0.00 | O31: 0.00 | P31: 0.00 | Q31: 0.00
A32: 0702 | B32: 0220853031 | C32: 111 | D32: 860 | E32: 211 | F32: 13300 | G32: П211004 | H32: 100 | I32: 1 | J32: 0.00 | K32: 0.00 | L32: 1,560,000.00 | M32: 1,560,000.00 | N32: 0.00 | O32: 0.00 | P32: 0.00 | Q32: 0.00
A33: 0702 | B33: 0220825280 | C33: 111 | D33: 860 | E33: 211 | F33: 20000 | G33: П211005 | H33: 302 | I33: 4 | J33: 0.00 | K33: 0.00 | L33: 2,999,949.92 | M33: 2,999,949.92 | N33: 0.00 | O33: 0.00 | P33: 0.00 | Q33: 0.00
A34: 0702 | B34: 0220825280 | C34: 111 | D34: 860 | E34: 211 | F34: 20000 | G34: П211004 | H34: 302 | I34: 4 | J34: 0.00 | K34: 0.00 | L34: 16,325,324.88 | M34: 16,325,324.88 | N34: 0.00 | O34: 0.00 | P34: 0.00 | Q34: 0.00
A35: 0702 | B35: 0220825280 | C35: 111 | D35: 860 | E35: 211 | F35: 13594 | G35: П211004 | H35: 302 | I35: 4 | J35: 0.00 | K35: 0.00 | L35: 1,484,350.23 | M35: 1,484,350.23 | N35: 0.00 | O35: 0.00 | P35: 0.00 | Q35: 0.00
A36: 0702 | B36: 02202S0050 | C36: 111 | D36: 860 | E36: 211 | F36: 13120 | G36: П211099 | H36: 304 | I36: 4 | J36: 0.00 | K36: 0.00 | L36: 2,382,154.32 | M36: 2,382,154.32 | N36: 0.00 | O36: 0.00 | P36: 0.00 | Q36: 0.00
A37: 0702 | B37: 02202S0050 | C37: 111 | D37: 860 | E37: 211 | F37: 13120 | G37: П211005 | H37: 304 | I37: 4 | J37: 0.00 | K37: 0.00 | L37: 328,099.72 | M37: 328,099.72 | N37: 0.00 | O37: 0.00 | P37: 0.00 | Q37: 0.00
A38: 0702 | B38: 0220242100 | C38: 111 | D38: 860 | E38: 211 | F38: 13594 | G38: П211099 | H38: 305 | I38: 4 | J38: 0.00 | K38: 0.00 | L38: 1,957,737.69 | M38: 1,957,737.69 | N38: 0.00 | O38: 0.00 | P38: 0.00 | Q38: 0.00
A39: 0702 | B39: 0220143624 | C39: 119 | D39: 860 | E39: 213 | F39: 20000 | G39: П213004 | H39: 309 | I39: 5 | J39: 0.00 | K39: 0.00 | L39: 0.01 | M39: 0.01 | N39: 0.00 | O39: 0.00 | P39: 0.00 | Q39: 0.00
A40: 0702 | B40: 0220242100 | C40: 119 | D40: 860 | E40: 213 | F40: 00000 | G40: П213005 | H40: 521 | I40: 2 | J40: 0.00 | K40: 0.00 | L40: 15,343.55 | M40: 15,343.55 | N40: 0.00 | O40: 0.00 | P40: 0.00 | Q40: 0.00
A41: 0702 | B41: 0220242100 | C41: 119 | D41: 860 | E41: 213 | F41: 00000 | G41: П213004 | H41: 521 | I41: 2 | J41: 0.00 | K41: 0.00 | L41: 35,801.45 | M41: 35,801.45 | N41: 0.00 | O41: 0.00 | P41: 0.00 | Q41: 0.00
A42: 0702 | B42: 0220853031 | C42: 119 | D42: 860 | E42: 213 | F42: 93597 | G42: П213004 | H42: 309 | I42: 1 | J42: 0.00 | K42: 0.00 | L42: 7,431.19 | M42: 7,431.19 | N42: 0.00 | O42: 0.00 | P42: 0.00 | Q42: 0.00
A43: 0702 | B43: 0220853031 | C43: 119 | D43: 860 | E43: 213 | F43: 13300 | G43: П213004 | H43: 100 | I43: 1 | J43: 0.00 | K43: 0.00 | L43: 471,120.00 | M43: 471,120.00 | N43: 0.00 | O43: 0.00 | P43: 0.00 | Q43: 0.00
A44: 0702 | B44: 0220825280 | C44: 119 | D44: 860 | E44: 213 | F44: 20000 | G44: П213005 | H44: 302 | I44: 4 | J44: 0.00 | K44: 0.00 | L44: 905,984.88 | M44: 905,984.88 | N44: 0.00 | O44: 0.00 | P44: 0.00 | Q44: 0.00
A45: 0702 | B45: 0220825280 | C45: 119 | D45: 860 | E45: 213 | F45: 20000 | G45: П213004 | H45: 302 | I45: 4 | J45: 0.00 | K45: 0.00 | L45: 4,930,248.12 | M45: 4,930,248.12 | N45: 0.00 | O45: 0.00 | P45: 0.00 | Q45: 0.00
A46: 0702 | B46: 0220825280 | C46: 119 | D46: 860 | E46: 213 | F46: 13594 | G46: П213004 | H46: 302 | I46: 4 | J46: 0.00 | K46: 0.00 | L46: 448,273.77 | M46: 448,273.77 | N46: 0.00 | O46: 0.00 | P46: 0.00 | Q46: 0.00
A47: 0702 | B47: 02202S0050 | C47: 119 | D47: 860 | E47: 213 | F47: 13120 | G47: П213099 | H47: 304 | I47: 4 | J47: 0.00 | K47: 0.00 | L47: 719,410.60 | M47: 719,410.60 | N47: 0.00 | O47: 0.00 | P47: 0.00 | Q47: 0.00
A48: 0702 | B48: 02202S0050 | C48: 119 | D48: 860 | E48: 213 | F48: 13120 | G48: П213005 | H48: 304 | I48: 4 | J48: 0.00 | K48: 0.00 | L48: 99,086.11 | M48: 99,086.11 | N48: 0.00 | O48: 0.00 | P48: 0.00 | Q48: 0.00
A49: 0702 | B49: 0220242100 | C49: 119 | D49: 860 | E49: 213 | F49: 13594 | G49: П213099 | H49: 305 | I49: 4 | J49: 0.00 | K49: 0.00 | L49: 591,236.78 | M49: 591,236.78 | N49: 0.00 | O49: 0.00 | P49: 0.00 | Q49: 0.00
A50: 1004 | B50: 0310225510 | C50: 244 | D50: 860 | E50: 226 | F50: 20000 | G50: П226003 | H50: 308 | I50: 5 | J50: 0.00 | K50: 0.00 | L50: 100,417.20 | M50: 531,664.80 | N50: 0.00 | O50: 0.00 | P50: 0.00 | Q50: 0.00
A51: 0707 | B51: 3810121320 | C51: 244 | D51: 860 | E51: 346 | F51: 12800 | G51: П346017 | H51: 306 | I51: 5 | J51: 0.00 | K51: 0.00 | L51: 6,726.90 | M51: 6,726.90 | N51: 0.00 | O51: 0.00 | P51: 0.00 | Q51: 0.00
A52: 0707 | B52: 3810121320 | C52: 244 | D52: 860 | E52: 341 | F52: 12800 | G52: П341006 | H52: 306 | I52: 5 | J52: 0.00 | K52: 0.00 | L52: 6,312.24 | M52: 6,312.24 | N52: 0.00 | O52: 0.00 | P52: 0.00 | Q52: 0.00
A53: 0707 | B53: 3810121320 | C53: 244 | D53: 860 | E53: 226 | F53: 12800 | G53: П226098 | H53: 306 | I53: 5 | J53: 0.00 | K53: 0.00 | L53: 76,440.24 | M53: 76,440.24 | N53: 0.00 | O53: 0.00 | P53: 0.00 | Q53: 0.00
A54: 0707 | B54: 3810121320 | C54: 244 | D54: 860 | E54: 226 | F54: 12800 | G54: П226003 | H54: 306 | I54: 5 | J54: 0.00 | K54: 0.00 | L54: 841,108.20 | M54: 841,108.20 | N54: 0.00 | O54: 0.00 | P54: 0.00 | Q54: 0.00
A55: 0707 | B55: 3810182320 | C55: 244 | D55: 860 | E55: 346 | F55: 99998 | G55: П346017 | H55: 306 | I55: 2 | J55: 0.00 | K55: 0.00 | L55: 1,049.58 | M55: 1,049.58 | N55: 0.00 | O55: 0.00 | P55: 0.00 | Q55: 0.00
A56: 0707 | B56: 3810182320 | C56: 244 | D56: 860 | E56: 341 | F56: 99998 | G56: П341006 | H56: 306 | I56: 2 | J56: 0.00 | K56: 0.00 | L56: 949.62 | M56: 949.62 | N56: 0.00 | O56: 0.00 | P56: 0.00 | Q56: 0.00
A57: 0707 | B57: 3810182320 | C57: 244 | D57: 860 | E57: 226 | F57: 99998 | G57: П226098 | H57: 306 | I57: 2 | J57: 0.00 | K57: 0.00 | L57: 11,445.42 | M57: 11,445.42 | N57: 0.00 | O57: 0.00 | P57: 0.00 | Q57: 0.00
A58: 0707 | B58: 3810182320 | C58: 244 | D58: 860 | E58: 226 | F58: 99998 | G58: П226003 | H58: 306 | I58: 2 | J58: 0.00 | K58: 0.00 | L58: 126,949.20 | M58: 126,949.20 | N58: 0.00 | O58: 0.00 | P58: 0.00 | Q58: 0.00
A59: 0702 | B59: 2700152208 | C59: 244 | D59: 860 | E59: 310 | F59: 00000 | G59: Н310099 | H59: 521 | I59: 2 | J59: 0.00 | K59: 0.00 | L59: 1,429.00 | M59: 1,429.00 | N59: 0.00 | O59: 0.00 | P59: 0.00 | Q59: 0.00
A60: 0702 | B60: 0220242100 | C60: 244 | D60: 860 | E60: 346 | F60: 00000 | G60: П346017 | H60: 523 | I60: 2 | J60: 0.00 | K60: 0.00 | L60: 31,200.00 | M60: 31,200.00 | N60: 0.00 | O60: 0.00 | P60: 0.00 | Q60: 0.00
A61: 0702 | B61: 0220242100 | C61: 244 | D61: 860 | E61: 310 | F61: 00000 | G61: П310098 | H61: 521 | I61: 2 | J61: 0.00 | K61: 0.00 | L61: 53,591.00 | M61: 53,591.00 | N61: 0.00 | O61: 0.00 | P61: 0.00 | Q61: 0.00
A62: 0702 | B62: 0220242100 | C62: 244 | D62: 860 | E62: 226 | F62: 00000 | G62: П226003 | H62: 522 | I62: 2 | J62: 0.00 | K62: 0.00 | L62: 1,384,667.80 | M62: 3,816,000.00 | N62: 0.00 | O62: 0.00 | P62: 0.00 | Q62: 0.00
A63: 0702 | B63: 0220242100 | C63: 244 | D63: 860 | E63: 225 | F63: 00000 | G63: П225001 | H63: 523 | I63: 2 | J63: 0.00 | K63: 0.00 | L63: 222.00 | M63: 3,600.00 | N63: 0.00 | O63: 0.00 | P63: 0.00 | Q63: 0.00
A64: 0702 | B64: 0220242100 | C64: 244 | D64: 860 | E64: 223 | F64: 00000 | G64: П223004 | H64: 523 | I64: 2 | J64: 0.00 | K64: 0.00 | L64: 0.00 | M64: 108,553.00 | N64: 0.00 | O64: 0.00 | P64: 0.00 | Q64: 0.00
A65: 0702 | B65: 0220242100 | C65: 244 | D65: 860 | E65: 223 | F65: 00000 | G65: П223004 | H65: 521 | I65: 2 | J65: 0.00 | K65: 0.00 | L65: 0.00 | M65: 9,480.00 | N65: 0.00 | O65: 0.00 | P65: 0.00 | Q65: 0.00
A66: 0702 | B66: 0710152207 | C66: 244 | D66: 860 | E66: 226 | F66: 00000 | G66: П226098 | H66: 308 | I66: 4 | J66: 0.00 | K66: 0.00 | L66: 2,000.00 | M66: 2,000.00 | N66: 0.00 | O66: 0.00 | P66: 0.00 | Q66: 0.00
A67: 0702 | B67: 0710152207 | C67: 244 | D67: 860 | E67: 225 | F67: 00000 | G67: П225001 | H67: 308 | I67: 4 | J67: 0.00 | K67: 0.00 | L67: 0.00 | M67: 70,800.00 | N67: 0.00 | O67: 0.00 | P67: 0.00 | Q67: 0.00
A68: 0702 | B68: 0510152202 | C68: 244 | D68: 860 | E68: 225 | F68: 00000 | G68: П225001 | H68: 308 | I68: 4 | J68: 0.00 | K68: 0.00 | L68: 0.00 | M68: 6,302.76 | N68: 0.00 | O68: 0.00 | P68: 0.00 | Q68: 0.00
A69: 0702 | B69: 02209L3040 | C69: 244 | D69: 860 | E69: 226 | F69: 00000 | G69: П226003 | H69: 303 | I69: 4 | J69: 0.00 | K69: 0.00 | L69: 1,621,116.50 | M69: 3,875,279.10 | N69: 0.00 | O69: 0.00 | P69: 0.00 | Q69: 0.00
A70: 0702 | B70: 0220242100 | C70: 244 | D70: 860 | E70: 226 | F70: 00000 | G70: П226098 | H70: 308 | I70: 4 | J70: 0.00 | K70: 0.00 | L70: 24,000.00 | M70: 24,000.00 | N70: 0.00 | O70: 0.00 | P70: 0.00 | Q70: 0.00
A71: 0702 | B71: 0220242100 | C71: 244 | D71: 860 | E71: 226 | F71: 00000 | G71: П226050 | H71: 308 | I71: 4 | J71: 0.00 | K71: 0.00 | L71: 140,400.00 | M71: 569,400.00 | N71: 0.00 | O71: 0.00 | P71: 0.00 | Q71: 0.00
A72: 0702 | B72: 0220242100 | C72: 244 | D72: 860 | E72: 226 | F72: 00000 | G72: П226004 | H72: 304 | I72: 4 | J72: 0.00 | K72: 0.00 | L72: 0.00 | M72: 16,863.00 | N72: 0.00 | O72: 0.00 | P72: 0.00 | Q72: 0.00
A73: 0702 | B73: 0220242100 | C73: 244 | D73: 860 | E73: 226 | F73: 00000 | G73: П226003 | H73: 308 | I73: 4 | J73: 0.00 | K73: 0.00 | L73: 161,082.60 | M73: 941,043.00 | N73: 0.00 | O73: 0.00 | P73: 0.00 | Q73: 0.00
A74: 0702 | B74: 0220242100 | C74: 244 | D74: 860 | E74: 226 | F74: 00000 | G74: П226003 | H74: 304 | I74: 4 | J74: 0.00 | K74: 0.00 | L74: 10,929.32 | M74: 326,004.72 | N74: 0.00 | O74: 0.00 | P74: 0.00 | Q74: 0.00
A75: 0702 | B75: 0220242100 | C75: 244 | D75: 860 | E75: 225 | F75: 00000 | G75: П225003 | H75: 304 | I75: 4 | J75: 0.00 | K75: 0.00 | L75: 45,252.06 | M75: 45,252.06 | N75: 0.00 | O75: 0.00 | P75: 0.00 | Q75: 0.00
A76: 0702 | B76: 0220242100 | C76: 244 | D76: 860 | E76: 223 | F76: 00000 | G76: П223017 | H76: 304 | I76: 4 | J76: 0.00 | K76: 0.00 | L76: 48,293.30 | M76: 48,293.30 | N76: 0.00 | O76: 0.00 | P76: 0.00 | Q76: 0.00
A77: 0702 | B77: 0220242100 | C77: 244 | D77: 860 | E77: 223 | F77: 00000 | G77: П223004 | H77: 304 | I77: 4 | J77: 0.00 | K77: 0.00 | L77: 0.00 | M77: 207,223.00 | N77: 0.00 | O77: 0.00 | P77: 0.00 | Q77: 0.00
A78: 0702 | B78: 0220242100 | C78: 244 | D78: 860 | E78: 221 | F78: 00000 | G78: П221099 | H78: 304 | I78: 4 | J78: 0.00 | K78: 0.00 | L78: 0.00 | M78: 21,816.00 | N78: 0.00 | O78: 0.00 | P78: 0.00 | Q78: 0.00
A79: 0702 | B79: 0220242100 | C79: 247 | D79: 860 | E79: 223 | F79: 00000 | G79: П223001 | H79: 523 | I79: 2 | J79: 0.00 | K79: 0.00 | L79: 0.00 | M79: 418,139.00 | N79: 0.00 | O79: 0.00 | P79: 0.00 | Q79: 0.00
A80: 0702 | B80: 0220242100 | C80: 247 | D80: 860 | E80: 223 | F80: 00000 | G80: П223001 | H80: 521 | I80: 2 | J80: 0.00 | K80: 0.00 | L80: 0.00 | M80: 9,000.00 | N80: 0.00 | O80: 0.00 | P80: 0.00 | Q80: 0.00
A81: 0702 | B81: 0220242100 | C81: 247 | D81: 860 | E81: 223 | F81: 00000 | G81: П223002 | H81: 304 | I81: 4 | J81: 0.00 | K81: 0.00 | L81: 0.00 | M81: 1,828,960.00 | N81: 0.00 | O81: 0.00 | P81: 0.00 | Q81: 0.00
A82: 0702 | B82: 0220242100 | C82: 247 | D82: 860 | E82: 223 | F82: 00000 | G82: П223001 | H82: 304 | I82: 4 | J82: 0.00 | K82: 0.00 | L82: 0.00 | M82: 545,591.00 | N82: 0.00 | O82: 0.00 | P82: 0.00 | Q82: 0.00
A83: 0702 | B83: 0220242100 | C83: 851 | D83: 860 | E83: 291 | F83: 00000 | G83: П291001 | H83: 523 | I83: 2 | J83: 0.00 | K83: 0.00 | L83: 306,685.44 | M83: 306,685.44 | N83: 0.00 | O83: 0.00 | P83: 0.00 | Q83: 0.00
A84: 0702 | B84: 02202S0050 | C84: 851 | D84: 860 | E84: 291 | F84: 13120 | G84: П291014 | H84: 304 | I84: 4 | J84: 0.00 | K84: 0.00 | L84: 793,050.00 | M84: 793,050.00 | N84: 0.00 | O84: 0.00 | P84: 0.00 | Q84: 0.00
A85: 0702 | B85: 02202S0050 | C85: 851 | D85: 860 | E85: 291 | F85: 13120 | G85: П291001 | H85: 308 | I85: 4 | J85: 0.00 | K85: 0.00 | L85: 575,810.45 | M85: 575,810.45 | N85: 0.00 | O85: 0.00 | P85: 0.00 | Q85: 0.00
A86: 0702 | B86: 02202S0050 | C86: 851 | D86: 860 | E86: 291 | F86: 13120 | G86: П291001 | H86: 304 | I86: 4 | J86: 0.00 | K86: 0.00 | L86: 94,170.45 | M86: 94,170.45 | N86: 0.00 | O86: 0.00 | P86: 0.00 | Q86: 0.00
A87: 0702 | B87: 02209L3040 | C87: 853 | D87: 860 | E87: 241 | F87: 93597 | G87: П241099 | H87: 309 | I87: 4 | J87: 0.00 | K87: 297,170.06 | L87: 215,192.07 | M87: 512,362.13 | N87: -297,170.06 | O87: 512,362.13 | P87: 0.00 | Q87: 0.00
J88: 0.00 | K88: 297,170.06 | L88: 42,186,282.60 | M88: 52,370,336.62 | N88: 320,004.43 | O88: 512,362.13 | P88: 22,496.40 | Q88: 594,678.09

Sheet 247,244 (hidden)
A6: КФСР | B6: КЦСР | C6: КВР | D6: КВСР | E6: КОСГУ | F6: Доп. ФК | G6: Доп. ЭК | H6: Доп. КР | I6: КВФО | J6: Расход по ЛС | K6: Резерв расхода по ЛС | L6: Остаток лимитов 2022 год | M6: Лимиты 2022 год | N6: Остаток финансирования | O6: КП-расходы всего год | P6: Финансирование | Q6: Финансирование на начало года
A7: 0000 | B7: 0000000000 | C7: 000 | D7: 860 | E7: 000 | F7: 00000 | G7: 0000000 | H7: 309 | I7: 5 | J7: 0.00 | K7: 0.00 | L7: 0.00 | M7: 0.00 | N7: 0.01 | O7: 0.00 | P7: 0.00 | Q7: 0.01
A8: 0000 | B8: 0000000000 | C8: 000 | D8: 860 | E8: 000 | F8: 00000 | G8: 0000000 | H8: 000 | I8: 5 | J8: 0.00 | K8: 0.00 | L8: 0.00 | M8: 0.00 | N8: 0.00 | O8: 0.00 | P8: 0.00 | Q8: 0.00
A9: 0702 | B9: 0000000000 | C9: 000 | D9: 860 | E9: 000 | F9: 00000 | G9: 0000000 | H9: 594 | I9: 2 | J9: 0.00 | K9: 0.00 | L9: 0.00 | M9: 0.00 | N9: 0.00 | O9: 0.00 | P9: 0.00 | Q9: 0.00
A10: 0702 | B10: 0000000000 | C10: 000 | D10: 860 | E10: 000 | F10: 00000 | G10: 0000000 | H10: 593 | I10: 2 | J10: 0.00 | K10: 0.00 | L10: 0.00 | M10: 0.00 | N10: 0.00 | O10: 0.00 | P10: 0.00 | Q10: 0.00
A11: 0702 | B11: 0000000000 | C11: 000 | D11: 860 | E11: 000 | F11: 00000 | G11: 0000000 | H11: 592 | I11: 2 | J11: 0.00 | K11: 0.00 | L11: 0.00 | M11: 0.00 | N11: 0.00 | O11: 0.00 | P11: 0.00 | Q11: 0.00
A12: 0702 | B12: 0000000000 | C12: 000 | D12: 860 | E12: 000 | F12: 00000 | G12: 0000000 | H12: 591 | I12: 2 | J12: 0.00 | K12: 0.00 | L12: 0.00 | M12: 0.00 | N12: 0.00 | O12: 0.00 | P12: 0.00 | Q12: 0.00
A13: 0702 | B13: 0000000000 | C13: 000 | D13: 860 | E13: 000 | F13: 00000 | G13: 0000000 | H13: 523 | I13: 2 | J13: 0.00 | K13: 0.00 | L13: 0.00 | M13: 0.00 | N13: 0.00 | O13: 0.00 | P13: 0.00 | Q13: 0.00
A14: 0702 | B14: 0000000000 | C14: 000 | D14: 860 | E14: 000 | F14: 00000 | G14: 0000000 | H14: 522 | I14: 2 | J14: 0.00 | K14: 0.00 | L14: 0.00 | M14: 0.00 | N14: 22,496.40 | O14: 0.00 | P14: 22,496.40 | Q14: 0.00
A15: 0702 | B15: 0000000000 | C15: 000 | D15: 860 | E15: 000 | F15: 00000 | G15: 0000000 | H15: 521 | I15: 2 | J15: 0.00 | K15: 0.00 | L15: 0.00 | M15: 0.00 | N15: 0.00 | O15: 0.00 | P15: 0.00 | Q15: 0.00
A16: 0702 | B16: 0000000000 | C16: 000 | D16: 860 | E16: 000 | F16: 00000 | G16: 0000000 | H16: 510 | I16: 2 | J16: 0.00 | K16: 0.00 | L16: 0.00 | M16: 0.00 | N16: 0.00 | O16: 0.00 | P16: 0.00 | Q16: 0.00
A17: 0702 | B17: 0000000000 | C17: 000 | D17: 860 | E17: 000 | F17: 00000 | G17: 0000000 | H17: 509 | I17: 2 | J17: 0.00 | K17: 0.00 | L17: 0.00 | M17: 0.00 | N17: 0.00 | O17: 0.00 | P17: 0.00 | Q17: 0.00
A18: 0702 | B18: 0000000000 | C18: 000 | D18: 860 | E18: 000 | F18: 00000 | G18: 0000000 | H18: 306 | I18: 2 | J18: 0.00 | K18: 0.00 | L18: 0.00 | M18: 0.00 | N18: 0.00 | O18: 0.00 | P18: 0.00 | Q18: 0.00
A19: 0000 | B19: 0000000000 | C19: 000 | D19: 860 | E19: 000 | F19: 93597 | G19: 0000000 | H19: 309 | I19: 4 | J19: 0.00 | K19: 0.00 | L19: 0.00 | M19: 0.00 | N19: 512,362.13 | O19: 0.00 | P19: 0.00 | Q19: 512,362.13
A20: 0000 | B20: 0000000000 | C20: 000 | D20: 860 | E20: 000 | F20: 93597 | G20: 0000000 | H20: 309 | I20: 4 | J20: 0.00 | K20: 0.00 | L20: 0.00 | M20: 0.00 | N20: 0.00 | O20: 0.00 | P20: 0.00 | Q20: 0.00
A21: 0000 | B21: 0000000000 | C21: 000 | D21: 860 | E21: 000 | F21: 93597 | G21: 0000000 | H21: 309 | I21: 1 | J21: 0.00 | K21: 0.00 | L21: 0.00 | M21: 0.00 | N21: 82,315.95 | O21: 0.00 | P21: 0.00 | Q21: 82,315.95
A22: 0000 | B22: 0000000000 | C22: 000 | D22: 860 | E22: 000 | F22: 93597 | G22: 0000000 | H22: 309 | I22: 1 | J22: 0.00 | K22: 0.00 | L22: 0.00 | M22: 0.00 | N22: 0.00 | O22: 0.00 | P22: 0.00 | Q22: 0.00
A23: 0000 | B23: 0000000000 | C23: 000 | D23: 860 | E23: 000 | F23: 13300 | G23: 0000000 | H23: 100 | I23: 1 | J23: 0.00 | K23: 0.00 | L23: 0.00 | M23: 0.00 | N23: 0.00 | O23: 0.00 | P23: 0.00 | Q23: 0.00
A24: 0000 | B24: 0000000000 | C24: 000 | D24: 860 | E24: 000 | F24: 13300 | G24: 0000000 | H24: 100 | I24: 1 | J24: 0.00 | K24: 0.00 | L24: 0.00 | M24: 0.00 | N24: 0.00 | O24: 0.00 | P24: 0.00 | Q24: 0.00
A25: 0000 | B25: 0000000000 | C25: 000 | D25: 860 | E25: 000 | F25: 00000 | G25: 0000000 | H25: 309 | I25: 4 | J25: 0.00 | K25: 0.00 | L25: 0.00 | M25: 0.00 | N25: 0.00 | O25: 0.00 | P25: 0.00 | Q25: 0.00
A26: 0000 | B26: 0000000000 | C26: 000 | D26: 860 | E26: 000 | F26: 00000 | G26: 0000000 | H26: 303 | I26: 4 | J26: 0.00 | K26: 0.00 | L26: 0.00 | M26: 0.00 | N26: 0.00 | O26: 0.00 | P26: 0.00 | Q26: 0.00
A27: 0000 | B27: 0000000000 | C27: 000 | D27: 860 | E27: 000 | F27: 00000 | G27: 0000000 | H27: 303 | I27: 4 | J27: 0.00 | K27: 0.00 | L27: 0.00 | M27: 0.00 | N27: 0.00 | O27: 0.00 | P27: 0.00 | Q27: 0.00
A28: 0000 | B28: 0000000000 | C28: 000 | D28: 860 | E28: 000 | F28: 00000 | G28: 0000000 | H28: 000 | I28: 4 | J28: 0.00 | K28: 0.00 | L28: 0.00 | M28: 0.00 | N28: 0.00 | O28: 0.00 | P28: 0.00 | Q28: 0.00
A29: 0702 | B29: 0220242100 | C29: 111 | D29: 860 | E29: 211 | F29: 00000 | G29: П211005 | H29: 521 | I29: 2 | J29: 0.00 | K29: 0.00 | L29: 50,806.45 | M29: 50,806.45 | N29: 0.00 | O29: 0.00 | P29: 0.00 | Q29: 0.00
A30: 0702 | B30: 0220242100 | C30: 111 | D30: 860 | E30: 211 | F30: 00000 | G30: П211004 | H30: 521 | I30: 2 | J30: 0.00 | K30: 0.00 | L30: 118,548.55 | M30: 118,548.55 | N30: 0.00 | O30: 0.00 | P30: 0.00 | Q30: 0.00
A31: 0702 | B31: 0220853031 | C31: 111 | D31: 860 | E31: 211 | F31: 93597 | G31: П211004 | H31: 309 | I31: 1 | J31: 0.00 | K31: 0.00 | L31: 74,883.79 | M31: 74,883.79 | N31: 0.00 | O31: 0.00 | P31: 0.00 | Q31: 0.00
A32: 0702 | B32: 0220853031 | C32: 111 | D32: 860 | E32: 211 | F32: 13300 | G32: П211004 | H32: 100 | I32: 1 | J32: 0.00 | K32: 0.00 | L32: 1,560,000.00 | M32: 1,560,000.00 | N32: 0.00 | O32: 0.00 | P32: 0.00 | Q32: 0.00
A33: 0702 | B33: 0220825280 | C33: 111 | D33: 860 | E33: 211 | F33: 20000 | G33: П211005 | H33: 302 | I33: 4 | J33: 0.00 | K33: 0.00 | L33: 2,999,949.92 | M33: 2,999,949.92 | N33: 0.00 | O33: 0.00 | P33: 0.00 | Q33: 0.00
A34: 0702 | B34: 0220825280 | C34: 111 | D34: 860 | E34: 211 | F34: 20000 | G34: П211004 | H34: 302 | I34: 4 | J34: 0.00 | K34: 0.00 | L34: 16,325,324.88 | M34: 16,325,324.88 | N34: 0.00 | O34: 0.00 | P34: 0.00 | Q34: 0.00
A35: 0702 | B35: 0220825280 | C35: 111 | D35: 860 | E35: 211 | F35: 13594 | G35: П211004 | H35: 302 | I35: 4 | J35: 0.00 | K35: 0.00 | L35: 1,484,350.23 | M35: 1,484,350.23 | N35: 0.00 | O35: 0.00 | P35: 0.00 | Q35: 0.00
A36: 0702 | B36: 02202S0050 | C36: 111 | D36: 860 | E36: 211 | F36: 13120 | G36: П211099 | H36: 304 | I36: 4 | J36: 0.00 | K36: 0.00 | L36: 2,382,154.32 | M36: 2,382,154.32 | N36: 0.00 | O36: 0.00 | P36: 0.00 | Q36: 0.00
A37: 0702 | B37: 02202S0050 | C37: 111 | D37: 860 | E37: 211 | F37: 13120 | G37: П211005 | H37: 304 | I37: 4 | J37: 0.00 | K37: 0.00 | L37: 328,099.72 | M37: 328,099.72 | N37: 0.00 | O37: 0.00 | P37: 0.00 | Q37: 0.00
A38: 0702 | B38: 0220242100 | C38: 111 | D38: 860 | E38: 211 | F38: 13594 | G38: П211099 | H38: 305 | I38: 4 | J38: 0.00 | K38: 0.00 | L38: 1,957,737.69 | M38: 1,957,737.69 | N38: 0.00 | O38: 0.00 | P38: 0.00 | Q38: 0.00
A39: 0702 | B39: 0220143624 | C39: 119 | D39: 860 | E39: 213 | F39: 20000 | G39: П213004 | H39: 309 | I39: 5 | J39: 0.00 | K39: 0.00 | L39: 0.01 | M39: 0.01 | N39: 0.00 | O39: 0.00 | P39: 0.00 | Q39: 0.00
A40: 0702 | B40: 0220242100 | C40: 119 | D40: 860 | E40: 213 | F40: 00000 | G40: П213005 | H40: 521 | I40: 2 | J40: 0.00 | K40: 0.00 | L40: 15,343.55 | M40: 15,343.55 | N40: 0.00 | O40: 0.00 | P40: 0.00 | Q40: 0.00
A41: 0702 | B41: 0220242100 | C41: 119 | D41: 860 | E41: 213 | F41: 00000 | G41: П213004 | H41: 521 | I41: 2 | J41: 0.00 | K41: 0.00 | L41: 35,801.45 | M41: 35,801.45 | N41: 0.00 | O41: 0.00 | P41: 0.00 | Q41: 0.00
A42: 0702 | B42: 0220853031 | C42: 119 | D42: 860 | E42: 213 | F42: 93597 | G42: П213004 | H42: 309 | I42: 1 | J42: 0.00 | K42: 0.00 | L42: 7,431.19 | M42: 7,431.19 | N42: 0.00 | O42: 0.00 | P42: 0.00 | Q42: 0.00
A43: 0702 | B43: 0220853031 | C43: 119 | D43: 860 | E43: 213 | F43: 13300 | G43: П213004 | H43: 100 | I43: 1 | J43: 0.00 | K43: 0.00 | L43: 471,120.00 | M43: 471,120.00 | N43: 0.00 | O43: 0.00 | P43: 0.00 | Q43: 0.00
A44: 0702 | B44: 0220825280 | C44: 119 | D44: 860 | E44: 213 | F44: 20000 | G44: П213005 | H44: 302 | I44: 4 | J44: 0.00 | K44: 0.00 | L44: 905,984.88 | M44: 905,984.88 | N44: 0.00 | O44: 0.00 | P44: 0.00 | Q44: 0.00
A45: 0702 | B45: 0220825280 | C45: 119 | D45: 860 | E45: 213 | F45: 20000 | G45: П213004 | H45: 302 | I45: 4 | J45: 0.00 | K45: 0.00 | L45: 4,930,248.12 | M45: 4,930,248.12 | N45: 0.00 | O45: 0.00 | P45: 0.00 | Q45: 0.00
A46: 0702 | B46: 0220825280 | C46: 119 | D46: 860 | E46: 213 | F46: 13594 | G46: П213004 | H46: 302 | I46: 4 | J46: 0.00 | K46: 0.00 | L46: 448,273.77 | M46: 448,273.77 | N46: 0.00 | O46: 0.00 | P46: 0.00 | Q46: 0.00
A47: 0702 | B47: 02202S0050 | C47: 119 | D47: 860 | E47: 213 | F47: 13120 | G47: П213099 | H47: 304 | I47: 4 | J47: 0.00 | K47: 0.00 | L47: 719,410.60 | M47: 719,410.60 | N47: 0.00 | O47: 0.00 | P47: 0.00 | Q47: 0.00
A48: 0702 | B48: 02202S0050 | C48: 119 | D48: 860 | E48: 213 | F48: 13120 | G48: П213005 | H48: 304 | I48: 4 | J48: 0.00 | K48: 0.00 | L48: 99,086.11 | M48: 99,086.11 | N48: 0.00 | O48: 0.00 | P48: 0.00 | Q48: 0.00
A49: 0702 | B49: 0220242100 | C49: 119 | D49: 860 | E49: 213 | F49: 13594 | G49: П213099 | H49: 305 | I49: 4 | J49: 0.00 | K49: 0.00 | L49: 591,236.78 | M49: 591,236.78 | N49: 0.00 | O49: 0.00 | P49: 0.00 | Q49: 0.00
A50: 1004 | B50: 0310225510 | C50: 244 | D50: 860 | E50: 226 | F50: 20000 | G50: П226003 | H50: 308 | I50: 5 | J50: 0.00 | K50: 0.00 | L50: 100,417.20 | M50: 531,664.80 | N50: 0.00 | O50: 0.00 | P50: 0.00 | Q50: 0.00
A51: 0707 | B51: 3810121320 | C51: 244 | D51: 860 | E51: 346 | F51: 12800 | G51: П346017 | H51: 306 | I51: 5 | J51: 0.00 | K51: 0.00 | L51: 6,726.90 | M51: 6,726.90 | N51: 0.00 | O51: 0.00 | P51: 0.00 | Q51: 0.00
A52: 0707 | B52: 3810121320 | C52: 244 | D52: 860 | E52: 341 | F52: 12800 | G52: П341006 | H52: 306 | I52: 5 | J52: 0.00 | K52: 0.00 | L52: 6,312.24 | M52: 6,312.24 | N52: 0.00 | O52: 0.00 | P52: 0.00 | Q52: 0.00
A53: 0707 | B53: 3810121320 | C53: 244 | D53: 860 | E53: 226 | F53: 12800 | G53: П226098 | H53: 306 | I53: 5 | J53: 0.00 | K53: 0.00 | L53: 76,440.24 | M53: 76,440.24 | N53: 0.00 | O53: 0.00 | P53: 0.00 | Q53: 0.00
A54: 0707 | B54: 3810121320 | C54: 244 | D54: 860 | E54: 226 | F54: 12800 | G54: П226003 | H54: 306 | I54: 5 | J54: 0.00 | K54: 0.00 | L54: 841,108.20 | M54: 841,108.20 | N54: 0.00 | O54: 0.00 | P54: 0.00 | Q54: 0.00
A55: 0707 | B55: 3810182320 | C55: 244 | D55: 860 | E55: 346 | F55: 99998 | G55: П346017 | H55: 306 | I55: 2 | J55: 0.00 | K55: 0.00 | L55: 1,049.58 | M55: 1,049.58 | N55: 0.00 | O55: 0.00 | P55: 0.00 | Q55: 0.00
A56: 0707 | B56: 3810182320 | C56: 244 | D56: 860 | E56: 341 | F56: 99998 | G56: П341006 | H56: 306 | I56: 2 | J56: 0.00 | K56: 0.00 | L56: 949.62 | M56: 949.62 | N56: 0.00 | O56: 0.00 | P56: 0.00 | Q56: 0.00
A57: 0707 | B57: 3810182320 | C57: 244 | D57: 860 | E57: 226 | F57: 99998 | G57: П226098 | H57: 306 | I57: 2 | J57: 0.00 | K57: 0.00 | L57: 11,445.42 | M57: 11,445.42 | N57: 0.00 | O57: 0.00 | P57: 0.00 | Q57: 0.00
A58: 0707 | B58: 3810182320 | C58: 244 | D58: 860 | E58: 226 | F58: 99998 | G58: П226003 | H58: 306 | I58: 2 | J58: 0.00 | K58: 0.00 | L58: 126,949.20 | M58: 126,949.20 | N58: 0.00 | O58: 0.00 | P58: 0.00 | Q58: 0.00
A59: 0702 | B59: 2700152208 | C59: 244 | D59: 860 | E59: 310 | F59: 00000 | G59: Н310099 | H59: 521 | I59: 2 | J59: 0.00 | K59: 0.00 | L59: 1,429.00 | M59: 1,429.00 | N59: 0.00 | O59: 0.00 | P59: 0.00 | Q59: 0.00
A60: 0702 | B60: 0220242100 | C60: 244 | D60: 860 | E60: 346 | F60: 00000 | G60: П346017 | H60: 523 | I60: 2 | J60: 0.00 | K60: 0.00 | L60: 31,200.00 | M60: 31,200.00 | N60: 0.00 | O60: 0.00 | P60: 0.00 | Q60: 0.00
A61: 0702 | B61: 0220242100 | C61: 244 | D61: 860 | E61: 310 | F61: 00000 | G61: П310098 | H61: 521 | I61: 2 | J61: 0.00 | K61: 0.00 | L61: 53,591.00 | M61: 53,591.00 | N61: 0.00 | O61: 0.00 | P61: 0.00 | Q61: 0.00
A62: 0702 | B62: 0220242100 | C62: 244 | D62: 860 | E62: 226 | F62: 00000 | G62: П226003 | H62: 522 | I62: 2 | J62: 0.00 | K62: 0.00 | L62: 1,384,667.80 | M62: 3,816,000.00 | N62: 0.00 | O62: 0.00 | P62: 0.00 | Q62: 0.00
A63: 0702 | B63: 0220242100 | C63: 244 | D63: 860 | E63: 225 | F63: 00000 | G63: П225001 | H63: 523 | I63: 2 | J63: 0.00 | K63: 0.00 | L63: 222.00 | M63: 3,600.00 | N63: 0.00 | O63: 0.00 | P63: 0.00 | Q63: 0.00
A64: 0702 | B64: 0220242100 | C64: 244 | D64: 860 | E64: 223 | F64: 00000 | G64: П223004 | H64: 523 | I64: 2 | J64: 0.00 | K64: 0.00 | L64: 0.00 | M64: 108,553.00 | N64: 0.00 | O64: 0.00 | P64: 0.00 | Q64: 0.00
A65: 0702 | B65: 0220242100 | C65: 244 | D65: 860 | E65: 223 | F65: 00000 | G65: П223004 | H65: 521 | I65: 2 | J65: 0.00 | K65: 0.00 | L65: 0.00 | M65: 9,480.00 | N65: 0.00 | O65: 0.00 | P65: 0.00 | Q65: 0.00
A66: 0702 | B66: 0710152207 | C66: 244 | D66: 860 | E66: 226 | F66: 00000 | G66: П226098 | H66: 308 | I66: 4 | J66: 0.00 | K66: 0.00 | L66: 2,000.00 | M66: 2,000.00 | N66: 0.00 | O66: 0.00 | P66: 0.00 | Q66: 0.00
A67: 0702 | B67: 0710152207 | C67: 244 | D67: 860 | E67: 225 | F67: 00000 | G67: П225001 | H67: 308 | I67: 4 | J67: 0.00 | K67: 0.00 | L67: 0.00 | M67: 70,800.00 | N67: 0.00 | O67: 0.00 | P67: 0.00 | Q67: 0.00
A68: 0702 | B68: 0510152202 | C68: 244 | D68: 860 | E68: 225 | F68: 00000 | G68: П225001 | H68: 308 | I68: 4 | J68: 0.00 | K68: 0.00 | L68: 0.00 | M68: 6,302.76 | N68: 0.00 | O68: 0.00 | P68: 0.00 | Q68: 0.00
A69: 0702 | B69: 02209L3040 | C69: 244 | D69: 860 | E69: 226 | F69: 00000 | G69: П226003 | H69: 303 | I69: 4 | J69: 0.00 | K69: 0.00 | L69: 1,621,116.50 | M69: 3,875,279.10 | N69: 0.00 | O69: 0.00 | P69: 0.00 | Q69: 0.00
A70: 0702 | B70: 0220242100 | C70: 244 | D70: 860 | E70: 226 | F70: 00000 | G70: П226098 | H70: 308 | I70: 4 | J70: 0.00 | K70: 0.00 | L70: 24,000.00 | M70: 24,000.00 | N70: 0.00 | O70: 0.00 | P70: 0.00 | Q70: 0.00
A71: 0702 | B71: 0220242100 | C71: 244 | D71: 860 | E71: 226 | F71: 00000 | G71: П226050 | H71: 308 | I71: 4 | J71: 0.00 | K71: 0.00 | L71: 140,400.00 | M71: 569,400.00 | N71: 0.00 | O71: 0.00 | P71: 0.00 | Q71: 0.00
A72: 0702 | B72: 0220242100 | C72: 244 | D72: 860 | E72: 226 | F72: 00000 | G72: П226004 | H72: 304 | I72: 4 | J72: 0.00 | K72: 0.00 | L72: 0.00 | M72: 16,863.00 | N72: 0.00 | O72: 0.00 | P72: 0.00 | Q72: 0.00
A73: 0702 | B73: 0220242100 | C73: 244 | D73: 860 | E73: 226 | F73: 00000 | G73: П226003 | H73: 308 | I73: 4 | J73: 0.00 | K73: 0.00 | L73: 161,082.60 | M73: 941,043.00 | N73: 0.00 | O73: 0.00 | P73: 0.00 | Q73: 0.00
A74: 0702 | B74: 0220242100 | C74: 244 | D74: 860 | E74: 226 | F74: 00000 | G74: П226003 | H74: 304 | I74: 4 | J74: 0.00 | K74: 0.00 | L74: 10,929.32 | M74: 326,004.72 | N74: 0.00 | O74: 0.00 | P74: 0.00 | Q74: 0.00
A75: 0702 | B75: 0220242100 | C75: 244 | D75: 860 | E75: 225 | F75: 00000 | G75: П225003 | H75: 304 | I75: 4 | J75: 0.00 | K75: 0.00 | L75: 45,252.06 | M75: 45,252.06 | N75: 0.00 | O75: 0.00 | P75: 0.00 | Q75: 0.00
A76: 0702 | B76: 0220242100 | C76: 244 | D76: 860 | E76: 223 | F76: 00000 | G76: П223017 | H76: 304 | I76: 4 | J76: 0.00 | K76: 0.00 | L76: 48,293.30 | M76: 48,293.30 | N76: 0.00 | O76: 0.00 | P76: 0.00 | Q76: 0.00
A77: 0702 | B77: 0220242100 | C77: 244 | D77: 860 | E77: 223 | F77: 00000 | G77: П223004 | H77: 304 | I77: 4 | J77: 0.00 | K77: 0.00 | L77: 0.00 | M77: 207,223.00 | N77: 0.00 | O77: 0.00 | P77: 0.00 | Q77: 0.00
A78: 0702 | B78: 0220242100 | C78: 244 | D78: 860 | E78: 221 | F78: 00000 | G78: П221099 | H78: 304 | I78: 4 | J78: 0.00 | K78: 0.00 | L78: 0.00 | M78: 21,816.00 | N78: 0.00 | O78: 0.00 | P78: 0.00 | Q78: 0.00
A79: 0702 | B79: 0220242100 | C79: 247 | D79: 860 | E79: 223 | F79: 00000 | G79: П223001 | H79: 523 | I79: 2 | J79: 0.00 | K79: 0.00 | L79: 0.00 | M79: 418,139.00 | N79: 0.00 | O79: 0.00 | P79: 0.00 | Q79: 0.00
A80: 0702 | B80: 0220242100 | C80: 247 | D80: 860 | E80: 223 | F80: 00000 | G80: П223001 | H80: 521 | I80: 2 | J80: 0.00 | K80: 0.00 | L80: 0.00 | M80: 9,000.00 | N80: 0.00 | O80: 0.00 | P80: 0.00 | Q80: 0.00
A81: 0702 | B81: 0220242100 | C81: 247 | D81: 860 | E81: 223 | F81: 00000 | G81: П223002 | H81: 304 | I81: 4 | J81: 0.00 | K81: 0.00 | L81: 0.00 | M81: 1,828,960.00 | N81: 0.00 | O81: 0.00 | P81: 0.00 | Q81: 0.00
A82: 0702 | B82: 0220242100 | C82: 247 | D82: 860 | E82: 223 | F82: 00000 | G82: П223001 | H82: 304 | I82: 4 | J82: 0.00 | K82: 0.00 | L82: 0.00 | M82: 545,591.00 | N82: 0.00 | O82: 0.00 | P82: 0.00 | Q82: 0.00
A83: 0702 | B83: 0220242100 | C83: 851 | D83: 860 | E83: 291 | F83: 00000 | G83: П291001 | H83: 523 | I83: 2 | J83: 0.00 | K83: 0.00 | L83: 306,685.44 | M83: 306,685.44 | N83: 0.00 | O83: 0.00 | P83: 0.00 | Q83: 0.00
A84: 0702 | B84: 02202S0050 | C84: 851 | D84: 860 | E84: 291 | F84: 13120 | G84: П291014 | H84: 304 | I84: 4 | J84: 0.00 | K84: 0.00 | L84: 793,050.00 | M84: 793,050.00 | N84: 0.00 | O84: 0.00 | P84: 0.00 | Q84: 0.00
A85: 0702 | B85: 02202S0050 | C85: 851 | D85: 860 | E85: 291 | F85: 13120 | G85: П291001 | H85: 308 | I85: 4 | J85: 0.00 | K85: 0.00 | L85: 575,810.45 | M85: 575,810.45 | N85: 0.00 | O85: 0.00 | P85: 0.00 | Q85: 0.00
A86: 0702 | B86: 02202S0050 | C86: 851 | D86: 860 | E86: 291 | F86: 13120 | G86: П291001 | H86: 304 | I86: 4 | J86: 0.00 | K86: 0.00 | L86: 94,170.45 | M86: 94,170.45 | N86: 0.00 | O86: 0.00 | P86: 0.00 | Q86: 0.00
A87: 0702 | B87: 02209L3040 | C87: 853 | D87: 860 | E87: 241 | F87: 93597 | G87: П241099 | H87: 309 | I87: 4 | J87: 0.00 | K87: 297,170.06 | L87: 215,192.07 | M87: 512,362.13 | N87: -297,170.06 | O87: 512,362.13 | P87: 0.00 | Q87: 0.00
J88: 0.00 | K88: 297,170.06 | L88: 42,186,282.60 | M88: 52,370,336.62 | N88: 320,004.43 | O88: 512,362.13 | P88: 22,496.40 | Q88: 594,678.09
L90: 247 | M90: =M79+M80+M81+M82 -> 2,801,690.00
K91: 221 | L91: 244 | M91: =M78 -> 21,816.00
K92: 223 | L92: 244 | M92: =M77+M76+M64+M65 -> 373,549.30
K93: 225 | L93: 244 | M93: =M63+M67+M68+M75 -> 125,954.82
K94: 226 | L94: 244 | M94: =M50+M53+M54+M57+M58+M62+M66+M69+M70+M71+M72+M73+M74 -> 11,158,197.68
K95: 310 | L95: 244 | M95: =M59+M61 -> 55,020.00
K96: 341 | L96: 244 | M96: =M52+M56 -> 7,261.86
K97: 346 | L97: 244 | M97: =M51+M55+M60 -> 38,976.48
M98: =SUBTOTAL(9, M90:M97) -> 14,582,466.14
M102: =(M50+M54+M58+M62+M69+M73+M74)*1.04 -> 10,876,370.98
M103: =M94-M50-M54-M58-M62-M69-M73-M74 -> 700,148.66

Sheet 851,853 (hidden)
A6: 851 | B6: КЦСР | C6: КВР | D6: КВСР | E6: КОСГУ | F6: Доп. ФК | G6: Доп. ЭК | H6: Доп. КР | I6: КВФО | J6: Расход по ЛС | K6: Резерв расхода по ЛС | L6: Остаток лимитов 2022 год | M6: Лимиты 2022 год | N6: Остаток финансирования | O6: КП-расходы всего год | P6: Финансирование | Q6: Финансирование на начало года
A7: 0000 | B7: 0000000000 | C7: 000 | D7: 860 | E7: 000 | F7: 00000 | G7: 0000000 | H7: 309 | I7: 5 | J7: 0.00 | K7: 0.00 | L7: 0.00 | M7: 0.00 | N7: 0.01 | O7: 0.00 | P7: 0.00 | Q7: 0.01
A8: 0000 | B8: 0000000000 | C8: 000 | D8: 860 | E8: 000 | F8: 00000 | G8: 0000000 | H8: 000 | I8: 5 | J8: 0.00 | K8: 0.00 | L8: 0.00 | M8: 0.00 | N8: 0.00 | O8: 0.00 | P8: 0.00 | Q8: 0.00
A9: 0702 | B9: 0000000000 | C9: 000 | D9: 860 | E9: 000 | F9: 00000 | G9: 0000000 | H9: 594 | I9: 2 | J9: 0.00 | K9: 0.00 | L9: 0.00 | M9: 0.00 | N9: 0.00 | O9: 0.00 | P9: 0.00 | Q9: 0.00
A10: 0702 | B10: 0000000000 | C10: 000 | D10: 860 | E10: 000 | F10: 00000 | G10: 0000000 | H10: 593 | I10: 2 | J10: 0.00 | K10: 0.00 | L10: 0.00 | M10: 0.00 | N10: 0.00 | O10: 0.00 | P10: 0.00 | Q10: 0.00
A11: 0702 | B11: 0000000000 | C11: 000 | D11: 860 | E11: 000 | F11: 00000 | G11: 0000000 | H11: 592 | I11: 2 | J11: 0.00 | K11: 0.00 | L11: 0.00 | M11: 0.00 | N11: 0.00 | O11: 0.00 | P11: 0.00 | Q11: 0.00
A12: 0702 | B12: 0000000000 | C12: 000 | D12: 860 | E12: 000 | F12: 00000 | G12: 0000000 | H12: 591 | I12: 2 | J12: 0.00 | K12: 0.00 | L12: 0.00 | M12: 0.00 | N12: 0.00 | O12: 0.00 | P12: 0.00 | Q12: 0.00
A13: 0702 | B13: 0000000000 | C13: 000 | D13: 860 | E13: 000 | F13: 00000 | G13: 0000000 | H13: 523 | I13: 2 | J13: 0.00 | K13: 0.00 | L13: 0.00 | M13: 0.00 | N13: 0.00 | O13: 0.00 | P13: 0.00 | Q13: 0.00
A14: 0702 | B14: 0000000000 | C14: 000 | D14: 860 | E14: 000 | F14: 00000 | G14: 0000000 | H14: 522 | I14: 2 | J14: 0.00 | K14: 0.00 | L14: 0.00 | M14: 0.00 | N14: 22,496.40 | O14: 0.00 | P14: 22,496.40 | Q14: 0.00
A15: 0702 | B15: 0000000000 | C15: 000 | D15: 860 | E15: 000 | F15: 00000 | G15: 0000000 | H15: 521 | I15: 2 | J15: 0.00 | K15: 0.00 | L15: 0.00 | M15: 0.00 | N15: 0.00 | O15: 0.00 | P15: 0.00 | Q15: 0.00
A16: 0702 | B16: 0000000000 | C16: 000 | D16: 860 | E16: 000 | F16: 00000 | G16: 0000000 | H16: 510 | I16: 2 | J16: 0.00 | K16: 0.00 | L16: 0.00 | M16: 0.00 | N16: 0.00 | O16: 0.00 | P16: 0.00 | Q16: 0.00
A17: 0702 | B17: 0000000000 | C17: 000 | D17: 860 | E17: 000 | F17: 00000 | G17: 0000000 | H17: 509 | I17: 2 | J17: 0.00 | K17: 0.00 | L17: 0.00 | M17: 0.00 | N17: 0.00 | O17: 0.00 | P17: 0.00 | Q17: 0.00
A18: 0702 | B18: 0000000000 | C18: 000 | D18: 860 | E18: 000 | F18: 00000 | G18: 0000000 | H18: 306 | I18: 2 | J18: 0.00 | K18: 0.00 | L18: 0.00 | M18: 0.00 | N18: 0.00 | O18: 0.00 | P18: 0.00 | Q18: 0.00
A19: 0000 | B19: 0000000000 | C19: 000 | D19: 860 | E19: 000 | F19: 93597 | G19: 0000000 | H19: 309 | I19: 4 | J19: 0.00 | K19: 0.00 | L19: 0.00 | M19: 0.00 | N19: 512,362.13 | O19: 0.00 | P19: 0.00 | Q19: 512,362.13
A20: 0000 | B20: 0000000000 | C20: 000 | D20: 860 | E20: 000 | F20: 93597 | G20: 0000000 | H20: 309 | I20: 4 | J20: 0.00 | K20: 0.00 | L20: 0.00 | M20: 0.00 | N20: 0.00 | O20: 0.00 | P20: 0.00 | Q20: 0.00
A21: 0000 | B21: 0000000000 | C21: 000 | D21: 860 | E21: 000 | F21: 93597 | G21: 0000000 | H21: 309 | I21: 1 | J21: 0.00 | K21: 0.00 | L21: 0.00 | M21: 0.00 | N21: 82,315.95 | O21: 0.00 | P21: 0.00 | Q21: 82,315.95
A22: 0000 | B22: 0000000000 | C22: 000 | D22: 860 | E22: 000 | F22: 93597 | G22: 0000000 | H22: 309 | I22: 1 | J22: 0.00 | K22: 0.00 | L22: 0.00 | M22: 0.00 | N22: 0.00 | O22: 0.00 | P22: 0.00 | Q22: 0.00
A23: 0000 | B23: 0000000000 | C23: 000 | D23: 860 | E23: 000 | F23: 13300 | G23: 0000000 | H23: 100 | I23: 1 | J23: 0.00 | K23: 0.00 | L23: 0.00 | M23: 0.00 | N23: 0.00 | O23: 0.00 | P23: 0.00 | Q23: 0.00
A24: 0000 | B24: 0000000000 | C24: 000 | D24: 860 | E24: 000 | F24: 13300 | G24: 0000000 | H24: 100 | I24: 1 | J24: 0.00 | K24: 0.00 | L24: 0.00 | M24: 0.00 | N24: 0.00 | O24: 0.00 | P24: 0.00 | Q24: 0.00
A25: 0000 | B25: 0000000000 | C25: 000 | D25: 860 | E25: 000 | F25: 00000 | G25: 0000000 | H25: 309 | I25: 4 | J25: 0.00 | K25: 0.00 | L25: 0.00 | M25: 0.00 | N25: 0.00 | O25: 0.00 | P25: 0.00 | Q25: 0.00
A26: 0000 | B26: 0000000000 | C26: 000 | D26: 860 | E26: 000 | F26: 00000 | G26: 0000000 | H26: 303 | I26: 4 | J26: 0.00 | K26: 0.00 | L26: 0.00 | M26: 0.00 | N26: 0.00 | O26: 0.00 | P26: 0.00 | Q26: 0.00
A27: 0000 | B27: 0000000000 | C27: 000 | D27: 860 | E27: 000 | F27: 00000 | G27: 0000000 | H27: 303 | I27: 4 | J27: 0.00 | K27: 0.00 | L27: 0.00 | M27: 0.00 | N27: 0.00 | O27: 0.00 | P27: 0.00 | Q27: 0.00
A28: 0000 | B28: 0000000000 | C28: 000 | D28: 860 | E28: 000 | F28: 00000 | G28: 0000000 | H28: 000 | I28: 4 | J28: 0.00 | K28: 0.00 | L28: 0.00 | M28: 0.00 | N28: 0.00 | O28: 0.00 | P28: 0.00 | Q28: 0.00
A29: 0702 | B29: 0220242100 | C29: 111 | D29: 860 | E29: 211 | F29: 00000 | G29: П211005 | H29: 521 | I29: 2 | J29: 0.00 | K29: 0.00 | L29: 50,806.45 | M29: 50,806.45 | N29: 0.00 | O29: 0.00 | P29: 0.00 | Q29: 0.00
A30: 0702 | B30: 0220242100 | C30: 111 | D30: 860 | E30: 211 | F30: 00000 | G30: П211004 | H30: 521 | I30: 2 | J30: 0.00 | K30: 0.00 | L30: 118,548.55 | M30: 118,548.55 | N30: 0.00 | O30: 0.00 | P30: 0.00 | Q30: 0.00
A31: 0702 | B31: 0220853031 | C31: 111 | D31: 860 | E31: 211 | F31: 93597 | G31: П211004 | H31: 309 | I31: 1 | J31: 0.00 | K31: 0.00 | L31: 74,883.79 | M31: 74,883.79 | N31: 0.00 | O31: 0.00 | P31: 0.00 | Q31: 0.00
A32: 0702 | B32: 0220853031 | C32: 111 | D32: 860 | E32: 211 | F32: 13300 | G32: П211004 | H32: 100 | I32: 1 | J32: 0.00 | K32: 0.00 | L32: 1,560,000.00 | M32: 1,560,000.00 | N32: 0.00 | O32: 0.00 | P32: 0.00 | Q32: 0.00
A33: 0702 | B33: 0220825280 | C33: 111 | D33: 860 | E33: 211 | F33: 20000 | G33: П211005 | H33: 302 | I33: 4 | J33: 0.00 | K33: 0.00 | L33: 2,999,949.92 | M33: 2,999,949.92 | N33: 0.00 | O33: 0.00 | P33: 0.00 | Q33: 0.00
A34: 0702 | B34: 0220825280 | C34: 111 | D34: 860 | E34: 211 | F34: 20000 | G34: П211004 | H34: 302 | I34: 4 | J34: 0.00 | K34: 0.00 | L34: 16,325,324.88 | M34: 16,325,324.88 | N34: 0.00 | O34: 0.00 | P34: 0.00 | Q34: 0.00
A35: 0702 | B35: 0220825280 | C35: 111 | D35: 860 | E35: 211 | F35: 13594 | G35: П211004 | H35: 302 | I35: 4 | J35: 0.00 | K35: 0.00 | L35: 1,484,350.23 | M35: 1,484,350.23 | N35: 0.00 | O35: 0.00 | P35: 0.00 | Q35: 0.00
A36: 0702 | B36: 02202S0050 | C36: 111 | D36: 860 | E36: 211 | F36: 13120 | G36: П211099 | H36: 304 | I36: 4 | J36: 0.00 | K36: 0.00 | L36: 2,382,154.32 | M36: 2,382,154.32 | N36: 0.00 | O36: 0.00 | P36: 0.00 | Q36: 0.00
A37: 0702 | B37: 02202S0050 | C37: 111 | D37: 860 | E37: 211 | F37: 13120 | G37: П211005 | H37: 304 | I37: 4 | J37: 0.00 | K37: 0.00 | L37: 328,099.72 | M37: 328,099.72 | N37: 0.00 | O37: 0.00 | P37: 0.00 | Q37: 0.00
A38: 0702 | B38: 0220242100 | C38: 111 | D38: 860 | E38: 211 | F38: 13594 | G38: П211099 | H38: 305 | I38: 4 | J38: 0.00 | K38: 0.00 | L38: 1,957,737.69 | M38: 1,957,737.69 | N38: 0.00 | O38: 0.00 | P38: 0.00 | Q38: 0.00
A39: 0702 | B39: 0220143624 | C39: 119 | D39: 860 | E39: 213 | F39: 20000 | G39: П213004 | H39: 309 | I39: 5 | J39: 0.00 | K39: 0.00 | L39: 0.01 | M39: 0.01 | N39: 0.00 | O39: 0.00 | P39: 0.00 | Q39: 0.00
A40: 0702 | B40: 0220242100 | C40: 119 | D40: 860 | E40: 213 | F40: 00000 | G40: П213005 | H40: 521 | I40: 2 | J40: 0.00 | K40: 0.00 | L40: 15,343.55 | M40: 15,343.55 | N40: 0.00 | O40: 0.00 | P40: 0.00 | Q40: 0.00
A41: 0702 | B41: 0220242100 | C41: 119 | D41: 860 | E41: 213 | F41: 00000 | G41: П213004 | H41: 521 | I41: 2 | J41: 0.00 | K41: 0.00 | L41: 35,801.45 | M41: 35,801.45 | N41: 0.00 | O41: 0.00 | P41: 0.00 | Q41: 0.00
A42: 0702 | B42: 0220853031 | C42: 119 | D42: 860 | E42: 213 | F42: 93597 | G42: П213004 | H42: 309 | I42: 1 | J42: 0.00 | K42: 0.00 | L42: 7,431.19 | M42: 7,431.19 | N42: 0.00 | O42: 0.00 | P42: 0.00 | Q42: 0.00
A43: 0702 | B43: 0220853031 | C43: 119 | D43: 860 | E43: 213 | F43: 13300 | G43: П213004 | H43: 100 | I43: 1 | J43: 0.00 | K43: 0.00 | L43: 471,120.00 | M43: 471,120.00 | N43: 0.00 | O43: 0.00 | P43: 0.00 | Q43: 0.00
A44: 0702 | B44: 0220825280 | C44: 119 | D44: 860 | E44: 213 | F44: 20000 | G44: П213005 | H44: 302 | I44: 4 | J44: 0.00 | K44: 0.00 | L44: 905,984.88 | M44: 905,984.88 | N44: 0.00 | O44: 0.00 | P44: 0.00 | Q44: 0.00
A45: 0702 | B45: 0220825280 | C45: 119 | D45: 860 | E45: 213 | F45: 20000 | G45: П213004 | H45: 302 | I45: 4 | J45: 0.00 | K45: 0.00 | L45: 4,930,248.12 | M45: 4,930,248.12 | N45: 0.00 | O45: 0.00 | P45: 0.00 | Q45: 0.00
A46: 0702 | B46: 0220825280 | C46: 119 | D46: 860 | E46: 213 | F46: 13594 | G46: П213004 | H46: 302 | I46: 4 | J46: 0.00 | K46: 0.00 | L46: 448,273.77 | M46: 448,273.77 | N46: 0.00 | O46: 0.00 | P46: 0.00 | Q46: 0.00
A47: 0702 | B47: 02202S0050 | C47: 119 | D47: 860 | E47: 213 | F47: 13120 | G47: П213099 | H47: 304 | I47: 4 | J47: 0.00 | K47: 0.00 | L47: 719,410.60 | M47: 719,410.60 | N47: 0.00 | O47: 0.00 | P47: 0.00 | Q47: 0.00
A48: 0702 | B48: 02202S0050 | C48: 119 | D48: 860 | E48: 213 | F48: 13120 | G48: П213005 | H48: 304 | I48: 4 | J48: 0.00 | K48: 0.00 | L48: 99,086.11 | M48: 99,086.11 | N48: 0.00 | O48: 0.00 | P48: 0.00 | Q48: 0.00
A49: 0702 | B49: 0220242100 | C49: 119 | D49: 860 | E49: 213 | F49: 13594 | G49: П213099 | H49: 305 | I49: 4 | J49: 0.00 | K49: 0.00 | L49: 591,236.78 | M49: 591,236.78 | N49: 0.00 | O49: 0.00 | P49: 0.00 | Q49: 0.00
A50: 1004 | B50: 0310225510 | C50: 244 | D50: 860 | E50: 226 | F50: 20000 | G50: П226003 | H50: 308 | I50: 5 | J50: 0.00 | K50: 0.00 | L50: 100,417.20 | M50: 531,664.80 | N50: 0.00 | O50: 0.00 | P50: 0.00 | Q50: 0.00
A51: 0707 | B51: 3810121320 | C51: 244 | D51: 860 | E51: 346 | F51: 12800 | G51: П346017 | H51: 306 | I51: 5 | J51: 0.00 | K51: 0.00 | L51: 6,726.90 | M51: 6,726.90 | N51: 0.00 | O51: 0.00 | P51: 0.00 | Q51: 0.00
A52: 0707 | B52: 3810121320 | C52: 244 | D52: 860 | E52: 341 | F52: 12800 | G52: П341006 | H52: 306 | I52: 5 | J52: 0.00 | K52: 0.00 | L52: 6,312.24 | M52: 6,312.24 | N52: 0.00 | O52: 0.00 | P52: 0.00 | Q52: 0.00
A53: 0707 | B53: 3810121320 | C53: 244 | D53: 860 | E53: 226 | F53: 12800 | G53: П226098 | H53: 306 | I53: 5 | J53: 0.00 | K53: 0.00 | L53: 76,440.24 | M53: 76,440.24 | N53: 0.00 | O53: 0.00 | P53: 0.00 | Q53: 0.00
A54: 0707 | B54: 3810121320 | C54: 244 | D54: 860 | E54: 226 | F54: 12800 | G54: П226003 | H54: 306 | I54: 5 | J54: 0.00 | K54: 0.00 | L54: 841,108.20 | M54: 841,108.20 | N54: 0.00 | O54: 0.00 | P54: 0.00 | Q54: 0.00
A55: 0707 | B55: 3810182320 | C55: 244 | D55: 860 | E55: 346 | F55: 99998 | G55: П346017 | H55: 306 | I55: 2 | J55: 0.00 | K55: 0.00 | L55: 1,049.58 | M55: 1,049.58 | N55: 0.00 | O55: 0.00 | P55: 0.00 | Q55: 0.00
A56: 0707 | B56: 3810182320 | C56: 244 | D56: 860 | E56: 341 | F56: 99998 | G56: П341006 | H56: 306 | I56: 2 | J56: 0.00 | K56: 0.00 | L56: 949.62 | M56: 949.62 | N56: 0.00 | O56: 0.00 | P56: 0.00 | Q56: 0.00
A57: 0707 | B57: 3810182320 | C57: 244 | D57: 860 | E57: 226 | F57: 99998 | G57: П226098 | H57: 306 | I57: 2 | J57: 0.00 | K57: 0.00 | L57: 11,445.42 | M57: 11,445.42 | N57: 0.00 | O57: 0.00 | P57: 0.00 | Q57: 0.00
A58: 0707 | B58: 3810182320 | C58: 244 | D58: 860 | E58: 226 | F58: 99998 | G58: П226003 | H58: 306 | I58: 2 | J58: 0.00 | K58: 0.00 | L58: 126,949.20 | M58: 126,949.20 | N58: 0.00 | O58: 0.00 | P58: 0.00 | Q58: 0.00
A59: 0702 | B59: 2700152208 | C59: 244 | D59: 860 | E59: 310 | F59: 00000 | G59: Н310099 | H59: 521 | I59: 2 | J59: 0.00 | K59: 0.00 | L59: 1,429.00 | M59: 1,429.00 | N59: 0.00 | O59: 0.00 | P59: 0.00 | Q59: 0.00
A60: 0702 | B60: 0220242100 | C60: 244 | D60: 860 | E60: 346 | F60: 00000 | G60: П346017 | H60: 523 | I60: 2 | J60: 0.00 | K60: 0.00 | L60: 31,200.00 | M60: 31,200.00 | N60: 0.00 | O60: 0.00 | P60: 0.00 | Q60: 0.00
A61: 0702 | B61: 0220242100 | C61: 244 | D61: 860 | E61: 310 | F61: 00000 | G61: П310098 | H61: 521 | I61: 2 | J61: 0.00 | K61: 0.00 | L61: 53,591.00 | M61: 53,591.00 | N61: 0.00 | O61: 0.00 | P61: 0.00 | Q61: 0.00
A62: 0702 | B62: 0220242100 | C62: 244 | D62: 860 | E62: 226 | F62: 00000 | G62: П226003 | H62: 522 | I62: 2 | J62: 0.00 | K62: 0.00 | L62: 1,384,667.80 | M62: 3,816,000.00 | N62: 0.00 | O62: 0.00 | P62: 0.00 | Q62: 0.00
A63: 0702 | B63: 0220242100 | C63: 244 | D63: 860 | E63: 225 | F63: 00000 | G63: П225001 | H63: 523 | I63: 2 | J63: 0.00 | K63: 0.00 | L63: 222.00 | M63: 3,600.00 | N63: 0.00 | O63: 0.00 | P63: 0.00 | Q63: 0.00
A64: 0702 | B64: 0220242100 | C64: 244 | D64: 860 | E64: 223 | F64: 00000 | G64: П223004 | H64: 523 | I64: 2 | J64: 0.00 | K64: 0.00 | L64: 0.00 | M64: 108,553.00 | N64: 0.00 | O64: 0.00 | P64: 0.00 | Q64: 0.00
A65: 0702 | B65: 0220242100 | C65: 244 | D65: 860 | E65: 223 | F65: 00000 | G65: П223004 | H65: 521 | I65: 2 | J65: 0.00 | K65: 0.00 | L65: 0.00 | M65: 9,480.00 | N65: 0.00 | O65: 0.00 | P65: 0.00 | Q65: 0.00
A66: 0702 | B66: 0710152207 | C66: 244 | D66: 860 | E66: 226 | F66: 00000 | G66: П226098 | H66: 308 | I66: 4 | J66: 0.00 | K66: 0.00 | L66: 2,000.00 | M66: 2,000.00 | N66: 0.00 | O66: 0.00 | P66: 0.00 | Q66: 0.00
A67: 0702 | B67: 0710152207 | C67: 244 | D67: 860 | E67: 225 | F67: 00000 | G67: П225001 | H67: 308 | I67: 4 | J67: 0.00 | K67: 0.00 | L67: 0.00 | M67: 70,800.00 | N67: 0.00 | O67: 0.00 | P67: 0.00 | Q67: 0.00
A68: 0702 | B68: 0510152202 | C68: 244 | D68: 860 | E68: 225 | F68: 00000 | G68: П225001 | H68: 308 | I68: 4 | J68: 0.00 | K68: 0.00 | L68: 0.00 | M68: 6,302.76 | N68: 0.00 | O68: 0.00 | P68: 0.00 | Q68: 0.00
A69: 0702 | B69: 02209L3040 | C69: 244 | D69: 860 | E69: 226 | F69: 00000 | G69: П226003 | H69: 303 | I69: 4 | J69: 0.00 | K69: 0.00 | L69: 1,621,116.50 | M69: 3,875,279.10 | N69: 0.00 | O69: 0.00 | P69: 0.00 | Q69: 0.00
A70: 0702 | B70: 0220242100 | C70: 244 | D70: 860 | E70: 226 | F70: 00000 | G70: П226098 | H70: 308 | I70: 4 | J70: 0.00 | K70: 0.00 | L70: 24,000.00 | M70: 24,000.00 | N70: 0.00 | O70: 0.00 | P70: 0.00 | Q70: 0.00
A71: 0702 | B71: 0220242100 | C71: 244 | D71: 860 | E71: 226 | F71: 00000 | G71: П226050 | H71: 308 | I71: 4 | J71: 0.00 | K71: 0.00 | L71: 140,400.00 | M71: 569,400.00 | N71: 0.00 | O71: 0.00 | P71: 0.00 | Q71: 0.00
A72: 0702 | B72: 0220242100 | C72: 244 | D72: 860 | E72: 226 | F72: 00000 | G72: П226004 | H72: 304 | I72: 4 | J72: 0.00 | K72: 0.00 | L72: 0.00 | M72: 16,863.00 | N72: 0.00 | O72: 0.00 | P72: 0.00 | Q72: 0.00
A73: 0702 | B73: 0220242100 | C73: 244 | D73: 860 | E73: 226 | F73: 00000 | G73: П226003 | H73: 308 | I73: 4 | J73: 0.00 | K73: 0.00 | L73: 161,082.60 | M73: 941,043.00 | N73: 0.00 | O73: 0.00 | P73: 0.00 | Q73: 0.00
A74: 0702 | B74: 0220242100 | C74: 244 | D74: 860 | E74: 226 | F74: 00000 | G74: П226003 | H74: 304 | I74: 4 | J74: 0.00 | K74: 0.00 | L74: 10,929.32 | M74: 326,004.72 | N74: 0.00 | O74: 0.00 | P74: 0.00 | Q74: 0.00
A75: 0702 | B75: 0220242100 | C75: 244 | D75: 860 | E75: 225 | F75: 00000 | G75: П225003 | H75: 304 | I75: 4 | J75: 0.00 | K75: 0.00 | L75: 45,252.06 | M75: 45,252.06 | N75: 0.00 | O75: 0.00 | P75: 0.00 | Q75: 0.00
A76: 0702 | B76: 0220242100 | C76: 244 | D76: 860 | E76: 223 | F76: 00000 | G76: П223017 | H76: 304 | I76: 4 | J76: 0.00 | K76: 0.00 | L76: 48,293.30 | M76: 48,293.30 | N76: 0.00 | O76: 0.00 | P76: 0.00 | Q76: 0.00
A77: 0702 | B77: 0220242100 | C77: 244 | D77: 860 | E77: 223 | F77: 00000 | G77: П223004 | H77: 304 | I77: 4 | J77: 0.00 | K77: 0.00 | L77: 0.00 | M77: 207,223.00 | N77: 0.00 | O77: 0.00 | P77: 0.00 | Q77: 0.00
A78: 0702 | B78: 0220242100 | C78: 244 | D78: 860 | E78: 221 | F78: 00000 | G78: П221099 | H78: 304 | I78: 4 | J78: 0.00 | K78: 0.00 | L78: 0.00 | M78: 21,816.00 | N78: 0.00 | O78: 0.00 | P78: 0.00 | Q78: 0.00
A79: 0702 | B79: 0220242100 | C79: 247 | D79: 860 | E79: 223 | F79: 00000 | G79: П223001 | H79: 523 | I79: 2 | J79: 0.00 | K79: 0.00 | L79: 0.00 | M79: 418,139.00 | N79: 0.00 | O79: 0.00 | P79: 0.00 | Q79: 0.00
A80: 0702 | B80: 0220242100 | C80: 247 | D80: 860 | E80: 223 | F80: 00000 | G80: П223001 | H80: 521 | I80: 2 | J80: 0.00 | K80: 0.00 | L80: 0.00 | M80: 9,000.00 | N80: 0.00 | O80: 0.00 | P80: 0.00 | Q80: 0.00
A81: 0702 | B81: 0220242100 | C81: 247 | D81: 860 | E81: 223 | F81: 00000 | G81: П223002 | H81: 304 | I81: 4 | J81: 0.00 | K81: 0.00 | L81: 0.00 | M81: 1,828,960.00 | N81: 0.00 | O81: 0.00 | P81: 0.00 | Q81: 0.00
A82: 0702 | B82: 0220242100 | C82: 247 | D82: 860 | E82: 223 | F82: 00000 | G82: П223001 | H82: 304 | I82: 4 | J82: 0.00 | K82: 0.00 | L82: 0.00 | M82: 545,591.00 | N82: 0.00 | O82: 0.00 | P82: 0.00 | Q82: 0.00
A83: 0702 | B83: 0220242100 | C83: 851 | D83: 860 | E83: 291 | F83: 00000 | G83: П291001 | H83: 523 | I83: 2 | J83: 0.00 | K83: 0.00 | L83: 306,685.44 | M83: 306,685.44 | N83: 0.00 | O83: 0.00 | P83: 0.00 | Q83: 0.00
A84: 0702 | B84: 02202S0050 | C84: 851 | D84: 860 | E84: 291 | F84: 13120 | G84: П291014 | H84: 304 | I84: 4 | J84: 0.00 | K84: 0.00 | L84: 793,050.00 | M84: 793,050.00 | N84: 0.00 | O84: 0.00 | P84: 0.00 | Q84: 0.00
A85: 0702 | B85: 02202S0050 | C85: 851 | D85: 860 | E85: 291 | F85: 13120 | G85: П291001 | H85: 308 | I85: 4 | J85: 0.00 | K85: 0.00 | L85: 575,810.45 | M85: 575,810.45 | N85: 0.00 | O85: 0.00 | P85: 0.00 | Q85: 0.00
A86: 0702 | B86: 02202S0050 | C86: 851 | D86: 860 | E86: 291 | F86: 13120 | G86: П291001 | H86: 304 | I86: 4 | J86: 0.00 | K86: 0.00 | L86: 94,170.45 | M86: 94,170.45 | N86: 0.00 | O86: 0.00 | P86: 0.00 | Q86: 0.00
A87: 0702 | B87: 02209L3040 | C87: 853 | D87: 860 | E87: 241 | F87: 93597 | G87: П241099 | H87: 309 | I87: 4 | J87: 0.00 | K87: 297,170.06 | L87: 215,192.07 | M87: 512,362.13 | N87: -297,170.06 | O87: 512,362.13 | P87: 0.00 | Q87: 0.00
J88: 0.00 | K88: 297,170.06 | L88: 42,186,282.60 | M88: 52,370,336.62 | N88: 320,004.43 | O88: 512,362.13 | P88: 22,496.40 | Q88: 594,678.09
M90: =M83+M84+M85+M86 -> 1,769,716.34

Sheet 111, 119 (hidden)
A6: КФСР | B6: КЦСР | C6: КВР | D6: КВСР | E6: КОСГУ | F6: Доп. ФК | G6: Доп. ЭК | H6: Доп. КР | I6: КВФО | J6: Расход по ЛС | K6: Резерв расхода по ЛС | L6: Остаток лимитов 2022 год | M6: Лимиты 2022 год | N6: Остаток финансирования | O6: КП-расходы всего год | P6: Финансирование | Q6: Финансирование на начало года
A7: 0000 | B7: 0000000000 | C7: 000 | D7: 860 | E7: 000 | F7: 00000 | G7: 0000000 | H7: 309 | I7: 5 | J7: 0.00 | K7: 0.00 | L7: 0.00 | M7: 0.00 | N7: 0.01 | O7: 0.00 | P7: 0.00 | Q7: 0.01
A8: 0000 | B8: 0000000000 | C8: 000 | D8: 860 | E8: 000 | F8: 00000 | G8: 0000000 | H8: 000 | I8: 5 | J8: 0.00 | K8: 0.00 | L8: 0.00 | M8: 0.00 | N8: 0.00 | O8: 0.00 | P8: 0.00 | Q8: 0.00
A9: 0702 | B9: 0000000000 | C9: 000 | D9: 860 | E9: 000 | F9: 00000 | G9: 0000000 | H9: 594 | I9: 2 | J9: 0.00 | K9: 0.00 | L9: 0.00 | M9: 0.00 | N9: 0.00 | O9: 0.00 | P9: 0.00 | Q9: 0.00
A10: 0702 | B10: 0000000000 | C10: 000 | D10: 860 | E10: 000 | F10: 00000 | G10: 0000000 | H10: 593 | I10: 2 | J10: 0.00 | K10: 0.00 | L10: 0.00 | M10: 0.00 | N10: 0.00 | O10: 0.00 | P10: 0.00 | Q10: 0.00
A11: 0702 | B11: 0000000000 | C11: 000 | D11: 860 | E11: 000 | F11: 00000 | G11: 0000000 | H11: 592 | I11: 2 | J11: 0.00 | K11: 0.00 | L11: 0.00 | M11: 0.00 | N11: 0.00 | O11: 0.00 | P11: 0.00 | Q11: 0.00
A12: 0702 | B12: 0000000000 | C12: 000 | D12: 860 | E12: 000 | F12: 00000 | G12: 0000000 | H12: 591 | I12: 2 | J12: 0.00 | K12: 0.00 | L12: 0.00 | M12: 0.00 | N12: 0.00 | O12: 0.00 | P12: 0.00 | Q12: 0.00
A13: 0702 | B13: 0000000000 | C13: 000 | D13: 860 | E13: 000 | F13: 00000 | G13: 0000000 | H13: 523 | I13: 2 | J13: 0.00 | K13: 0.00 | L13: 0.00 | M13: 0.00 | N13: 0.00 | O13: 0.00 | P13: 0.00 | Q13: 0.00
A14: 0702 | B14: 0000000000 | C14: 000 | D14: 860 | E14: 000 | F14: 00000 | G14: 0000000 | H14: 522 | I14: 2 | J14: 0.00 | K14: 0.00 | L14: 0.00 | M14: 0.00 | N14: 22,496.40 | O14: 0.00 | P14: 22,496.40 | Q14: 0.00
A15: 0702 | B15: 0000000000 | C15: 000 | D15: 860 | E15: 000 | F15: 00000 | G15: 0000000 | H15: 521 | I15: 2 | J15: 0.00 | K15: 0.00 | L15: 0.00 | M15: 0.00 | N15: 0.00 | O15: 0.00 | P15: 0.00 | Q15: 0.00
A16: 0702 | B16: 0000000000 | C16: 000 | D16: 860 | E16: 000 | F16: 00000 | G16: 0000000 | H16: 510 | I16: 2 | J16: 0.00 | K16: 0.00 | L16: 0.00 | M16: 0.00 | N16: 0.00 | O16: 0.00 | P16: 0.00 | Q16: 0.00
A17: 0702 | B17: 0000000000 | C17: 000 | D17: 860 | E17: 000 | F17: 00000 | G17: 0000000 | H17: 509 | I17: 2 | J17: 0.00 | K17: 0.00 | L17: 0.00 | M17: 0.00 | N17: 0.00 | O17: 0.00 | P17: 0.00 | Q17: 0.00
A18: 0702 | B18: 0000000000 | C18: 000 | D18: 860 | E18: 000 | F18: 00000 | G18: 0000000 | H18: 306 | I18: 2 | J18: 0.00 | K18: 0.00 | L18: 0.00 | M18: 0.00 | N18: 0.00 | O18: 0.00 | P18: 0.00 | Q18: 0.00
A19: 0000 | B19: 0000000000 | C19: 000 | D19: 860 | E19: 000 | F19: 93597 | G19: 0000000 | H19: 309 | I19: 4 | J19: 0.00 | K19: 0.00 | L19: 0.00 | M19: 0.00 | N19: 512,362.13 | O19: 0.00 | P19: 0.00 | Q19: 512,362.13
A20: 0000 | B20: 0000000000 | C20: 000 | D20: 860 | E20: 000 | F20: 93597 | G20: 0000000 | H20: 309 | I20: 4 | J20: 0.00 | K20: 0.00 | L20: 0.00 | M20: 0.00 | N20: 0.00 | O20: 0.00 | P20: 0.00 | Q20: 0.00
A21: 0000 | B21: 0000000000 | C21: 000 | D21: 860 | E21: 000 | F21: 93597 | G21: 0000000 | H21: 309 | I21: 1 | J21: 0.00 | K21: 0.00 | L21: 0.00 | M21: 0.00 | N21: 82,315.95 | O21: 0.00 | P21: 0.00 | Q21: 82,315.95
A22: 0000 | B22: 0000000000 | C22: 000 | D22: 860 | E22: 000 | F22: 93597 | G22: 0000000 | H22: 309 | I22: 1 | J22: 0.00 | K22: 0.00 | L22: 0.00 | M22: 0.00 | N22: 0.00 | O22: 0.00 | P22: 0.00 | Q22: 0.00
A23: 0000 | B23: 0000000000 | C23: 000 | D23: 860 | E23: 000 | F23: 13300 | G23: 0000000 | H23: 100 | I23: 1 | J23: 0.00 | K23: 0.00 | L23: 0.00 | M23: 0.00 | N23: 0.00 | O23: 0.00 | P23: 0.00 | Q23: 0.00
A24: 0000 | B24: 0000000000 | C24: 000 | D24: 860 | E24: 000 | F24: 13300 | G24: 0000000 | H24: 100 | I24: 1 | J24: 0.00 | K24: 0.00 | L24: 0.00 | M24: 0.00 | N24: 0.00 | O24: 0.00 | P24: 0.00 | Q24: 0.00
A25: 0000 | B25: 0000000000 | C25: 000 | D25: 860 | E25: 000 | F25: 00000 | G25: 0000000 | H25: 309 | I25: 4 | J25: 0.00 | K25: 0.00 | L25: 0.00 | M25: 0.00 | N25: 0.00 | O25: 0.00 | P25: 0.00 | Q25: 0.00
A26: 0000 | B26: 0000000000 | C26: 000 | D26: 860 | E26: 000 | F26: 00000 | G26: 0000000 | H26: 303 | I26: 4 | J26: 0.00 | K26: 0.00 | L26: 0.00 | M26: 0.00 | N26: 0.00 | O26: 0.00 | P26: 0.00 | Q26: 0.00
A27: 0000 | B27: 0000000000 | C27: 000 | D27: 860 | E27: 000 | F27: 00000 | G27: 0000000 | H27: 303 | I27: 4 | J27: 0.00 | K27: 0.00 | L27: 0.00 | M27: 0.00 | N27: 0.00 | O27: 0.00 | P27: 0.00 | Q27: 0.00
A28: 0000 | B28: 0000000000 | C28: 000 | D28: 860 | E28: 000 | F28: 00000 | G28: 0000000 | H28: 000 | I28: 4 | J28: 0.00 | K28: 0.00 | L28: 0.00 | M28: 0.00 | N28: 0.00 | O28: 0.00 | P28: 0.00 | Q28: 0.00
A29: 0702 | B29: 0220242100 | C29: 111 | D29: 860 | E29: 211 | F29: 00000 | G29: П211005 | H29: 521 | I29: 2 | J29: 0.00 | K29: 0.00 | L29: 50,806.45 | M29: 50,806.45 | N29: 0.00 | O29: 0.00 | P29: 0.00 | Q29: 0.00
A30: 0702 | B30: 0220242100 | C30: 111 | D30: 860 | E30: 211 | F30: 00000 | G30: П211004 | H30: 521 | I30: 2 | J30: 0.00 | K30: 0.00 | L30: 118,548.55 | M30: 118,548.55 | N30: 0.00 | O30: 0.00 | P30: 0.00 | Q30: 0.00
A31: 0702 | B31: 0220853031 | C31: 111 | D31: 860 | E31: 211 | F31: 93597 | G31: П211004 | H31: 309 | I31: 1 | J31: 0.00 | K31: 0.00 | L31: 74,883.79 | M31: 74,883.79 | N31: 0.00 | O31: 0.00 | P31: 0.00 | Q31: 0.00
A32: 0702 | B32: 0220853031 | C32: 111 | D32: 860 | E32: 211 | F32: 13300 | G32: П211004 | H32: 100 | I32: 1 | J32: 0.00 | K32: 0.00 | L32: 1,560,000.00 | M32: 1,560,000.00 | N32: 0.00 | O32: 0.00 | P32: 0.00 | Q32: 0.00
A33: 0702 | B33: 0220825280 | C33: 111 | D33: 860 | E33: 211 | F33: 20000 | G33: П211005 | H33: 302 | I33: 4 | J33: 0.00 | K33: 0.00 | L33: 2,999,949.92 | M33: 2,999,949.92 | N33: 0.00 | O33: 0.00 | P33: 0.00 | Q33: 0.00
A34: 0702 | B34: 0220825280 | C34: 111 | D34: 860 | E34: 211 | F34: 20000 | G34: П211004 | H34: 302 | I34: 4 | J34: 0.00 | K34: 0.00 | L34: 16,325,324.88 | M34: 16,325,324.88 | N34: 0.00 | O34: 0.00 | P34: 0.00 | Q34: 0.00
A35: 0702 | B35: 0220825280 | C35: 111 | D35: 860 | E35: 211 | F35: 13594 | G35: П211004 | H35: 302 | I35: 4 | J35: 0.00 | K35: 0.00 | L35: 1,484,350.23 | M35: 1,484,350.23 | N35: 0.00 | O35: 0.00 | P35: 0.00 | Q35: 0.00
A36: 0702 | B36: 02202S0050 | C36: 111 | D36: 860 | E36: 211 | F36: 13120 | G36: П211099 | H36: 304 | I36: 4 | J36: 0.00 | K36: 0.00 | L36: 2,382,154.32 | M36: 2,382,154.32 | N36: 0.00 | O36: 0.00 | P36: 0.00 | Q36: 0.00
A37: 0702 | B37: 02202S0050 | C37: 111 | D37: 860 | E37: 211 | F37: 13120 | G37: П211005 | H37: 304 | I37: 4 | J37: 0.00 | K37: 0.00 | L37: 328,099.72 | M37: 328,099.72 | N37: 0.00 | O37: 0.00 | P37: 0.00 | Q37: 0.00
A38: 0702 | B38: 0220242100 | C38: 111 | D38: 860 | E38: 211 | F38: 13594 | G38: П211099 | H38: 305 | I38: 4 | J38: 0.00 | K38: 0.00 | L38: 1,957,737.69 | M38: 1,957,737.69 | N38: 0.00 | O38: 0.00 | P38: 0.00 | Q38: 0.00
A39: 0702 | B39: 0220143624 | C39: 119 | D39: 860 | E39: 213 | F39: 20000 | G39: П213004 | H39: 309 | I39: 5 | J39: 0.00 | K39: 0.00 | L39: 0.01 | M39: 0.01 | N39: 0.00 | O39: 0.00 | P39: 0.00 | Q39: 0.00
A40: 0702 | B40: 0220242100 | C40: 119 | D40: 860 | E40: 213 | F40: 00000 | G40: П213005 | H40: 521 | I40: 2 | J40: 0.00 | K40: 0.00 | L40: 15,343.55 | M40: 15,343.55 | N40: 0.00 | O40: 0.00 | P40: 0.00 | Q40: 0.00
A41: 0702 | B41: 0220242100 | C41: 119 | D41: 860 | E41: 213 | F41: 00000 | G41: П213004 | H41: 521 | I41: 2 | J41: 0.00 | K41: 0.00 | L41: 35,801.45 | M41: 35,801.45 | N41: 0.00 | O41: 0.00 | P41: 0.00 | Q41: 0.00
A42: 0702 | B42: 0220853031 | C42: 119 | D42: 860 | E42: 213 | F42: 93597 | G42: П213004 | H42: 309 | I42: 1 | J42: 0.00 | K42: 0.00 | L42: 7,431.19 | M42: 7,431.19 | N42: 0.00 | O42: 0.00 | P42: 0.00 | Q42: 0.00
A43: 0702 | B43: 0220853031 | C43: 119 | D43: 860 | E43: 213 | F43: 13300 | G43: П213004 | H43: 100 | I43: 1 | J43: 0.00 | K43: 0.00 | L43: 471,120.00 | M43: 471,120.00 | N43: 0.00 | O43: 0.00 | P43: 0.00 | Q43: 0.00
A44: 0702 | B44: 0220825280 | C44: 119 | D44: 860 | E44: 213 | F44: 20000 | G44: П213005 | H44: 302 | I44: 4 | J44: 0.00 | K44: 0.00 | L44: 905,984.88 | M44: 905,984.88 | N44: 0.00 | O44: 0.00 | P44: 0.00 | Q44: 0.00
A45: 0702 | B45: 0220825280 | C45: 119 | D45: 860 | E45: 213 | F45: 20000 | G45: П213004 | H45: 302 | I45: 4 | J45: 0.00 | K45: 0.00 | L45: 4,930,248.12 | M45: 4,930,248.12 | N45: 0.00 | O45: 0.00 | P45: 0.00 | Q45: 0.00
A46: 0702 | B46: 0220825280 | C46: 119 | D46: 860 | E46: 213 | F46: 13594 | G46: П213004 | H46: 302 | I46: 4 | J46: 0.00 | K46: 0.00 | L46: 448,273.77 | M46: 448,273.77 | N46: 0.00 | O46: 0.00 | P46: 0.00 | Q46: 0.00
A47: 0702 | B47: 02202S0050 | C47: 119 | D47: 860 | E47: 213 | F47: 13120 | G47: П213099 | H47: 304 | I47: 4 | J47: 0.00 | K47: 0.00 | L47: 719,410.60 | M47: 719,410.60 | N47: 0.00 | O47: 0.00 | P47: 0.00 | Q47: 0.00
A48: 0702 | B48: 02202S0050 | C48: 119 | D48: 860 | E48: 213 | F48: 13120 | G48: П213005 | H48: 304 | I48: 4 | J48: 0.00 | K48: 0.00 | L48: 99,086.11 | M48: 99,086.11 | N48: 0.00 | O48: 0.00 | P48: 0.00 | Q48: 0.00
A49: 0702 | B49: 0220242100 | C49: 119 | D49: 860 | E49: 213 | F49: 13594 | G49: П213099 | H49: 305 | I49: 4 | J49: 0.00 | K49: 0.00 | L49: 591,236.78 | M49: 591,236.78 | N49: 0.00 | O49: 0.00 | P49: 0.00 | Q49: 0.00
A50: 1004 | B50: 0310225510 | C50: 244 | D50: 860 | E50: 226 | F50: 20000 | G50: П226003 | H50: 308 | I50: 5 | J50: 0.00 | K50: 0.00 | L50: 100,417.20 | M50: 531,664.80 | N50: 0.00 | O50: 0.00 | P50: 0.00 | Q50: 0.00
A51: 0707 | B51: 3810121320 | C51: 244 | D51: 860 | E51: 346 | F51: 12800 | G51: П346017 | H51: 306 | I51: 5 | J51: 0.00 | K51: 0.00 | L51: 6,726.90 | M51: 6,726.90 | N51: 0.00 | O51: 0.00 | P51: 0.00 | Q51: 0.00
A52: 0707 | B52: 3810121320 | C52: 244 | D52: 860 | E52: 341 | F52: 12800 | G52: П341006 | H52: 306 | I52: 5 | J52: 0.00 | K52: 0.00 | L52: 6,312.24 | M52: 6,312.24 | N52: 0.00 | O52: 0.00 | P52: 0.00 | Q52: 0.00
A53: 0707 | B53: 3810121320 | C53: 244 | D53: 860 | E53: 226 | F53: 12800 | G53: П226098 | H53: 306 | I53: 5 | J53: 0.00 | K53: 0.00 | L53: 76,440.24 | M53: 76,440.24 | N53: 0.00 | O53: 0.00 | P53: 0.00 | Q53: 0.00
A54: 0707 | B54: 3810121320 | C54: 244 | D54: 860 | E54: 226 | F54: 12800 | G54: П226003 | H54: 306 | I54: 5 | J54: 0.00 | K54: 0.00 | L54: 841,108.20 | M54: 841,108.20 | N54: 0.00 | O54: 0.00 | P54: 0.00 | Q54: 0.00
A55: 0707 | B55: 3810182320 | C55: 244 | D55: 860 | E55: 346 | F55: 99998 | G55: П346017 | H55: 306 | I55: 2 | J55: 0.00 | K55: 0.00 | L55: 1,049.58 | M55: 1,049.58 | N55: 0.00 | O55: 0.00 | P55: 0.00 | Q55: 0.00
A56: 0707 | B56: 3810182320 | C56: 244 | D56: 860 | E56: 341 | F56: 99998 | G56: П341006 | H56: 306 | I56: 2 | J56: 0.00 | K56: 0.00 | L56: 949.62 | M56: 949.62 | N56: 0.00 | O56: 0.00 | P56: 0.00 | Q56: 0.00
A57: 0707 | B57: 3810182320 | C57: 244 | D57: 860 | E57: 226 | F57: 99998 | G57: П226098 | H57: 306 | I57: 2 | J57: 0.00 | K57: 0.00 | L57: 11,445.42 | M57: 11,445.42 | N57: 0.00 | O57: 0.00 | P57: 0.00 | Q57: 0.00
A58: 0707 | B58: 3810182320 | C58: 244 | D58: 860 | E58: 226 | F58: 99998 | G58: П226003 | H58: 306 | I58: 2 | J58: 0.00 | K58: 0.00 | L58: 126,949.20 | M58: 126,949.20 | N58: 0.00 | O58: 0.00 | P58: 0.00 | Q58: 0.00
A59: 0702 | B59: 2700152208 | C59: 244 | D59: 860 | E59: 310 | F59: 00000 | G59: Н310099 | H59: 521 | I59: 2 | J59: 0.00 | K59: 0.00 | L59: 1,429.00 | M59: 1,429.00 | N59: 0.00 | O59: 0.00 | P59: 0.00 | Q59: 0.00
A60: 0702 | B60: 0220242100 | C60: 244 | D60: 860 | E60: 346 | F60: 00000 | G60: П346017 | H60: 523 | I60: 2 | J60: 0.00 | K60: 0.00 | L60: 31,200.00 | M60: 31,200.00 | N60: 0.00 | O60: 0.00 | P60: 0.00 | Q60: 0.00
A61: 0702 | B61: 0220242100 | C61: 244 | D61: 860 | E61: 310 | F61: 00000 | G61: П310098 | H61: 521 | I61: 2 | J61: 0.00 | K61: 0.00 | L61: 53,591.00 | M61: 53,591.00 | N61: 0.00 | O61: 0.00 | P61: 0.00 | Q61: 0.00
A62: 0702 | B62: 0220242100 | C62: 244 | D62: 860 | E62: 226 | F62: 00000 | G62: П226003 | H62: 522 | I62: 2 | J62: 0.00 | K62: 0.00 | L62: 1,384,667.80 | M62: 3,816,000.00 | N62: 0.00 | O62: 0.00 | P62: 0.00 | Q62: 0.00
A63: 0702 | B63: 0220242100 | C63: 244 | D63: 860 | E63: 225 | F63: 00000 | G63: П225001 | H63: 523 | I63: 2 | J63: 0.00 | K63: 0.00 | L63: 222.00 | M63: 3,600.00 | N63: 0.00 | O63: 0.00 | P63: 0.00 | Q63: 0.00
A64: 0702 | B64: 0220242100 | C64: 244 | D64: 860 | E64: 223 | F64: 00000 | G64: П223004 | H64: 523 | I64: 2 | J64: 0.00 | K64: 0.00 | L64: 0.00 | M64: 108,553.00 | N64: 0.00 | O64: 0.00 | P64: 0.00 | Q64: 0.00
A65: 0702 | B65: 0220242100 | C65: 244 | D65: 860 | E65: 223 | F65: 00000 | G65: П223004 | H65: 521 | I65: 2 | J65: 0.00 | K65: 0.00 | L65: 0.00 | M65: 9,480.00 | N65: 0.00 | O65: 0.00 | P65: 0.00 | Q65: 0.00
A66: 0702 | B66: 0710152207 | C66: 244 | D66: 860 | E66: 226 | F66: 00000 | G66: П226098 | H66: 308 | I66: 4 | J66: 0.00 | K66: 0.00 | L66: 2,000.00 | M66: 2,000.00 | N66: 0.00 | O66: 0.00 | P66: 0.00 | Q66: 0.00
A67: 0702 | B67: 0710152207 | C67: 244 | D67: 860 | E67: 225 | F67: 00000 | G67: П225001 | H67: 308 | I67: 4 | J67: 0.00 | K67: 0.00 | L67: 0.00 | M67: 70,800.00 | N67: 0.00 | O67: 0.00 | P67: 0.00 | Q67: 0.00
A68: 0702 | B68: 0510152202 | C68: 244 | D68: 860 | E68: 225 | F68: 00000 | G68: П225001 | H68: 308 | I68: 4 | J68: 0.00 | K68: 0.00 | L68: 0.00 | M68: 6,302.76 | N68: 0.00 | O68: 0.00 | P68: 0.00 | Q68: 0.00
A69: 0702 | B69: 02209L3040 | C69: 244 | D69: 860 | E69: 226 | F69: 00000 | G69: П226003 | H69: 303 | I69: 4 | J69: 0.00 | K69: 0.00 | L69: 1,621,116.50 | M69: 3,875,279.10 | N69: 0.00 | O69: 0.00 | P69: 0.00 | Q69: 0.00
A70: 0702 | B70: 0220242100 | C70: 244 | D70: 860 | E70: 226 | F70: 00000 | G70: П226098 | H70: 308 | I70: 4 | J70: 0.00 | K70: 0.00 | L70: 24,000.00 | M70: 24,000.00 | N70: 0.00 | O70: 0.00 | P70: 0.00 | Q70: 0.00
A71: 0702 | B71: 0220242100 | C71: 244 | D71: 860 | E71: 226 | F71: 00000 | G71: П226050 | H71: 308 | I71: 4 | J71: 0.00 | K71: 0.00 | L71: 140,400.00 | M71: 569,400.00 | N71: 0.00 | O71: 0.00 | P71: 0.00 | Q71: 0.00
A72: 0702 | B72: 0220242100 | C72: 244 | D72: 860 | E72: 226 | F72: 00000 | G72: П226004 | H72: 304 | I72: 4 | J72: 0.00 | K72: 0.00 | L72: 0.00 | M72: 16,863.00 | N72: 0.00 | O72: 0.00 | P72: 0.00 | Q72: 0.00
A73: 0702 | B73: 0220242100 | C73: 244 | D73: 860 | E73: 226 | F73: 00000 | G73: П226003 | H73: 308 | I73: 4 | J73: 0.00 | K73: 0.00 | L73: 161,082.60 | M73: 941,043.00 | N73: 0.00 | O73: 0.00 | P73: 0.00 | Q73: 0.00
A74: 0702 | B74: 0220242100 | C74: 244 | D74: 860 | E74: 226 | F74: 00000 | G74: П226003 | H74: 304 | I74: 4 | J74: 0.00 | K74: 0.00 | L74: 10,929.32 | M74: 326,004.72 | N74: 0.00 | O74: 0.00 | P74: 0.00 | Q74: 0.00
A75: 0702 | B75: 0220242100 | C75: 244 | D75: 860 | E75: 225 | F75: 00000 | G75: П225003 | H75: 304 | I75: 4 | J75: 0.00 | K75: 0.00 | L75: 45,252.06 | M75: 45,252.06 | N75: 0.00 | O75: 0.00 | P75: 0.00 | Q75: 0.00
A76: 0702 | B76: 0220242100 | C76: 244 | D76: 860 | E76: 223 | F76: 00000 | G76: П223017 | H76: 304 | I76: 4 | J76: 0.00 | K76: 0.00 | L76: 48,293.30 | M76: 48,293.30 | N76: 0.00 | O76: 0.00 | P76: 0.00 | Q76: 0.00
A77: 0702 | B77: 0220242100 | C77: 244 | D77: 860 | E77: 223 | F77: 00000 | G77: П223004 | H77: 304 | I77: 4 | J77: 0.00 | K77: 0.00 | L77: 0.00 | M77: 207,223.00 | N77: 0.00 | O77: 0.00 | P77: 0.00 | Q77: 0.00
A78: 0702 | B78: 0220242100 | C78: 244 | D78: 860 | E78: 221 | F78: 00000 | G78: П221099 | H78: 304 | I78: 4 | J78: 0.00 | K78: 0.00 | L78: 0.00 | M78: 21,816.00 | N78: 0.00 | O78: 0.00 | P78: 0.00 | Q78: 0.00
A79: 0702 | B79: 0220242100 | C79: 247 | D79: 860 | E79: 223 | F79: 00000 | G79: П223001 | H79: 523 | I79: 2 | J79: 0.00 | K79: 0.00 | L79: 0.00 | M79: 418,139.00 | N79: 0.00 | O79: 0.00 | P79: 0.00 | Q79: 0.00
A80: 0702 | B80: 0220242100 | C80: 247 | D80: 860 | E80: 223 | F80: 00000 | G80: П223001 | H80: 521 | I80: 2 | J80: 0.00 | K80: 0.00 | L80: 0.00 | M80: 9,000.00 | N80: 0.00 | O80: 0.00 | P80: 0.00 | Q80: 0.00
A81: 0702 | B81: 0220242100 | C81: 247 | D81: 860 | E81: 223 | F81: 00000 | G81: П223002 | H81: 304 | I81: 4 | J81: 0.00 | K81: 0.00 | L81: 0.00 | M81: 1,828,960.00 | N81: 0.00 | O81: 0.00 | P81: 0.00 | Q81: 0.00
A82: 0702 | B82: 0220242100 | C82: 247 | D82: 860 | E82: 223 | F82: 00000 | G82: П223001 | H82: 304 | I82: 4 | J82: 0.00 | K82: 0.00 | L82: 0.00 | M82: 545,591.00 | N82: 0.00 | O82: 0.00 | P82: 0.00 | Q82: 0.00
A83: 0702 | B83: 0220242100 | C83: 851 | D83: 860 | E83: 291 | F83: 00000 | G83: П291001 | H83: 523 | I83: 2 | J83: 0.00 | K83: 0.00 | L83: 306,685.44 | M83: 306,685.44 | N83: 0.00 | O83: 0.00 | P83: 0.00 | Q83: 0.00
A84: 0702 | B84: 02202S0050 | C84: 851 | D84: 860 | E84: 291 | F84: 13120 | G84: П291014 | H84: 304 | I84: 4 | J84: 0.00 | K84: 0.00 | L84: 793,050.00 | M84: 793,050.00 | N84: 0.00 | O84: 0.00 | P84: 0.00 | Q84: 0.00
A85: 0702 | B85: 02202S0050 | C85: 851 | D85: 860 | E85: 291 | F85: 13120 | G85: П291001 | H85: 308 | I85: 4 | J85: 0.00 | K85: 0.00 | L85: 575,810.45 | M85: 575,810.45 | N85: 0.00 | O85: 0.00 | P85: 0.00 | Q85: 0.00
A86: 0702 | B86: 02202S0050 | C86: 851 | D86: 860 | E86: 291 | F86: 13120 | G86: П291001 | H86: 304 | I86: 4 | J86: 0.00 | K86: 0.00 | L86: 94,170.45 | M86: 94,170.45 | N86: 0.00 | O86: 0.00 | P86: 0.00 | Q86: 0.00
A87: 0702 | B87: 02209L3040 | C87: 853 | D87: 860 | E87: 241 | F87: 93597 | G87: П241099 | H87: 309 | I87: 4 | J87: 0.00 | K87: 297,170.06 | L87: 215,192.07 | M87: 512,362.13 | N87: -297,170.06 | O87: 512,362.13 | P87: 0.00 | Q87: 0.00
J88: 0.00 | K88: 297,170.06 | L88: 42,186,282.60 | M88: 52,370,336.62 | N88: 320,004.43 | O88: 512,362.13 | P88: 22,496.40 | Q88: 594,678.09
M90: =SUM(M7:M49) -> 35,505,792.01
L91: 111 | M91: =M29+M30+M31+M32+M33+M34+M35+M36+M37+M38 -> 27,281,855.55
L92: 119 | M92: =M39+M40+M41+M42+M43+M44+M45+M46+M47+M48+M49 -> 8,223,936.46
M100: 45859.13
M101: =M100*0.302 -> 13849.45726
M102: 59708.59 | N102: =M100+M101 -> 59708.58726
